Workbook

Sheet Figure 1
A2: Fig 1. Lactate triggers synaptic potentiation at the recurrent collateral synapse of CA3 pyramidal cells.
A4: Fig. 1B The effects of lactate on the MF EPSC | BI4: Fig. 1B Box plots summarizing the actions of lactate on the MF EPSC | BS4: Fig. 1D Box plots summarizing the actions of lactate on the RC EPSC
B5: Baseline | N5: Lactate perfusion (1 mM) | Y5: Washout
A6: CELL | B6: TIME (min) | C6: 1 | D6: 2 | E6: 3 | F6: 4 | G6: 5 | H6: 6 | I6: 7 | J6: 8 | K6: 9 | L6: 10 | N6: 11 | O6: 12 | P6: 13 | Q6: 14 | R6: 15 | S6: 16 | T6: 17 | U6: 18 | V6: 19 | W6: 20 | Y6: 21 | Z6: 22 | AA6: 23 | AB6: 24 | AC6: 25 | AD6: 26 | AE6: 27 | AF6: 28 | AG6: 29 | AH6: 30 | AI6: 31 | AJ6: 32 | AK6: 33 | AL6: 34 | AM6: 35 | AN6: 36 | AO6: 37 | AP6: 38 | AQ6: 39 | AR6: 40 | AS6: 41 | AT6: 42 | AU6: 43 | AV6: 44 | AW6: 45 | AX6: 46 | AY6: 47 | AZ6: 48 | BA6: 49 | BB6: 50 | BC6: 51 | BD6: 52 | BE6: 53 | BF6: 54 | BG6: 55 | BI6: Baseline | BK6: Baseline | BL6: Lactate perfusion (1 mM) | BN6: Baseline | BP6: Baseline | BQ6: Lactate perfusion (2 mM) | BS6: Baseline | BU6: Baseline | BV6: Lactate perfusion (1 mM) | BW6: Washout | BY6: Baseline | CA6: Baseline | CB6: Lactate perfusion (2 mM) | CC6: Washout
A7: 1 | C7: 115.8271814 | D7: 109.9812304 | E7: 121.0471196 | F7: 84.58307233 | G7: 92.60566123 | H7: 65.68590828 | I7: 69.55095902 | J7: 132.5655938 | K7: 102.4868814 | L7: 105.6663925 | N7: 56.71040817 | O7: 61.01900783 | P7: 63.77119237 | Q7: 58.6741488 | R7: 47.14478429 | S7: 63.16265901 | T7: 59.69998814 | U7: 52.48380326 | V7: 30.86045449 | W7: 32.80999867 | Y7: 51.73649191 | Z7: 80.71374129 | AA7: 38.84755142 | AB7: 69.28238803 | AC7: 63.53313004 | AD7: 55.33199605 | AE7: 81.72223097 | AF7: 38.86748096 | AG7: 40.73020796 | AH7: 40.86370888 | AI7: 49.4369516 | AJ7: 54.1714418 | AK7: 101.4554597 | AL7: 90.73310391 | AM7: 91.05061039 | AN7: 68.34255997 | AO7: 103.3205772 | AP7: 77.41178267 | AQ7: 94.2581711 | AR7: 89.60476628 | AS7: 89.89457972 | AT7: 89.47754661 | AU7: 82.70205221 | AV7: 64.43002679 | AW7: 51.1883838 | AX7: 69.44560637 | AY7: 97.53483432 | AZ7: 81.34247596 | BA7: 108.2761473 | BB7: 96.16555333 | BC7: 71.98930291 | BD7: 68.18082027 | BE7: 54.36197165 | BF7: 65.21104222 | BG7: 44.37553186 | BI7: MEAN | BJ7: =AVERAGE(BK7:BK86) -> 100.0000075 | BK7: 115.8272 | BL7: 56.7104 | BN7: MEAN | BO7: =AVERAGE(BP7:BP114) -> 100.0000028 | BP7: 100.5481 | BQ7: 55.6007 | BS7: MEAN | BT7: =AVERAGE(BU7:BU73) -> 99.99999403 | BU7: 108.1506 | BV7: 99.8943 | BW7: 145.2436 | BY7: MEAN | BZ7: =AVERAGE(CA7:CA86) -> 100.032345 | CA7: 98.8063 | CB7: 86.7579 | CC7: 281.7199
A8: 2 | C8: 121.2128001 | D8: 90.00859236 | E8: 98.1193761 | F8: 103.3192546 | G8: 91.31824385 | H8: 111.87656 | I8: 98.65872977 | J8: 90.17176456 | K8: 93.74219428 | L8: 101.5724843 | N8: 84.51454894 | O8: 44.9894878 | P8: 38.30140734 | Q8: 19.72422794 | R8: 30.87890774 | S8: 44.60789768 | T8: 63.27828886 | U8: 65.42905504 | V8: 47.66787918 | W8: 45.84094649 | Y8: 53.77349701 | Z8: 76.00295839 | AA8: 113.0327393 | AB8: 59.03006297 | AC8: 64.96291112 | AD8: 42.82121166 | AE8: 49.5510011 | AF8: 59.98519536 | AG8: 138.9943269 | AH8: 41.28541816 | AI8: 28.71882799 | AJ8: 21.24403625 | AK8: 53.92108259 | AL8: 75.60554434 | AM8: 17.48918304 | AN8: 48.89500257 | AO8: 10.8144517 | AP8: 29.32046837 | AQ8: 69.73242286 | AR8: 61.57064679 | AS8: 99.84195185 | AT8: 76.36364077 | AU8: 72.78965274 | AV8: 90.27362361 | AW8: 59.20330645 | AX8: 148.0338124 | AY8: 74.88414073 | AZ8: 110.0483672 | BA8: 85.33642518 | BB8: 109.2394114 | BC8: 106.7284526 | BD8: 84.33341555 | BE8: 35.42909377 | BF8: 22.07104721 | BG8: 38.08764628 | BI8: MEDIAN | BJ8: =MEDIAN(BK7:BK86) -> 102.11065 | BK8: 109.9812 | BL8: 61.019 | BN8: MEDIAN | BO8: =MEDIAN(BP7:BP114) -> 100.2983 | BP8: 117.5094 | BQ8: 50.9961 | BS8: MEDIAN | BT8: =MEDIAN(BU7:BU73) -> 96.5458 | BU8: 86.6076 | BV8: 106.647 | BW8: 153.8773 | BY8: MEDIAN | BZ8: =MEDIAN(CA7:CA86) -> 99.0014 | CA8: 79.4934 | CB8: 74.8537 | CC8: 311.6732
A9: 3 | C9: 115.5999952 | D9: 103.6406387 | E9: 105.5851896 | F9: 117.9793728 | G9: 116.493878 | H9: 82.5374328 | I9: 103.2486248 | J9: 102.6519561 | K9: 89.31555043 | L9: 62.94736163 | N9: 75.14215645 | O9: 71.77096072 | P9: 77.61886348 | Q9: 45.86397402 | R9: 82.73353932 | S9: 66.33826249 | T9: 65.06915207 | U9: 63.87372622 | V9: 69.35149032 | W9: 81.51504882 | Y9: 101.2831248 | Z9: 83.68729073 | AA9: 68.0039189 | AB9: 46.43031914 | AC9: 96.29081891 | AD9: 94.97225611 | AE9: 85.77166154 | AF9: 76.89747774 | AG9: 66.6436563 | AH9: 84.04107247 | AI9: 54.28437518 | AJ9: 68.72111498 | AK9: 61.66734275 | AL9: 54.69853022 | AM9: 68.96300538 | AN9: 59.65754396 | AO9: 64.66445225 | AP9: 64.1795884 | AQ9: 66.63880443 | AR9: 77.36232321 | AS9: 74.57110993 | AT9: 52.17689371 | AU9: 55.27743 | AV9: 60.17214501 | AW9: 92.93155487 | AX9: 77.13800301 | AY9: 89.7584417 | AZ9: 52.4930004 | BA9: 70.00824963 | BB9: 75.30340917 | BC9: 83.37575057 | BD9: 66.85660746 | BE9: 82.61627997 | BF9: 45.89148214 | BG9: 46.30195812 | BI9: Q3 | BJ9: =_xlfn.QUARTILE.INC(BK7:BK86, 3) -> 110.85615 | BK9: 121.0471 | BL9: 63.7712 | BN9: Q3 | BO9: =_xlfn.QUARTILE.INC(BP7:BP114, 3) -> 110.778025 | BP9: 94.5389 | BQ9: 42.1332 | BS9: Q3 | BT9: =_xlfn.QUARTILE.INC(BU7:BU73, 3) -> 110.2124 | BU9: 93.9054 | BV9: 125.1698 | BW9: 148.3607 | BY9: Q3 | BZ9: =_xlfn.QUARTILE.INC(CA7:CA86, 3) -> 115.3658 | CA9: 88.0083 | CB9: 58.181 | CC9: 249.7544
A10: 4 | C10: 74.88389323 | D10: 100.4516697 | E10: 82.74436419 | F10: 109.2179864 | G10: 99.4362564 | H10: 95.15926745 | I10: 101.7344172 | J10: 112.1678466 | K10: 107.0771479 | L10: 117.127151 | N10: 102.3071903 | O10: 96.12966025 | P10: 98.49719133 | Q10: 93.10277595 | R10: 122.4230267 | S10: 83.50818627 | T10: 101.148951 | U10: 92.51784313 | V10: 90.07750183 | W10: 100.2382674 | Y10: 132.3711865 | Z10: 79.10857806 | AA10: 81.8551062 | AB10: 107.1254915 | AC10: 101.9624552 | AD10: 111.1887885 | AE10: 107.5102344 | AF10: 108.7367111 | AG10: 94.65139027 | AH10: 111.1624564 | AI10: 124.8222234 | AJ10: 97.12225732 | AK10: 93.36122294 | AL10: 97.83777933 | AM10: 100.80736 | AN10: 81.85758221 | AO10: 106.76887 | AP10: 94.14225172 | AQ10: 113.0209225 | AR10: 98.40373642 | AS10: 85.97865039 | AT10: 115.3859823 | AU10: 107.329981 | AV10: 118.1779199 | AW10: 82.2951466 | AX10: 102.3188825 | AY10: 99.21349975 | AZ10: 85.85153072 | BA10: 94.29804169 | BB10: 101.8382799 | BC10: 48.33773432 | BD10: 40.56664803 | BE10: 35.20152936 | BF10: 23.00869114 | BG10: 26.20096248 | BI10: Q1 | BJ10: =_xlfn.QUARTILE.INC(BK7:BK86, 1) -> 91.115275 | BK10: 84.5831 | BL10: 58.6741 | BN10: Q1 | BO10: =_xlfn.QUARTILE.INC(BP7:BP114, 1) -> 87.2404 | BP10: 110.9683 | BQ10: 37.8386 | BS10: Q1 | BT10: =_xlfn.QUARTILE.INC(BU7:BU73, 1) -> 88.6355 | BU10: 95.8082 | BV10: 155.7178 | BW10: 160.8136 | BY10: Q1 | BZ10: =_xlfn.QUARTILE.INC(CA7:CA86, 1) -> 85.893775 | CA10: 94.3232 | CB10: 57.0089 | CC10: 270.4566
A11: 5 | C11: 103.9544547 | D11: 103.2535149 | E11: 95.98418776 | F11: 76.03416903 | G11: 91.48878783 | H11: 131.2960166 | I11: 97.68571285 | J11: 103.576896 | K11: 99.47627081 | L11: 97.2499895 | N11: 90.18518662 | O11: 94.59848255 | P11: 102.8348023 | Q11: 90.63456396 | R11: 66.43650602 | S11: 93.68273192 | T11: 77.42260017 | U11: 61.36910025 | V11: 71.73699714 | W11: 82.33818819 | Y11: 64.8076386 | Z11: 81.7869743 | AA11: 73.24428301 | AB11: 117.9666668 | AC11: 82.37808661 | AD11: 88.96873642 | AE11: 92.07968897 | AF11: 111.933955 | AG11: 108.9109834 | AH11: 93.53888971 | AI11: 140.4935815 | AJ11: 146.7444715 | AK11: 126.0465524 | AL11: 149.2057988 | AM11: 134.4355284 | AN11: 171.1660154 | AO11: 137.4872664 | AP11: 111.0423505 | AQ11: 92.90515127 | AR11: 105.2236127 | AS11: 105.0888012 | AT11: 113.4446057 | AU11: 101.8222453 | AV11: 99.18522872 | AW11: 101.7575726 | AX11: 80.75341472 | AY11: 80.74081747 | AZ11: 90.09678252 | BA11: 88.31399634 | BB11: 90.81809046 | BC11: 55.54616273 | BD11: 68.46876016 | BE11: 66.75778668 | BF11: 63.07188466 | BG11: 51.4950958 | BK11: 92.6057 | BL11: 47.1448 | BP11: 91.392 | BQ11: 26.7823 | BU11: 110.4593 | BV11: 164.1415 | BW11: 140.0572 | CA11: 101.8005 | CB11: 87.7399 | CC11: 283.7218
A12: 6 | C12: 120.4543246 | D12: 94.03018914 | E12: 110.5160144 | F12: 123.5941707 | G12: 95.82207846 | H12: 83.61345503 | I12: 76.25144257 | J12: 70.80092807 | K12: 104.7639175 | L12: 120.1534795 | N12: 80.85517458 | O12: 106.1353538 | P12: 53.54316405 | Q12: 66.36376126 | R12: 74.57475776 | S12: 87.28088413 | T12: 92.3241517 | U12: 118.4650505 | V12: 99.98700974 | W12: 70.08842711 | Y12: 96.80167511 | Z12: 139.450415 | AA12: 132.7627461 | AB12: 163.4912382 | AC12: 140.8966915 | AD12: 81.88760245 | AE12: 122.7686679 | AF12: 130.8761977 | AG12: 90.94391191 | AH12: 86.34971891 | AI12: 61.82900492 | AJ12: 161.272284 | AK12: 109.7125274 | AL12: 99.93197632 | AM12: 89.34574064 | AN12: 94.71920947 | AO12: 105.6818779 | AP12: 137.9755176 | AQ12: 117.6263407 | AR12: 61.05926911 | AS12: 101.5125392 | AT12: 105.7501161 | AU12: 124.7564729 | AV12: 109.115964 | AW12: 88.77999724 | AX12: 100.9049694 | AY12: 88.989123 | AZ12: 109.2612537 | BA12: 115.9819409 | BB12: 112.1127191 | BC12: 78.4270992 | BD12: 25.99781167 | BE12: 29.35265208 | BF12: 32.36188314 | BG12: 21.31776526 | BI12: Lactate | BK12: 65.6859 | BL12: 63.1627 | BN12: Lactate | BP12: 97.2025 | BQ12: 28.3108 | BS12: Lactate | BU12: 107.9712 | BV12: 98.2427 | BW12: 147.8587 | BY12: Lactate | CA12: 122.3125 | CB12: 80.6967 | CC12: 232.8597
A13: 7 | C13: 98.84058923 | D13: 106.1619935 | E13: 120.6710826 | F13: 90.50654569 | G13: 134.6452701 | H13: 75.76344051 | I13: 103.4961321 | J13: 93.4376967 | K13: 67.25037973 | L13: 109.2268699 | N13: 85.85423433 | O13: 73.97757729 | P13: 85.61805823 | Q13: 86.45922882 | R13: 116.9839577 | S13: 55.57862254 | T13: 68.80438782 | U13: 58.0859523 | V13: 83.83219444 | W13: 52.23335814 | Y13: 87.79539435 | Z13: 58.67800633 | AA13: 124.0821252 | AB13: 56.31949808 | AC13: 61.03975165 | AD13: 49.55455909 | AE13: 124.9006503 | AF13: 121.4680346 | AG13: 65.61118146 | AH13: 93.37946181 | AI13: 89.05714688 | AJ13: 68.62213331 | AK13: 115.1980917 | AL13: 116.5471971 | AM13: 65.35235814 | AN13: 79.92399402 | AO13: 106.8640454 | AP13: 109.7013749 | AQ13: 70.31741086 | AR13: 153.9533298 | AS13: 153.474509 | AT13: 79.74605337 | AU13: 70.55034969 | AV13: 56.78537557 | AW13: 109.7304924 | AX13: 28.62131351 | AY13: 69.7652608 | AZ13: 136.4699575 | BA13: 63.84795871 | BB13: 127.1804374 | BC13: 44.55283667 | BD13: 47.30281445 | BE13: 37.05349321 | BF13: 33.79342395 | BG13: 21.93078396 | BI13: MEAN | BJ13: =AVERAGE(BL7:BL86) -> 74.2585725 | BK13: 69.551 | BL13: 59.7 | BN13: MEAN | BO13: =AVERAGE(BQ7:BQ126) -> 74.24842333 | BP13: 92.3076 | BQ13: 37.069 | BS13: MEAN | BT13: =AVERAGE(BV7:BV71) -> 87.96169077 | BU13: 86.2581 | BV13: 97.8746 | BW13: 177.9606 | BY13: MEAN | BZ13: =AVERAGE(CB7:CB86) -> 97.13117875 | CA13: 104.0671 | CB13: 89.225 | CC13: 144.4027
A14: 8 | C14: 109.4866499 | D14: 114.8304701 | E14: 100.2839769 | F14: 71.3125927 | G14: 115.0899563 | H14: 121.5821808 | I14: 89.39851125 | J14: 114.7037258 | K14: 59.63155101 | L14: 103.6803851 | N14: 105.6406435 | O14: 59.7248961 | P14: 48.66473061 | Q14: 82.12269583 | R14: 72.79413181 | S14: 88.6431842 | T14: 54.42218356 | U14: 90.66510044 | V14: 89.01827814 | W14: 109.9079903 | Y14: 115.4239438 | Z14: 119.9893106 | AA14: 124.8732581 | AB14: 113.0346401 | AC14: 92.71527755 | AD14: 106.1416258 | AE14: 78.79565423 | AF14: 104.1274183 | AG14: 141.1230961 | AH14: 78.69031952 | AI14: 99.55433965 | AJ14: 105.8667267 | AK14: 136.683616 | AL14: 92.92337892 | AM14: 88.18073884 | AN14: 127.6993113 | AO14: 131.7662719 | AP14: 125.0145617 | AQ14: 122.8590476 | AR14: 109.7795339 | AS14: 134.4073495 | AT14: 130.659821 | AU14: 96.03718074 | AV14: 93.27021122 | AW14: 105.9823374 | AX14: 121.7705846 | AY14: 105.8641578 | AZ14: 98.95829794 | BA14: 110.4346677 | BB14: 135.5274946 | BC14: 69.8550317 | BD14: 85.78629329 | BE14: 12.46034951 | BF14: 13.94274597 | BG14: 17.0000272 | BI14: MEDIAN | BJ14: =MEDIAN(BL7:BL86) -> 74.2762 | BK14: 132.5656 | BL14: 52.4838 | BN14: MEDIAN | BO14: =MEDIAN(BQ7:BQ126) -> 68.50175 | BP14: 95.5332 | BQ14: 45.872 | BS14: MEDIAN | BT14: =MEDIAN(BV7:BV71) -> 87.2267 | BU14: 98.6148 | BV14: 130.5205 | BW14: 161.8038 | BY14: MEDIAN | BZ14: =MEDIAN(CB7:CB86) -> 88.2166 | CA14: 111.1886 | CB14: 80.8116 | CC14: 106.4016
BI15: Q3 | BJ15: =_xlfn.QUARTILE.INC(BL7:BL86, 3) -> 90.29755 | BK15: 102.4869 | BL15: 30.8605 | BN15: Q3 | BO15: =_xlfn.QUARTILE.INC(BQ7:BQ126, 3) -> 90.538925 | BP15: 95.6136 | BQ15: 58.1657 | BS15: Q3 | BT15: =_xlfn.QUARTILE.INC(BV7:BV71, 3) -> 104.1513 | BU15: 131.1741 | BV15: 101.1265 | BW15: 176.6535 | BY15: Q3 | BZ15: =_xlfn.QUARTILE.INC(CB7:CB86, 3) -> 123.09835 | CA15: 115.4435 | CB15: 74.3567 | CC15: 135.6034
B16: MEAN | C16: =AVERAGE(C7:C14) -> 107.5324861 | D16: 102.7947874 | E16: 104.3689139 | F16: 97.06839552 | G16: 104.6125165 | H16: 95.93928268 | I16: 92.50306619 | J16: 102.5095509 | K16: 90.46798662 | L16: 102.2030142 | N16: =AVERAGE(N7:N14) -> 85.15119287 | O16: 76.0431783 | P16: 71.10617622 | Q16: 67.86817207 | R16: 76.74620142 | S16: 72.85030353 | T16: 72.77121292 | U16: 75.36120389 | V16: 72.81647566 | W16: 71.87152814 | Y16: =AVERAGE(Y7:Y14) -> 87.99911901 | Z16: 89.92715934 | AA16: 94.58771603 | AB16: 91.5850381 | AC16: 87.97239033 | AD16: 78.85834701 | AE16: 92.88747368 | AF16: 94.11155886 | AG16: 93.45109428 | AH16: 78.66388073 | AI16: 81.0245564 | AJ16: 90.47055823 | AK16: 99.75573694 | AL16: 97.18541362 | AM16: 81.9530656 | AN16: 91.53265236 | AO16: 95.92097659 | AP16: 93.59848698 | AQ16: 93.41978391 | AR16: 94.61965227 | AS16: 105.5961864 | AT16: 95.37558244 | AU16: 88.90817058 | AV16: 86.42631185 | AW16: 86.48359892 | AX16: 91.12332331 | AY16: 88.34378445 | AZ16: 95.56520825 | BA16: 92.06217843 | BB16: 106.0231744 | BC16: 69.85154634 | BD16: 60.93664636 | BE16: 44.15414453 | BF16: 37.41902505 | BG16: 33.33872137 | BI16: Q1 | BJ16: =_xlfn.QUARTILE.INC(BL7:BL86, 1) -> 59.443525 | BK16: 105.6664 | BL16: 32.81 | BN16: Q1 | BO16: =_xlfn.QUARTILE.INC(BQ7:BQ126, 1) -> 49.8258 | BP16: 96.8672 | BQ16: 40.9029 | BS16: Q1 | BT16: =_xlfn.QUARTILE.INC(BV7:BV71, 1) -> 68.8114 | BU16: 81.0507 | BV16: 96.4855 | BW16: 186.5143 | BY16: Q1 | BZ16: =_xlfn.QUARTILE.INC(CB7:CB86, 1) -> 64.6253 | CA16: 80.1291 | CB16: 137.1033 | CC16: 206.6528
B17: SEM | C17: =_xlfn.STDEV.S(C7:C14)/SQRT(9) -> 5.111630574 | D17: 2.686124723 | E17: 4.322068947 | F17: 6.463957147 | G17: 5.270628058 | H17: 7.782896352 | I17: 4.340355381 | J17: 6.154701477 | K17: 5.91987836 | L17: 5.874882652 | N17: =_xlfn.STDEV.S(N7:N14)/SQRT(9) -> 5.145349775 | O17: 7.051024217 | P17: 7.920253289 | Q17: 8.538177638 | R17: 10.42583329 | S17: 5.959438108 | T17: 5.465571441 | U17: 7.595633223 | V17: 7.792911334 | W17: 8.949793161 | Y17: =_xlfn.STDEV.S(Y7:Y14)/SQRT(9) -> 9.758357249 | Z17: 8.759399551 | AA17: 11.27999475 | AB17: 13.45652885 | AC17: 8.883524648 | AD17: 8.793545143 | AE17: 8.342027417 | AF17: 10.72358858 | AG17: 11.86346397 | AH17: 8.364665947 | AI17: 13.02003856 | AJ17: 15.69614953 | AK17: 9.749073549 | AL17: 9.274980497 | AM17: 11.18815382 | AN17: 13.36887756 | AO17: 13.58114318 | AP17: 11.80484318 | AQ17: 7.611427901 | AR17: 10.09366542 | AS17: 8.698116259 | AT17: 8.532071874 | AU17: 7.568123222 | AV17: 7.765530869 | AW17: 7.136172569 | AX17: 12.00438304 | AY17: 4.171208888 | AZ17: 8.226761925 | BA17: 6.32367417 | BB17: 6.491931519 | BC17: 6.817849192 | BD17: 7.049384605 | BE17: 7.479852447 | BF17: 6.343752642 | BG17: 4.426844273 | BK17: 121.2128 | BL17: 84.5145 | BP17: 104.9938 | BQ17: 116.022 | BU17: 115.1502 | BV17: 75.2199 | BW17: 119.5373 | CA17: 121.9192 | CB17: 64.2836 | CC17: 228.528
BK18: 90.0086 | BL18: 44.9895 | BP18: 100.4766 | BQ18: 48.3075 | BS18: Washout | BU18: 105.9769 | BV18: 98.0333 | BW18: 98.4831 | BY18: Washout | CA18: 93.3769 | CB18: 107.8749 | CC18: 258.5234
C19: Baseline | N19: Lactate perfusion (2 mM) | Y19: Washout | BK19: 98.1194 | BL19: 38.3014 | BP19: 104.0362 | BQ19: 61.9379 | BS19: MEAN | BT19: =AVERAGE(BW7:BW75) -> 135.5862232 | BU19: 104.906 | BV19: 68.0076 | BW19: 101.3784 | BY19: MEAN | BZ19: =AVERAGE(CB7:CB86) -> 97.13117875 | CA19: 76.5423 | CB19: 112.4606 | CC19: 246.2085
A20: CELL | B20: TIME (min) | C20: 1 | D20: 2 | E20: 3 | F20: 4 | G20: 5 | H20: 6 | I20: 7 | J20: 8 | K20: 9 | L20: 10 | N20: 11 | O20: 12 | P20: 13 | Q20: 14 | R20: 15 | S20: 16 | T20: 17 | U20: 18 | V20: 19 | W20: 20 | Y20: 21 | Z20: 22 | AA20: 23 | AB20: 24 | AC20: 25 | AD20: 26 | AE20: 27 | AF20: 28 | AG20: 29 | AH20: 30 | AI20: 31 | AJ20: 32 | AK20: 33 | AL20: 34 | AM20: 35 | AN20: 36 | AO20: 37 | AP20: 38 | AQ20: 39 | AR20: 40 | AS20: 41 | AT20: 42 | AU20: 43 | AV20: 44 | AW20: 45 | AX20: 46 | AY20: 47 | AZ20: 48 | BA20: 49 | BB20: 50 | BC20: 51 | BD20: 52 | BE20: 53 | BF20: 54 | BG20: 55 | BK20: 103.3193 | BL20: 19.7242 | BP20: 98.8725 | BQ20: 79.6795 | BS20: MEDIAN | BT20: =MEDIAN(BW7:BW75) -> 136.6 | BU20: 127.4157 | BV20: 50.7097 | BW20: 105.974 | BY20: MEDIAN | BZ20: =MEDIAN(CB7:CB86) -> 88.2166 | CA20: 86.3309 | CB20: 67.9965 | CC20: 224.648
A21: 1 | D21: 109.2577966 | E21: 112.5517283 | F21: 121.1200681 | G21: 123.4714955 | H21: 103.9689014 | I21: 94.55362417 | J21: 101.875629 | K21: 68.00815199 | L21: 65.19260505 | N21: 73.12977514 | O21: 64.04034153 | P21: 77.36731654 | Q21: 85.59997224 | R21: 71.2580137 | S21: 127.1651062 | T21: 131.1574823 | U21: 142.2907801 | V21: 146.0743174 | W21: 118.762947 | Y21: 127.3168818 | Z21: 101.4628296 | AA21: 124.2099963 | AB21: 119.2276624 | AC21: 116.1135305 | AD21: 85.88137135 | AE21: 84.73512583 | AF21: 93.82606251 | AG21: 114.7984177 | AH21: 121.3362468 | AI21: 127.9480468 | AJ21: 103.5712729 | AK21: 109.9712746 | AL21: 87.29288469 | AM21: 109.6031868 | AN21: 96.48062912 | AO21: 123.1220014 | AP21: 94.91351381 | AQ21: 119.2286199 | AR21: 113.2818936 | AS21: 93.43458935 | AT21: 78.79345905 | AU21: 90.97200165 | AV21: 89.69667818 | AW21: 82.57813417 | AX21: 69.77252857 | AY21: 89.40365603 | AZ21: 76.86454284 | BA21: 87.69474486 | BB21: 80.68066796 | BC21: 94.13303382 | BD21: 98.50867731 | BE21: 103.3518172 | BF21: 106.6177237 | BG21: 103.1695491 | BK21: 91.3182 | BL21: 30.8789 | BP21: 100.8887 | BQ21: 57.2356 | BS21: Q3 | BT21: =_xlfn.QUARTILE.INC(BW7:BW75, 3) -> 146.9843 | BU21: 99.2133 | BV21: 57.4654 | BW21: 102.6758 | BY21: Q3 | BZ21: =_xlfn.QUARTILE.INC(CB7:CB86, 3) -> 123.09835 | CA21: 99.0248 | CB21: 74.5203 | CC21: 179.3404
A22: 2 | C22: 95.53109222 | D22: 104.7579873 | E22: 75.77237588 | F22: 105.158923 | G22: 104.2150211 | H22: 94.65160729 | I22: 97.35447564 | J22: 140.4146691 | K22: 79.4166287 | L22: 102.7272198 | N22: 76.46459133 | O22: 21.77628226 | P22: 79.42857046 | Q22: 66.55648219 | R22: 77.13072412 | S22: 32.29302329 | T22: 97.7626393 | U22: 87.83253722 | V22: 44.96275763 | W22: 93.16789017 | Y22: 119.7021032 | Z22: 114.277935 | AA22: 95.38372657 | AB22: 100.3674722 | AC22: 100.0205818 | AD22: 71.18045415 | AE22: 100.3212843 | AF22: 115.1631785 | AG22: 69.22510168 | AH22: 70.29059803 | AI22: 46.1027271 | AJ22: 72.83259094 | AK22: 89.79480035 | AL22: 66.52003209 | AM22: 89.73195901 | AN22: 96.56108444 | AO22: 137.7768406 | AP22: 128.0456335 | AQ22: 204.4033955 | AR22: 106.5288933 | AS22: 127.8608773 | AT22: 156.0263886 | AU22: 102.4500831 | AV22: 137.7941211 | AW22: 135.9100947 | AX22: 197.4159059 | AY22: 101.6874853 | AZ22: 94.43417031 | BA22: 154.3877593 | BB22: 121.5721999 | BC22: 236.2367192 | BD22: 184.630539 | BE22: 116.9749336 | BF22: 217.9554447 | BG22: 173.9595182 | BK22: 111.8766 | BL22: 44.6079 | BP22: 98.2515 | BQ22: 46.8423 | BS22: Q1 | BT22: =_xlfn.QUARTILE.INC(BW7:BW75, 1) -> 123.6181 | BU22: 76.4894 | BV22: 70.7833 | BW22: 116.3501 | BY22: Q1 | BZ22: =_xlfn.QUARTILE.INC(CB7:CB86, 1) -> 64.6253 | CA22: 99.7393 | CB22: 105.3967 | CC22: 228.2121
A23: 3 | C23: 88.64829652 | D23: 101.2086047 | E23: 124.5792767 | F23: 83.69326213 | G23: 113.4668828 | H23: 85.17976829 | I23: 77.60103268 | J23: 106.817391 | K23: 111.6300969 | L23: 107.1753883 | N23: 86.67930813 | O23: 41.73952101 | P23: 58.23876775 | Q23: 62.42039168 | R23: 40.56131231 | S23: 52.25799017 | T23: 67.7541666 | U23: 50.03473859 | V23: 37.50579037 | W23: 75.67884395 | Y23: 46.4378772 | Z23: 63.02831213 | AA23: 49.49340082 | AB23: 47.60595151 | AC23: 102.5228695 | AD23: 86.80812924 | AE23: 97.20645997 | AF23: 112.9617291 | AG23: 90.63368357 | AH23: 133.2083716 | AI23: 157.558476 | AJ23: 104.0108276 | AK23: 155.9503824 | AL23: 119.9354438 | AM23: 97.10659177 | AN23: 91.83649658 | AO23: 137.6707949 | AP23: 108.1663987 | AQ23: 113.0717348 | AR23: 165.528023 | AS23: 205.2092948 | AT23: 200.1114563 | AU23: 176.269394 | AV23: 230.3381181 | AW23: 272.500289 | AX23: 229.5565088 | AY23: 264.0675613 | AZ23: 252.0408793 | BA23: 265.1980051 | BB23: 253.336323 | BC23: 201.4126904 | BD23: 246.996587 | BE23: 199.3906335 | BF23: 149.6391091 | BG23: 163.3375803 | BK23: 98.6587 | BL23: 63.2783 | BP23: 87.4446 | BQ23: 52.4408 | BU23: 99.4324 | BV23: 68.8114 | BW23: 153.1181 | CA23: 131.2136 | CB23: 108.0763 | CC23: 268.4826
A24: 4 | C24: 107.6887798 | D24: 115.7314815 | E24: 127.0739646 | F24: 110.7145758 | G24: 86.19276759 | H24: 83.80222695 | I24: 95.22695155 | J24: 89.62334066 | K24: 91.31388373 | L24: 116.0522891 | N24: 132.9250328 | O24: 123.8870965 | P24: 118.0472867 | Q24: 79.62727183 | R24: 122.5265617 | S24: 79.67560038 | T24: 83.06606347 | U24: 107.524022 | V24: 87.73632197 | W24: 97.27732553 | Y24: 98.50180426 | Z24: 98.18369932 | AA24: 91.03944708 | AB24: 135.4654095 | AC24: 131.0325158 | AD24: 110.0209178 | AE24: 90.42128568 | AF24: 125.5472979 | AG24: 122.9017276 | AH24: 155.0712479 | AI24: 139.0524763 | AJ24: 106.4796493 | AK24: 157.4835264 | AL24: 90.76307042 | AM24: 116.993794 | AN24: 145.3476129 | AO24: 166.3537684 | AP24: 156.9450711 | AQ24: 131.8338917 | AR24: 126.0196975 | AS24: 120.4828501 | AT24: 100.4158668 | AU24: 93.82980072 | AV24: 121.1371168 | AW24: 102.7705006 | AX24: 85.13170636 | AY24: 120.8112434 | AZ24: 119.182679 | BA24: 129.7804717 | BK24: 90.1718 | BL24: 65.4291 | BP24: 113.6084 | BQ24: 52.5773 | BU24: 95.1563 | BV24: 58.141 | BW24: 95.4726 | CA24: 96.2802 | CB24: 107.4721 | CC24: 243.9331
A25: 5 | C25: 103.1079908 | D25: 111.4395556 | E25: 117.4023875 | F25: 106.438776 | G25: 144.3986157 | H25: 99.47959724 | J25: 84.33618591 | K25: 65.22428204 | L25: 68.17260925 | N25: 28.52799666 | O25: 48.98094667 | P25: 63.07091038 | Q25: 27.47318593 | R25: 46.37323395 | S25: 30.25959993 | T25: 23.28933728 | U25: 48.31756877 | V25: 63.33847575 | W25: 48.92037348 | Y25: 38.20037706 | Z25: 47.10282078 | AA25: 34.83196589 | AB25: 74.97317892 | AC25: 44.26837937 | AD25: 47.27044016 | AE25: 41.54525965 | AF25: 39.24663054 | AG25: 47.10175319 | AH25: 58.93013011 | AI25: 42.96155881 | AJ25: 65.0331335 | AK25: 72.22487996 | AL25: 64.46338658 | AM25: 52.40302614 | AN25: 51.52370878 | AO25: 61.69097427 | AP25: 70.35638177 | AQ25: 64.35595036 | AR25: 65.24897616 | AS25: 64.95885299 | AT25: 43.74306421 | AU25: 56.35110117 | AV25: 48.1545204 | AW25: 43.69396522 | AX25: 39.39655522 | AY25: 35.43146532 | AZ25: 19.06008265 | BA25: 19.10772403 | BB25: 13.73780874 | BK25: 93.7422 | BL25: 47.6679 | BP25: 89.2493 | BQ25: 44.8635 | BU25: 80.8339 | BV25: 68.1426 | BW25: 127.8042 | CA25: 80.846 | CB25: 91.7099 | CC25: 182.5201
A26: 6 | C26: 95.60646592 | D26: 88.64311923 | E26: 116.9935926 | F26: 58.84951434 | G26: 78.95898495 | H26: 70.64201401 | I26: 130.1377464 | J26: 105.9680838 | K26: 105.4168834 | L26: 133.0331805 | N26: 102.0270711 | O26: 138.8753061 | P26: 152.3948718 | Q26: 139.365929 | R26: 122.0612759 | S26: 119.8768881 | T26: 146.5223813 | U26: 134.8535839 | V26: 158.5514592 | W26: 104.4717126 | Y26: 140.4084632 | Z26: 130.0117042 | AA26: 43.54295516 | AB26: 146.3318453 | AC26: 145.3249594 | AD26: 122.019642 | AE26: 86.22694851 | AF26: 140.8451602 | AG26: 113.6656051 | AH26: 110.890509 | AI26: 141.6522001 | AJ26: 75.46353821 | AK26: 131.8607386 | AL26: 93.23008604 | AM26: 144.6047727 | AN26: 23.0960054 | AO26: 13.87680389 | AP26: 36.98211505 | AQ26: 66.06229184 | AR26: 84.04810961 | AS26: 120.8049118 | AT26: 115.1415686 | AU26: 113.1271466 | AV26: 112.8076228 | AW26: 37.63095006 | AX26: 97.27118133 | AY26: 45.43819438 | AZ26: 11.37044648 | BA26: 42.88465034 | BB26: 27.35816769 | BC26: 9.554122501 | BD26: 12.47643708 | BE26: 26.35895568 | BF26: 131.2372101 | BG26: 20.08416445 | BK26: 101.5725 | BL26: 45.8409 | BP26: 91.4242 | BQ26: 63.3476 | BU26: 95.4257 | BV26: 75.2673 | BW26: 166.9666 | CA26: 105.9323 | CB26: 59.4936 | CC26: 241.4055
A27: 7 | C27: 96.15008749 | D27: 144.9687521 | E27: 162.2339576 | F27: 145.0941255 | G27: 128.6417813 | H27: 58.76234706 | I27: 73.73890992 | J27: 72.31639493 | K27: 68.00623911 | L27: 50.08740486 | N27: 85.4033738 | O27: 51.30069415 | P27: 50.72955767 | Q27: 52.24466888 | R27: 73.05878939 | S27: 74.67059301 | T27: 77.2952 | U27: 48.39010976 | V27: 52.32988898 | W27: 71.98671494 | Y27: 56.47697866 | Z27: 79.38390521 | AA27: 83.03688459 | AB27: 95.08155817 | AC27: 68.30450867 | AD27: 88.73104645 | AE27: 77.8761696 | AF27: 110.2867447 | AG27: 88.68187884 | AH27: 85.63527065 | AI27: 109.5443466 | AJ27: 130.7452346 | AK27: 86.12446285 | AL27: 92.1390154 | AM27: 70.51694551 | AN27: 102.6448195 | AO27: 115.9178081 | AP27: 97.22516532 | AQ27: 87.82967789 | AR27: 90.9623281 | BK27: 115.6 | BL27: 75.1422 | BP27: 133.3277 | BQ27: 87.36 | BU27: 121.3055 | BV27: 65.9468 | BW27: 144.8321 | CA27: 130.3924 | CB27: 69.5855 | CC27: 314.1844
A28: 8 | C28: 104.8512819 | D28: 72.89019932 | E28: 81.49474404 | F28: 146.5581234 | G28: 111.4188708 | H28: 120.7633748 | I28: 86.60365506 | J28: 101.9126833 | K28: 94.74793639 | L28: 78.75913104 | N28: 72.87013705 | O28: 77.43853244 | P28: 101.270678 | Q28: 53.59812958 | R28: 110.3390234 | S28: 120.3385187 | T28: 107.6447204 | U28: 129.3643782 | V28: 89.66262893 | W28: 101.5708328 | Y28: 117.2346991 | Z28: 147.5695207 | AA28: 167.89895 | AB28: 163.072097 | AC28: 192.4970181 | AD28: 172.367034 | AE28: 170.0078972 | AF28: 144.6828503 | AG28: 159.8986466 | AH28: 175.5983161 | AI28: 174.8205898 | AJ28: 140.1746433 | AK28: 195.9478045 | AL28: 186.9184029 | AM28: 141.9720224 | AN28: 149.4211879 | AO28: 133.3308944 | AP28: 140.1002882 | AQ28: 193.4505868 | AR28: 114.4506998 | AS28: 143.4932524 | AT28: 180.3036085 | AU28: 188.8680295 | AV28: 175.9995647 | AW28: 189.3129478 | AX28: 191.2106461 | AY28: 186.3401265 | AZ28: 105.0507303 | BA28: 148.8263912 | BB28: 112.2898299 | BC28: 84.73428231 | BG28: 28.82539896 | BK28: 103.6406 | BL28: 71.771 | BP28: 89.1965 | BQ28: 61.5757 | BU28: 133.2594 | BV28: 74.5201 | BW28: 144.6249 | CA28: 119.3573 | CB28: 61.7719 | CC28: 258.2452
A29: 9 | C29: 86.62779787 | D29: 85.06100022 | E29: 109.9596998 | F29: 105.4742683 | G29: 104.7263294 | H29: 112.1571429 | I29: 109.8658403 | J29: 104.8338084 | K29: 85.30270757 | L29: 95.99140531 | N29: 86.61896634 | O29: 72.88145581 | P29: 60.86877389 | Q29: 55.86581991 | R29: 43.20826117 | S29: 50.79734872 | T29: 34.46450291 | U29: 20.38909615 | V29: 30.30555866 | W29: 49.19914285 | Y29: 31.18269423 | Z29: 19.52925887 | AA29: 18.40808521 | AB29: 36.92328216 | AC29: 39.02502318 | AD29: 30.8205031 | AE29: 31.99505003 | AF29: 35.17784283 | AG29: 30.06446559 | AH29: 31.18711176 | AI29: 42.09628761 | AJ29: 35.64825154 | AK29: 42.505963 | AL29: 53.73757873 | AM29: 48.90504582 | AN29: 50.48006409 | AO29: 69.94527694 | AP29: 79.71597996 | AQ29: 90.3086048 | AR29: 53.21527 | AS29: 54.87200218 | AT29: 70.1681218 | AU29: 71.73007211 | AV29: 73.29202242 | AW29: 74.85397274 | AX29: 76.41592305 | AY29: 77.97787336 | AZ29: 79.53982368 | BA29: 81.10177399 | BB29: 82.66372431 | BC29: 84.22567462 | BD29: 85.78762493 | BE29: 87.34957525 | BF29: 88.91152556 | BK29: 105.5852 | BL29: 77.6189 | BP29: 95.6293 | BQ29: 67.4622 | BU29: 124.9151 | BV29: 66.6435 | BW29: 108.0807 | CA29: 109.2301 | CB29: 56.2327 | CC29: 367.6035
BK30: 117.9794 | BL30: 45.864 | BP30: 100.12 | BQ30: 56.8524 | BU30: 112.5732 | BV30: 72.3324 | BW30: 100.327 | CA30: 119.037 | CB30: 47.5234 | CC30: 254.3672
B31: MEAN | C31: =AVERAGE(C21:C29) -> 97.27647407 | D31: 103.7731663 | E31: =AVERAGE(E21:E29) -> 114.2290808 | F31: 109.2335152 | G31: 110.6100832 | H31: 92.1563311 | I31: 95.63527946 | J31: 100.8997984 | K31: 85.45186777 | L31: 90.79902591 | N31: =AVERAGE(N21:N29) -> 82.73847249 | O31: 71.21335294 | P31: 84.60185924 | Q31: 69.19465013 | R31: 78.50191062 | S31: 76.37051872 | T31: 85.4396104 | U31: 85.44409053 | V31: 78.94079988 | W31: 84.55953148 | Y31: =AVERAGE(Y21:Y29) -> 86.16243096 | Z31: 88.94999843 | AA31: 78.64949018 | AB31: 102.1164952 | AC31: 104.3454874 | AD31: 90.56661536 | AE31: 86.70394231 | AF31: 101.970833 | AG31: 92.99680888 | AH31: 104.6830891 | AI31: 109.0818566 | AJ31: 92.66212689 | AK31: 115.7626481 | AL31: 94.99998896 | AM31: 96.87081601 | AN31: 89.71017874 | AO31: 106.6316848 | AP31: 101.3833942 | AQ31: 118.9494171 | AR31: 102.1426546 | AS31: 116.3895789 | AT31: 118.0879417 | AU31: 111.6997036 | AV31: 123.6524706 | AW31: 117.4063568 | AX31: 123.2713694 | AY31: 115.1447007 | AZ31: 94.69291931 | BA31: 116.1226901 | BB31: 98.80553164 | BC31: 118.3827538 | BD31: 125.679973 | BE31: 106.685183 | BF31: 138.8722026 | BG31: 97.8752422 | BK31: 116.4939 | BL31: 82.7335 | BP31: 109.2578 | BQ31: 63.747 | BU31: 100.5711 | BV31: 56.0089 | BW31: 129.0465 | CA31: 110.0482 | CB31: 44.3459 | CC31: 211.6102
B32: SEM | C32: =_xlfn.STDEV.S(C21:C29)/SQRT(10) -> 2.374700573 | D32: 6.585305869 | E32: =_xlfn.STDEV.S(E21:E29)/SQRT(10) -> 8.035697137 | F32: 8.69769388 | G32: 6.436760767 | H32: 6.239267146 | I32: 5.711488079 | J32: 5.977152077 | K32: 5.31379857 | L32: 8.535893079 | N32: =_xlfn.STDEV.S(N21:N29)/SQRT(10) -> 8.729461163 | O32: 12.06709124 | P32: 10.57155779 | Q32: 9.876566127 | R32: 10.39865032 | S32: 12.10595727 | T32: 12.89961761 | U32: 14.28828824 | V32: 14.67370617 | W32: 7.785441607 | Y32: =_xlfn.STDEV.S(Y21:Y29)/SQRT(10) -> 13.53762015 | Z32: 12.91293825 | AA32: 15.05222964 | AB32: 13.73243794 | AC32: 15.61157209 | AD32: 13.1901944 | AE32: 12.4315653 | AF32: 12.6082007 | AG32: 12.71259334 | AH32: 14.89049286 | AI32: 16.51215727 | AJ32: 10.5175056 | AK32: 15.36752412 | AL32: 12.55269837 | AM32: 11.12617508 | AN32: 13.39784741 | AO32: 15.22342467 | AP32: 11.71633971 | AQ32: 16.05446606 | AR32: 10.65954534 | AS32: 14.99897859 | AT32: 17.61755681 | AU32: 14.93882707 | AV32: 18.45267333 | AW32: 25.24243165 | AX32: 22.56193869 | AY32: 24.11792006 | AZ32: 23.50559442 | BA32: 24.42307424 | BB32: 25.00340806 | BC32: 26.65114374 | BD32: 28.86936496 | BE32: 19.70879206 | BF32: 15.78353511 | BG32: 22.87001152 | BK32: 82.5374 | BL32: 66.3383 | BP32: 112.5517 | BQ32: 72.4957 | BU32: 96.2593 | BV32: 63.6439 | BW32: 134.9947 | CA32: 92.0854 | CB32: 60.7141 | CC32: 271.9223
BK33: 103.2486 | BL33: 65.0692 | BP33: 121.1201 | BQ33: 73.8316 | BU33: 77.2285 | BV33: 89.3214 | BW33: 137.5833 | CA33: 79.8999 | CB33: 48.7553 | CC33: 275.2917
A34: Fig 1D Effects of lactate perfusion on RC synapse | BK34: 102.652 | BL34: 63.8737 | BP34: 123.4715 | BQ34: 69.2493 | BU34: 77.5099 | BV34: 65.7806 | BW34: 123.9563 | CA34: 53.1714 | CB34: 42.7676 | CC34: 377.1076
BK35: 89.3156 | BL35: 69.3515 | BP35: 103.9689 | BQ35: 55.8795 | BU35: 78.6716 | BV35: 77.8837 | BW35: 118.3118 | CA35: 100.9728 | CB35: 64.7392 | CC35: 384.0688
C36: Baseline | N36: Lactate perfusion (1 mM) | Y36: Washout | BK36: 62.9474 | BL36: 81.515 | BP36: 94.5536 | BQ36: 81.3889 | BU36: 77.7065 | BV36: 58.8792 | BW36: 140.908 | CA36: 80.7329 | CB36: 54.8525 | CC36: 355.2069
A37: CELL | B37: TIME (min) | C37: 1 | D37: 2 | E37: 3 | F37: 4 | G37: 5 | H37: 6 | I37: 7 | J37: 8 | K37: 9 | L37: 10 | N37: 11 | O37: 12 | P37: 13 | Q37: 14 | R37: 15 | S37: 16 | T37: 17 | U37: 18 | V37: 19 | W37: 20 | Y37: 21 | Z37: 22 | AA37: 23 | AB37: 24 | AC37: 25 | AD37: 26 | AE37: 27 | AF37: 28 | AG37: 29 | AH37: 30 | AI37: 31 | AJ37: 32 | AK37: 33 | AL37: 34 | AM37: 35 | AN37: 36 | AO37: 37 | AP37: 38 | AQ37: 39 | AR37: 40 | AS37: 41 | AT37: 42 | AU37: 43 | AV37: 44 | AW37: 45 | AX37: 46 | AY37: 47 | AZ37: 48 | BA37: 49 | BB37: 50 | BC37: 51 | BD37: 52 | BE37: 53 | BF37: 54 | BG37: 55 | BK37: 74.8839 | BL37: 102.3072 | BP37: 101.8756 | BQ37: 73.1298 | BU37: 107.5127 | BV37: 57.6978 | BW37: 142.3008 | CA37: 82.1238 | CB37: 47.9785 | CC37: 240.1023
A38: 1 | C38: 108.1506289 | D38: 86.60756281 | E38: 93.90538702 | F38: 95.80818654 | G38: 110.4593244 | H38: 107.9711967 | I38: 86.25808363 | J38: 98.61481784 | K38: 131.1741285 | L38: 81.05068353 | N38: 99.89429963 | O38: 106.6470498 | P38: 125.1697919 | Q38: 155.717827 | R38: 178.7633978 | S38: 221.7437599 | T38: 194.4945278 | U38: 205.7557795 | V38: 164.1414606 | W38: 207.7365979 | AC38: 136.5986373 | AD38: 118.3091375 | AE38: 113.6795473 | AF38: 107.4374391 | AG38: 111.1504447 | AH38: 99.50051733 | AI38: 141.6190608 | AJ38: 136.1857196 | AK38: 136.4206242 | AL38: 125.9073771 | AM38: 135.5355271 | AN38: 106.423719 | AO38: 121.3925143 | AP38: 140.4010123 | AQ38: 139.6184819 | AR38: 149.7969554 | AS38: 163.5736887 | AT38: 161.2495652 | AU38: 166.9758549 | AV38: 140.7245714 | AW38: 123.3487942 | AX38: 145.243559 | AY38: 153.8772735 | AZ38: 148.3606946 | BA38: 160.813609 | BB38: 140.0571723 | BC38: 147.8586897 | BD38: 177.960587 | BE38: 161.8038014 | BF38: 176.653509 | BG38: 186.5143019 | BK38: 100.4517 | BL38: 96.1297 | BP38: 68.0082 | BQ38: 64.0403 | BU38: 81.4062 | BV38: 54.5333 | BW38: 136.6337 | CA38: 75.0392 | CB38: 94.9423 | CC38: 116.9554
A39: 2 | C39: 115.1501827 | D39: 105.9769351 | E39: 104.9060254 | F39: 127.4156997 | G39: 99.21332896 | H39: 76.48943224 | I39: 99.43243377 | J39: 95.15631544 | K39: 80.83394148 | L39: 95.42570525 | N39: 98.24269058 | O39: 97.87458169 | P39: 130.520488 | Q39: 101.1265247 | R39: 96.48547005 | S39: 75.21985038 | T39: 98.03333894 | U39: 68.0076021 | V39: 50.70971708 | W39: 57.46542727 | Y39: 107.0756911 | Z39: 72.54885556 | AA39: 72.98612807 | AB39: 75.49628201 | AC39: 76.71456867 | AD39: 61.519503 | AE39: 84.53143633 | AF39: 83.55499367 | AG39: 89.12723037 | AH39: 100.2324781 | AI39: 85.83722583 | AJ39: 73.76133883 | AK39: 110.8456764 | AL39: 66.75357054 | AM39: 57.18667661 | AN39: 95.06757776 | AO39: 76.50660791 | AP39: 79.52366429 | AQ39: 80.4163194 | AR39: 110.3206684 | AS39: 79.657818 | AT39: 130.1521464 | AU39: 103.5143629 | AY39: 119.5373245 | AZ39: 98.48314817 | BA39: 101.3783522 | BB39: 105.9739911 | BC39: 102.6757848 | BD39: 116.3501395 | BE39: 153.1181261 | BF39: 95.47258883 | BG39: 127.8042296 | BK39: 82.7444 | BL39: 98.4972 | BP39: 65.1926 | BQ39: 77.3673 | BU39: 96.296 | BV39: 62.1574 | BW39: 141.3077 | CA39: 121.0118 | CB39: 57.2316 | CC39: 166.7604
A40: 3 | C40: 121.3055083 | D40: 133.2594317 | E40: 124.915058 | F40: 112.5731755 | G40: 100.5710894 | H40: 96.25926129 | I40: 77.22853551 | J40: 77.50987221 | K40: 78.67160004 | L40: 77.70646806 | N40: 70.78328907 | O40: 68.811424 | P40: 58.14102529 | Q40: 68.14264265 | R40: 75.2672636 | S40: 65.94678121 | T40: 74.52012757 | U40: 66.64348085 | V40: 72.33236913 | W40: 56.0088504 | Y40: 68.19397778 | Z40: 76.98154873 | AA40: 79.91721434 | AB40: 76.36500126 | AC40: 71.23180104 | AD40: 73.38430603 | AE40: 71.90122482 | AF40: 88.42301626 | AG40: 98.70627284 | AH40: 88.87641577 | AI40: 85.65538066 | AJ40: 88.22680506 | AK40: 87.11131253 | AL40: 80.1937064 | AM40: 100.4046006 | AN40: 92.62894985 | AO40: 112.5606502 | AP40: 126.1247717 | AQ40: 136.1033605 | AR40: 123.3720572 | AS40: 141.4902762 | AT40: 144.4196418 | AU40: 164.9397128 | AV40: 134.8656343 | AW40: 125.6645507 | AX40: 166.9666356 | AY40: 144.8321313 | AZ40: 144.6248547 | BA40: 108.0806634 | BB40: 100.3270182 | BC40: 129.0465425 | BD40: 134.9946817 | BE40: 137.5833495 | BF40: 123.9563115 | BG40: 118.3118137 | BK40: 109.218 | BL40: 93.1028 | BP40: 95.5311 | BQ40: 85.6 | BU40: 94.0784 | BV40: 72.5776 | BW40: 123.6181 | CA40: 101.7917 | CB40: 104.6072 | CC40: 236.1922
A41: 4 | C41: 107.5127194 | D41: 81.40616856 | E41: 96.29598919 | F41: 94.07837797 | G41: 90.8426568 | H41: 116.5573247 | I41: 109.9655121 | J41: 91.19432243 | K41: 87.84488987 | L41: 124.302039 | N41: 63.64394122 | O41: 89.32144537 | P41: 65.78056724 | Q41: 77.88367753 | R41: 58.8792417 | S41: 57.69777392 | T41: 54.53332697 | U41: 62.15739849 | V41: 72.57760991 | W41: 91.47804378 | Y41: 39.59968742 | Z41: 44.4578492 | AA41: 53.77924017 | AB41: 57.64896346 | AC41: 60.24652952 | AD41: 61.31178831 | AE41: 52.15486119 | AF41: 73.98427759 | AG41: 76.9629076 | AH41: 91.38707445 | AI41: 73.03438869 | AJ41: 65.07085391 | AK41: 86.14923305 | AL41: 99.1292928 | AM41: 87.29464573 | AN41: 91.5731697 | AO41: 106.2774496 | AP41: 103.7922055 | AQ41: 120.3175014 | AR41: 126.976428 | AS41: 145.0273646 | AT41: 143.1897139 | AU41: 130.3422237 | AV41: 124.4140888 | AW41: 135.9139838 | AX41: 142.3008389 | AY41: 136.633675 | AZ41: 141.3076861 | BA41: 123.6181225 | BB41: 167.28222 | BC41: 143.6007339 | BD41: 146.9842733 | BE41: 133.3929597 | BF41: 108.7740628 | BK41: 99.4363 | BL41: 122.423 | BP41: 104.758 | BQ41: 71.258 | BU41: 90.8427 | BV41: 91.478 | BW41: 167.2822 | CA41: 119.4282 | CB41: 102.5039 | CC41: 191.723
A42: 5 | C42: 129.3761791 | D42: 109.7299409 | E42: 112.760336 | F42: 85.02532772 | G42: 90.25868393 | H42: 96.54580243 | I42: 82.93321909 | J42: 83.88769583 | K42: 110.9609962 | L42: 98.5218187 | N42: 104.1700494 | O42: 108.9374968 | P42: 86.64485047 | Q42: 105.2398428 | R42: 79.87969675 | S42: 100.8912833 | T42: 89.90054367 | U42: 66.70665979 | V42: 78.07866559 | W42: 85.43789252 | Y42: 102.0814875 | Z42: 96.88683093 | AA42: 102.2897733 | AB42: 99.16625795 | AC42: 77.38165403 | AD42: 103.192448 | AE42: 95.04216652 | AF42: 73.33372488 | AG42: 105.3605598 | AH42: 108.7159523 | AI42: 93.02297973 | AJ42: 104.9788349 | AK42: 133.4469279 | AL42: 120.9881641 | AM42: 157.5311532 | AN42: 144.3712159 | AO42: 148.0583889 | AP42: 148.1960599 | AQ42: 128.6235152 | AR42: 121.8923821 | AS42: 128.5049567 | AT42: 127.2131533 | AU42: 124.262926 | AV42: 118.2557847 | AW42: 120.4575062 | AX42: 133.6603011 | AY42: 140.3123443 | AZ42: 137.5431149 | BK42: 95.1593 | BL42: 83.5082 | BP42: 75.7724 | BQ42: 127.1651 | BU42: 116.5573 | BV42: 104.17 | BW42: 143.6007 | CA42: 82.5641 | CB42: 67.8649 | CC42: 231.1179
A43: 6 | C43: 103.991287 | D43: 92.62699097 | E43: 118.4262534 | F43: 96.49653886 | G43: 92.35723042 | H43: 86.86213088 | I43: 92.24481327 | J43: 93.25065438 | K43: 120.087333 | L43: 100.2750458 | N43: 89.88957233 | O43: 114.2697073 | P43: 105.9756151 | Q43: 105.3283472 | R43: 60.32267353 | S43: 92.4619596 | T43: 86.7688948 | U43: 75.71196272 | V43: 91.31422716 | W43: 78.89825638 | Y43: 85.22051405 | Z43: 80.52198612 | AA43: 105.180989 | AB43: 107.2434617 | AC43: 76.56747906 | AD43: 108.4345659 | AE43: 92.60181056 | AF43: 69.09610009 | AG43: 106.365701 | AH43: 97.06456771 | AI43: 102.4111958 | AJ43: 111.2393924 | AK43: 111.9230851 | AL43: 119.061099 | AM43: 150.8645144 | AN43: 145.3254828 | AO43: 130.4441672 | AP43: 150.5753606 | AQ43: 121.3577549 | AR43: 124.4997189 | AS43: 130.9987728 | AT43: 125.0338685 | AU43: 138.1692411 | AV43: 140.9781952 | AW43: 147.4861443 | AX43: 126.9874283 | AY43: 155.1319746 | AZ43: 141.7303261 | BA43: 149.438112 | BB43: 154.1866542 | BC43: 128.6902796 | BD43: 126.0487783 | BE43: 135.888075 | BF43: 165.2172124 | BG43: 125.1129928 | BK43: 101.7344 | BL43: 101.149 | BP43: 105.1589 | BQ43: 131.1575 | BU43: 109.9655 | BV43: 108.9375 | BW43: 146.9843 | CA43: 127.0465 | CB43: 34.1202 | CC43: 301.708
A44: 7 | C44: 94.15043116 | E44: 80.31619935 | F44: 86.85196112 | G44: 122.4123359 | H44: 89.42614743 | I44: 115.3111068 | J44: 108.0471398 | K44: 97.10435021 | L44: 106.3803281 | N44: 106.18965 | O44: 107.4948218 | P44: 104.1513236 | Q44: 111.6339217 | R44: 103.1749172 | S44: 87.22673397 | T44: 113.1067651 | U44: 118.6891227 | V44: 91.98554802 | W44: 71.22268035 | Y44: 81.60493107 | Z44: 150.2830008 | AA44: 115.1056237 | AB44: 89.62339564 | AC44: 157.2872451 | AD44: 124.1975086 | AE44: 146.5860916 | AF44: 159.2713208 | AG44: 73.57660483 | AH44: 116.8250504 | AI44: 114.5664689 | AJ44: 116.4551976 | AK44: 139.4552796 | AL44: 149.2983715 | AM44: 127.3388112 | AN44: 151.349833 | AO44: 119.6803258 | AP44: 143.1636982 | AQ44: 165.7248838 | AR44: 94.11592186 | AS44: 141.3193535 | AT44: 141.8519362 | AU44: 141.4327728 | AV44: 122.1213854 | AW44: 157.2379378 | AX44: 158.8159856 | AY44: 104.841735 | AZ44: 161.5282594 | BA44: 145.0376298 | BB44: 136.6000021 | BC44: 110.6953174 | BD44: 133.6312841 | BE44: 118.5165298 | BF44: 143.9379361 | BG44: 139.223502 | BK44: 112.1678 | BL44: 92.5178 | BP44: 104.215 | BQ44: 142.2908 | BU44: 91.1943 | BV44: 86.6449 | BW44: 133.393 | CA44: 109.2891 | CB44: 17.5756 | CC44: 212.0308
A45: 8 | BK45: 107.0771 | BL45: 90.0775 | BP45: 94.6516 | BQ45: 146.0743 | BU45: 87.8449 | BV45: 105.2398 | BW45: 108.7741 | CA45: 98.0947 | CB45: 92.4932 | CC45: 326.3398
B46: MEAN | C46: =AVERAGE(C38:C44) -> 111.3767052 | D46: 101.6011717 | E46: 104.5036069 | F46: 99.74989533 | G46: 100.8735214 | H46: 95.73018509 | I46: 94.76767203 | J46: 92.522974 | K46: 100.9538913 | L46: 97.66601263 | N46: =AVERAGE(N38:N44) -> 90.40192746 | O46: 99.0509324 | P46: 96.62623739 | Q46: 103.5818262 | R46: 93.25323723 | S46: 100.1697346 | T46: 101.6225035 | U46: 94.81028659 | V46: 88.73422821 | W46: 92.60682122 | Y46: =AVERAGE(Y38:Y44) -> 80.62938149 | Z46: 86.94667856 | AA46: 88.20982809 | AB46: 84.25722701 | AC46: 93.71827353 | AD46: 92.90703678 | AE46: 93.78530547 | AF46: 93.58583891 | AG46: 94.46424589 | AH46: 100.3717223 | AI46: 99.44952863 | AJ46: 99.41687746 | AK46: 115.0503055 | AL46: 108.7616545 | AM46: 116.5937041 | AN46: 118.1057069 | AO46: 116.4171577 | AP46: 127.3966818 | AQ46: 127.4516882 | AR46: 121.5677331 | AS46: 132.9388901 | AT46: 139.0157179 | AU46: 138.5195849 | AV46: 130.22661 | AW46: 135.0181528 | AX46: 145.6624581 | AY46: 136.4523512 | AZ46: 139.0825834 | BA46: 131.3944148 | BB46: 134.0711763 | BC46: 127.094558 | BD46: 139.3282906 | BE46: 140.0504736 | BF46: 135.6686034 | BG46: 139.393368 | BK46: 117.1272 | BL46: 100.2383 | BP46: 97.3545 | BQ46: 118.7629 | BU46: 124.302 | BV46: 79.8797 | BW46: 128.6235 | CA46: 103.8363 | CB46: 54.9356 | CC46: 310.3909
B47: SEM | C47: =_xlfn.STDEV.S(C38:C44)/SQRT(10) -> 3.682001712 | D47: 6.001086572 | E47: 4.904964963 | F47: 4.780673503 | G47: 3.751613179 | H47: 4.229158915 | I47: 4.474409749 | J47: 3.128633519 | K47: 6.412840308 | L47: 4.953833889 | N47: =_xlfn.STDEV.S(N38:N44)/SQRT(10) -> 5.309644318 | O47: 4.947777483 | P47: 8.793735954 | Q47: 8.861110972 | R47: 13.03150992 | S47: 17.60931099 | T47: 14.18916642 | U47: 16.63912306 | V47: 11.396593 | W47: 16.59672077 | Y47: =_xlfn.STDEV.S(Y38:Y44)/SQRT(10) -> 7.771364616 | Z47: 11.19238559 | AA47: 7.342537506 | AB47: 5.703477937 | AC47: 11.80105906 | AD47: 8.500811938 | AE47: 9.560618186 | AF47: 10.02317197 | AG47: 4.704381718 | AH47: 3.068440987 | AI47: 7.222875988 | AJ47: 7.93308793 | AK47: 7.111079063 | AL47: 9.005883715 | AM47: 11.52846475 | AN47: 8.714193404 | AO47: 7.004599987 | AP47: 8.404553884 | AQ47: 8.154192727 | AR47: 5.351322114 | AS47: 8.25659023 | AT47: 4.004930874 | AU47: 7.085053508 | AV47: 3.130830722 | AW47: 4.659717592 | AX47: 4.756401449 | AY47: 5.806689498 | AZ47: 6.168811632 | BA47: 7.592321191 | BB47: 8.340207441 | BC47: 5.612791032 | BD47: 6.792120909 | BE47: 4.848538554 | BF47: 10.0970078 | BG47: 8.664699134 | BK47: 103.9545 | BL47: 90.1852 | BP47: 140.4147 | BQ47: 76.4646 | BU47: 129.3762 | BV47: 100.8913 | BW47: 121.8924 | CA47: 130.6027 | CB47: 70.754 | CC47: 100.5536
BK48: 103.2535 | BL48: 94.5985 | BP48: 79.4166 | BQ48: 21.7763 | BU48: 109.7299 | BV48: 89.9005 | BW48: 128.505 | CA48: 98.978 | CB48: 88.6262 | CC48: 121.8369
C49: Baseline | N49: Lactate perfusion (2 mM) | Y49: Washout | BK49: 95.9842 | BL49: 102.8348 | BP49: 102.7272 | BQ49: 79.4286 | BU49: 112.7603 | BV49: 66.7067 | BW49: 127.2132 | CA49: 112.3449 | CB49: 53.9094 | CC49: 131.4845
A50: CELL | B50: TIME (min) | C50: 1 | D50: 2 | E50: 3 | F50: 4 | G50: 5 | H50: 6 | I50: 7 | J50: 8 | K50: 9 | L50: 10 | N50: 11 | O50: 12 | P50: 13 | Q50: 14 | R50: 15 | S50: 16 | T50: 17 | U50: 18 | V50: 19 | W50: 20 | Y50: 21 | Z50: 22 | AA50: 23 | AB50: 24 | AC50: 25 | AD50: 26 | AE50: 27 | AF50: 28 | AG50: 29 | AH50: 30 | AI50: 31 | AJ50: 32 | AK50: 33 | AL50: 34 | AM50: 35 | AN50: 36 | AO50: 37 | AP50: 38 | AQ50: 39 | AR50: 40 | AS50: 41 | AT50: 42 | AU50: 43 | AV50: 44 | AW50: 45 | AX50: 46 | AY50: 47 | AZ50: 48 | BA50: 49 | BB50: 50 | BC50: 51 | BD50: 52 | BE50: 53 | BF50: 54 | BG50: 55 | BK50: 76.0342 | BL50: 90.6346 | BP50: 88.6483 | BQ50: 66.5565 | BU50: 85.0253 | BV50: 78.0787 | BW50: 124.2629 | CA50: 77.1124 | CB50: 45.7534 | CC50: 96.0315
A51: 1 | C51: 83.00167063 | D51: 90.78583236 | E51: 98.80631873 | F51: 79.49335713 | G51: 88.00828056 | H51: 94.32323397 | I51: 101.8005371 | J51: 122.3125253 | K51: 104.067147 | L51: 111.1886003 | N51: 86.75787989 | O51: 74.8537498 | P51: 58.18099289 | Q51: 57.00886318 | R51: 87.73985596 | S51: 80.69667798 | T51: 89.225044 | U51: 80.81163347 | V51: 74.3566553 | W51: 137.1032738 | Y51: 91.55219037 | Z51: 103.7999511 | AA51: 120.1804385 | AB51: 101.9478958 | AC51: 111.7474565 | AD51: 166.2897753 | AE51: 178.8322499 | AF51: 244.7216759 | AG51: 247.6761554 | AH51: 241.9689742 | AI51: 219.4184389 | AJ51: 200.6050346 | AK51: 258.7866454 | AL51: 294.2324534 | AM51: 265.8530557 | AN51: 247.0647119 | AO51: 223.829981 | AP51: 257.9673067 | AQ51: 265.5595583 | AR51: 252.3683483 | AS51: 246.9888941 | AT51: 257.8083442 | AU51: 229.1874229 | AV51: 240.1211957 | AW51: 295.5152528 | AX51: 281.7199367 | AY51: 311.6731843 | AZ51: 249.754439 | BA51: 270.4565876 | BB51: 283.7217907 | BC51: 232.8597335 | BD51: 144.4026503 | BE51: 106.4016343 | BF51: 135.6034136 | BG51: 206.652786 | BK51: 91.4888 | BL51: 66.4365 | BP51: 101.2086 | BQ51: 77.1307 | BU51: 90.2587 | BV51: 85.4379 | BW51: 118.2558 | CA51: 95.8196 | CB51: 68.6463 | CC51: 133.5293
A52: 2 | C52: 107.8915608 | D52: 108.1711136 | E52: 111.8154639 | F52: 110.1487507 | G52: 117.667924 | H52: 90.56273359 | I52: 102.3960685 | J52: 85.51882976 | K52: 83.23621365 | L52: 98.65401587 | N52: 64.28360888 | O52: 107.8749083 | P52: 112.4605505 | Q52: 67.99647344 | R52: 74.52029182 | S52: 105.3967333 | T52: 108.0763123 | U52: 107.4720975 | V52: 91.70986039 | W52: 59.49363987 | Y52: 29.34108924 | Z52: 59.16089187 | AA52: 56.77027321 | AB52: 65.56210123 | AC52: 45.44775637 | AD52: 45.46526168 | AE52: 120.2657748 | AF52: 112.6561297 | AG52: 137.7355593 | AH52: 122.2798315 | AI52: 120.3533458 | AJ52: 71.91077147 | AK52: 92.69939908 | AL52: 107.4020389 | AM52: 57.31320436 | AN52: 66.43487499 | AO52: 64.76523631 | AP52: 96.50860413 | AQ52: 102.4544574 | AR52: 73.5570439 | AS52: 93.79106912 | AT52: 96.49108602 | AU52: 110.5545053 | AV52: 91.56101914 | AW52: 93.04090718 | AX52: 81.94020988 | AY52: 102.0078544 | AZ52: 105.0815 | BA52: 71.53422783 | BB52: 115.9836997 | BC52: 105.3880023 | BF52: 122.043394 | BG52: 115.4758079 | BK52: 131.296 | BL52: 93.6827 | BP52: 124.5793 | BQ52: 32.293 | BU52: 96.5458 | BV52: 89.8896 | BW52: 120.4575 | CA52: 83.2115 | CB52: 58.122 | CC52: 132.745
A53: 3 | C53: 97.70811247 | D53: 94.95612203 | E53: 117.2433124 | F53: 115.3628868 | G53: 144.8691021 | H53: 76.03188187 | I53: 84.12451481 | J53: 88.81103167 | K53: 107.4490126 | L53: 66.10825763 | N53: 69.58550042 | O53: 61.77186889 | P53: 56.23266995 | Q53: 47.52339859 | R53: 44.34593235 | S53: 60.7140999 | T53: 48.75530816 | U53: 42.76758884 | V53: 64.7391617 | W53: 54.8524879 | Y53: 73.10939944 | Z53: 76.00832841 | AA53: 57.93849148 | AB53: 57.60869063 | AC53: 45.88131199 | AD53: 93.303552 | AE53: 52.90970453 | AF53: 107.0319119 | AG53: 91.06976201 | AH53: 111.8611596 | AI53: 118.4516655 | AJ53: 92.53170382 | AK53: 69.29172797 | AL53: 129.433525 | AM53: 85.84003971 | AN53: 130.0570985 | AO53: 135.9159386 | AP53: 112.6191498 | AQ53: 110.0846638 | AR53: 215.1308381 | AS53: 190.9430326 | AT53: 184.6158169 | AU53: 251.648814 | AV53: 169.9063591 | AW53: 191.8728471 | AX53: 228.5280144 | AY53: 258.52339 | AZ53: 246.2084705 | BA53: 224.6479843 | BB53: 179.3403601 | BC53: 228.2120676 | BD53: 268.4825754 | BE53: 243.9331041 | BF53: 182.5201396 | BG53: 241.4055415 | BK53: 97.6857 | BL53: 77.4226 | BP53: 83.6933 | BQ53: 97.7626 | BU53: 82.9332 | BV53: 114.2697 | BW53: 133.6603 | CA53: 115.3745 | CB53: 67.4636 | CC53: 133.6494
A54: 4 | C54: 92.60325513 | D54: 109.0831196 | E54: 110.6018569 | F54: 83.96342589 | G54: 94.95612203 | H54: 132.78788 | I54: 118.8805596 | J54: 86.80507035 | K54: 81.95756425 | L54: 78.037057 | N54: 44.26566139 | O54: 87.59524525 | P54: 52.80272248 | Q54: 96.51220195 | R54: 94.57168475 | S54: 62.61320176 | T54: 31.47982732 | U54: 16.2155502 | V54: 85.33561686 | W54: 50.68440351 | Y54: 97.37535318 | Z54: 108.6719648 | AA54: 112.5560515 | AB54: 168.7429003 | AC54: 170.0375764 | AD54: 155.4586329 | AE54: 105.3167155 | AF54: 120.8803569 | AG54: 167.653315 | AH54: 298.4855008 | AI54: 136.0337181 | AJ54: 242.6542197 | AK54: 285.7893132 | AL54: 174.7148816 | AM54: 259.4259671 | AN54: 288.4334237 | AO54: 261.618716 | AP54: 264.0530969 | AQ54: 264.1853151 | AR54: 241.4643981 | AS54: 352.9673915 | AT54: 342.5232216 | AU54: 303.0169185 | AV54: 275.6551956 | AW54: 340.9094277 | AX54: 315.421343 | AY54: 259.2618535 | AZ54: 369.0507233 | BA54: 255.3686571 | BB54: 212.4432748 | BC54: 272.9928518 | BD54: 276.3754808 | BE54: 378.592212 | BF54: 385.580812 | BG54: 356.6052937 | BK54: 103.5769 | BL54: 61.3691 | BP54: 113.4669 | BQ54: 87.8325 | BU54: 83.8877 | BV54: 105.9756 | BW54: 140.3123 | CA54: 89.3405 | CB54: 68.8034 | CC54: 122.1295
A55: 5 | C55: 115.374532 | D55: 107.487002 | E55: 82.49761202 | F55: 102.7865368 | G55: 97.36782796 | H55: 96.03568896 | I55: 90.38617994 | J55: 116.986069 | K55: 96.35664339 | L55: 117.5834419 | N55: 101.6069945 | O55: 92.19567467 | P55: 72.98310561 | Q55: 90.56865027 | R55: 81.21163177 | S55: 98.30461794 | T55: 81.63793749 | U55: 63.64781035 | V55: 94.75405449 | W55: 103.1433299 | Y55: 107.3678369 | Z55: 119.7274575 | AA55: 95.74840565 | AB55: 93.81346347 | AC55: 108.0292879 | AD55: 85.17111992 | AE55: 101.9757369 | AF55: 85.61643518 | AG55: 90.86190144 | AH55: 120.7403669 | AI55: 98.70483179 | AJ55: 93.45395453 | AK55: 102.7297068 | AL55: 87.3748842 | AM55: 99.5370351 | AN55: 110.4099683 | AO55: 58.9231377 | AP55: 103.9250898 | AQ55: 99.24573125 | AR55: 94.04535456 | AS55: 84.32611199 | AT55: 90.82497974 | AU55: 92.59808319 | AV55: 97.8750509 | AW55: 104.076316 | AX55: 118.3013703 | AY55: 76.57765598 | AZ55: 107.9576006 | BA55: 99.30548743 | BB55: 101.3997257 | BK55: 99.4763 | BL55: 71.737 | BP55: 85.1798 | BQ55: 44.9628 | BU55: 110.961 | BV55: 105.3283 | BW55: 137.5431 | CA55: 81.3281 | CB55: 103.003 | CC55: 194.0556
A56: 6 | C56: 95.37708219 | D56: 88.94026677 | E56: 69.94541891 | F56: 74.03941575 | G56: 93.12488317 | H56: 70.57520111 | I56: 80.10633824 | J56: 54.98418102 | K56: 68.32313615 | L56: 59.33309978 | N56: 51.74265257 | O56: 82.15384851 | P56: 89.72716946 | Q56: 55.17058748 | R56: 62.60990049 | S56: 55.5968241 | T56: 87.51239283 | U56: 91.56305093 | V56: 70.09153301 | W56: 51.32246317 | Y56: 31.43794777 | Z56: 60.8112753 | AA56: 52.38953224 | AB56: 62.65523322 | AC56: 41.2774352 | AD56: 63.80695175 | AE56: 106.2663349 | AF56: 98.96910806 | AG56: 115.1596527 | AH56: 95.57138494 | AI56: 85.66843002 | AJ56: 69.47385542 | AK56: 85.84677568 | AL56: 90.07276699 | AM56: 66.96284163 | AN56: 57.51131838 | AO56: 59.35325623 | AP56: 85.69563542 | AQ56: 88.70038106 | AR56: 73.74215489 | AS56: 81.37593977 | AT56: 87.11638553 | AU56: 98.21037154 | AV56: 81.69032363 | AW56: 82.12560946 | AX56: 71.69868909 | AY56: 86.87455863 | AZ56: 93.75362556 | BA56: 68.47428111 | BB56: 95.21167251 | BC56: 94.65243933 | BD56: 95.29731796 | BE56: 87.08313841 | BF56: 138.3693214 | BG56: 105.2959855 | BK56: 97.25 | BL56: 82.3382 | BP56: 77.601 | BQ56: 93.1679 | BU56: 98.5218 | BV56: 60.3227 | BW56: 126.9874 | CA56: 130.534 | CB56: 102.8859 | CC56: 147.672
A57: 7 | C57: 100.9728059 | D57: 80.73287973 | E57: 82.123791 | F57: 75.03915029 | G57: 121.0117628 | H57: 101.7916726 | I57: 119.4282239 | J57: 82.5640802 | K57: 127.0465471 | L57: 109.2890864 | N57: 149.3353159 | O57: 124.19885 | P57: 156.1672864 | Q57: 139.8916296 | R57: 186.4045962 | S57: 139.8916296 | T57: 154.4386588 | U57: 189.2714757 | V57: 214.0852224 | W57: 211.2833905 | Y57: 191.628017 | Z57: 185.1112492 | AA57: 178.0491186 | AB57: 220.5269469 | AC57: 214.6831165 | AD57: 230.5735288 | AE57: 226.8210659 | AF57: 205.4545681 | AG57: 240.9728404 | AH57: 187.6654178 | AI57: 190.2846375 | AJ57: 219.5738206 | AK57: 228.1219169 | AL57: 214.0076766 | AM57: 229.58038 | AN57: 263.767764 | AO57: 295.2558871 | AP57: 231.9269113 | AQ57: 269.3214062 | AR57: 285.8222144 | AS57: 257.7938528 | AT57: 229.6479265 | AU57: 246.4263998 | AV57: 278.1997203 | AW57: 209.4021593 | AX57: 191.0801589 | AY57: 149.5929839 | AZ57: 115.8592205 | BK57: 120.4543 | BL57: 80.8552 | BP57: 106.8174 | BQ57: 86.6793 | BU57: 118.4263 | BV57: 92.462 | BW57: 155.132 | CA57: 99.6394 | CB57: 72.5663 | CC57: 269.3214
A58: 8 | C58: 80.84598061 | D58: 105.9323147 | E58: 130.3924202 | F58: 119.3573125 | G58: 109.2300549 | H58: 119.0370063 | I58: 110.0481683 | J58: 92.08537207 | K58: 79.89994082 | L58: 53.17142962 | N58: 107.751502 | O58: 61.57717546 | P58: 83.60971653 | Q58: 61.66493687 | R58: 82.72020282 | S58: 79.49088553 | T58: 60.35000347 | U58: 66.32669511 | V58: 57.24117215 | W58: 46.46736017 | Y58: 53.33653879 | Z58: 62.9486307 | AA58: 70.99886561 | AB58: 49.85286406 | AC58: 54.37480151 | AD58: 89.87348642 | AE58: 108.5830023 | AF58: 80.78945454 | AG58: 97.52359471 | AH58: 137.8000679 | AI58: 194.6455689 | AJ58: 182.7397858 | AK58: 169.7719437 | AL58: 183.5757481 | AM58: 197.3944334 | AN58: 178.0988568 | AO58: 230.3777952 | AP58: 183.2708153 | AQ58: 213.212286 | AR58: 220.2614509 | AS58: 171.9615156 | AT58: 192.4887295 | AU58: 158.0476337 | AV58: 193.4853348 | AW58: 169.7421989 | AX58: 190.2619743 | AY58: 214.0422953 | AZ58: 189.4661699 | BA58: 232.2669001 | BB58: 165.9996907 | BC58: 196.7905172 | BD58: 159.5172663 | BE58: 151.8537664 | BF58: 121.0540273 | BG58: 128.4230019 | BK58: 94.0302 | BL58: 106.1354 | BP58: 111.6301 | BQ58: 41.7395 | BU58: 96.4965 | BV58: 86.7689 | BW58: 141.7303 | CA58: 107.8909 | CB58: 115.2164 | CC58: 285.8222
A59: 9 | C59: 101.4322095 | D59: 80.12914157 | E59: 115.4435344 | F59: 93.3769283 | G59: 76.54231573 | H59: 86.33093415 | I59: 99.02484749 | J59: 99.73932701 | K59: 131.2136346 | L59: 96.2801587 | N59: 169.84306 | O59: 110.7448316 | P59: 139.1717741 | Q59: 175.9213118 | R59: 149.1827702 | S59: 133.7359401 | T59: 127.9315394 | U59: 143.3557245 | V59: 104.8971943 | W59: 116.7139552 | Y59: 124.4085406 | Z59: 145.1656106 | AA59: 171.2493763 | AB59: 133.4806251 | AC59: 123.3522617 | AD59: 129.9596841 | AE59: 131.0386125 | AF59: 110.8189556 | AG59: 109.0790779 | AH59: 131.4010035 | AI59: 100.4661646 | AJ59: 80.04060387 | AK59: 126.5478748 | AL59: 109.1202578 | AM59: 148.6700755 | AN59: 147.2761084 | AO59: 156.1072847 | AP59: 127.2726546 | AQ59: 149.6316411 | AR59: 180.3029202 | AS59: 200.2301989 | AT59: 179.8972948 | AU59: 182.5699107 | AV59: 201.3132519 | AW59: 201.2288298 | AX59: 196.9584018 | AY59: 205.4683659 | AZ59: 195.1938123 | BA59: 236.1355316 | BB59: 203.6131809 | BC59: 204.6426948 | BD59: 175.6742258 | BE59: 180.6714847 | BF59: 195.5809084 | BG59: 191.1025265 | BK59: 110.516 | BL59: 53.5432 | BP59: 107.1754 | BQ59: 58.2388 | BU59: 92.3572 | BV59: 75.712 | BW59: 149.4381 | CA59: 89.7836 | CB59: 125.8376 | CC59: 257.7939
BK60: 123.5942 | BL60: 66.3638 | BP60: 127.074 | BQ60: 62.4204 | BU60: 86.8621 | BV60: 91.3142 | BW60: 154.1867 | CA60: 74.6388 | CB60: 77.3738 | CC60: 229.6479
B61: MEAN | C61: =AVERAGE(C51:C59) -> 97.24524547 | D61: 96.24642138 | E61: =AVERAGE(E51:E59) -> 102.0966365 | F61: 94.84086269 | G61: 104.7531415 | H61: 96.38624806 | I61: 100.688382 | J61: 92.20072071 | K61: 97.72775995 | L61: 87.73834969 | N61: =AVERAGE(N51:N59) -> 93.90801949 | O61: 89.21846139 | P61: 91.25955422 | Q61: 88.02867257 | R61: 95.92298515 | S61: 90.71562336 | T61: 87.71189153 | U61: 89.04795851 | V61: 95.24560785 | W61: 92.34047823 | Y61: =AVERAGE(Y51:Y59) -> 88.83965704 | Z61: 102.3783733 | AA61: 101.7645059 | AB61: 106.0211912 | AC61: 101.6478894 | AD61: 117.7668881 | AE61: 125.7787997 | AF61: 129.659844 | AG61: 144.1924288 | AH61: 160.8637452 | AI61: 140.4474223 | AJ61: 139.2204166 | AK61: 157.7317004 | AL61: 154.4371369 | AM61: 156.7307814 | AN61: 165.4504583 | AO61: 165.1274703 | AP61: 162.5821404 | AQ61: 173.5994934 | AR61: 181.8549693 | AS61: 186.7086674 | AT61: 184.6015316 | AU61: 185.8066733 | AV61: 181.0897168 | AW61: 187.5459498 | AX61: 186.2122331 | AY61: 184.8913491 | AZ61: 185.8139513 | BA61: 182.2737071 | BB61: 169.7141744 | BC61: 190.7911866 | BD61: 186.6249194 | BE61: 191.4225567 | BF61: 182.9645737 | BG61: 192.1372776 | BK61: 95.8221 | BL61: 74.5748 | BP61: 110.7146 | BQ61: 40.5613 | BU61: 92.2448 | BV61: 78.8983 | BW61: 128.6903 | CA61: 111.4703 | CB61: 87.807 | CC61: 246.4264
B62: SEM | C62: =_xlfn.STDEV.S(C51:C59)/SQRT(10) -> 3.483008938 | D62: 3.729017586 | E62: =_xlfn.STDEV.S(E51:E59)/SQRT(10) -> 6.327095041 | F62: 5.590718459 | G62: 6.5406893 | H62: 6.212151616 | I62: 4.4451949 | J62: 6.26604393 | K62: 6.854407928 | L62: 7.632904472 | N62: =_xlfn.STDEV.S(N51:N59)/SQRT(10) -> 13.6252655 | O62: 6.910303599 | P62: 11.80729399 | Q62: 13.81674673 | R62: 14.01386943 | S62: 9.805417285 | T62: 12.22310664 | U62: 16.5889851 | V62: 14.90428394 | W62: 17.63101157 | Y62: =_xlfn.STDEV.S(Y51:Y59)/SQRT(10) -> 16.04565752 | Z62: 13.63073527 | AA62: 15.19411893 | AB62: 18.36484999 | AC62: 19.4343825 | AD62: 18.44834727 | AE62: 15.83267454 | AF62: 17.84913567 | AG62: 19.55358872 | AH62: 21.62147988 | AI62: 15.37301101 | AJ62: 22.35762015 | AK62: 25.72122805 | AL62: 21.76087192 | AM62: 26.39088456 | AN62: 26.85129579 | AO62: 29.03066374 | AP62: 22.93805793 | AQ62: 24.95016319 | AR62: 25.75041469 | AS62: 28.93049085 | AT62: 27.03536092 | AU62: 24.0922583 | AV62: 24.33251835 | AW62: 28.10475237 | AX62: 26.54260961 | AY62: 26.86872484 | AZ62: 29.01745746 | BA62: 27.3632585 | BB62: 20.41832744 | BC62: 21.09163246 | BD62: 22.68657421 | BE62: 33.9371135 | BF62: 29.71779247 | BG62: 28.03770102 | BK62: 83.6135 | BL62: 87.2809 | BP62: 86.1928 | BQ62: 52.258 | BU62: 93.2507 | BV62: 106.1896 | BW62: 126.0488 | CA62: 82.4976 | CB62: 77.9716 | CC62: 278.1997
BK63: 76.2514 | BL63: 92.3242 | BP63: 83.8022 | BQ63: 67.7542 | BU63: 120.0873 | BV63: 107.4948 | BW63: 135.8881 | CA63: 102.7865 | CB63: 122.7315 | CC63: 209.4022
BK64: 70.8009 | BL64: 118.4651 | BP64: 95.227 | BQ64: 50.0347 | BU64: 100.275 | BV64: 104.1513 | BW64: 165.2172 | CA64: 97.3678 | CB64: 128.4123 | CC64: 191.0802
BK65: 104.7639 | BL65: 99.987 | BP65: 89.6233 | BQ65: 37.5058 | BU65: 94.1504 | BV65: 111.6339 | BW65: 125.113 | CA65: 96.0357 | CB65: 98.2996 | CC65: 149.593
BK66: 120.1535 | BL66: 70.0884 | BP66: 91.3139 | BQ66: 75.6788 | BU66: 80.3162 | BV66: 103.1749 | BW66: 158.816 | CA66: 90.3862 | CB66: 71.977 | CC66: 115.8592
BK67: 98.8406 | BL67: 85.8542 | BP67: 116.0523 | BQ67: 132.925 | BU67: 86.852 | BV67: 87.2267 | BW67: 104.8417 | CA67: 116.9861 | CB67: 149.3353 | CC67: 190.262
BK68: 106.162 | BL68: 73.9776 | BP68: 103.108 | BQ68: 123.8871 | BU68: 122.4123 | BV68: 113.1068 | BW68: 161.5283 | CA68: 96.3566 | CB68: 124.1989 | CC68: 214.0423
BK69: 120.6711 | BL69: 85.6181 | BP69: 111.4396 | BQ69: 118.0473 | BU69: 89.4261 | BV69: 118.6891 | BW69: 145.0376 | CA69: 117.5834 | CB69: 156.1673 | CC69: 189.4662
BK70: 90.5065 | BL70: 86.4592 | BP70: 117.4024 | BQ70: 79.6273 | BU70: 115.3111 | BV70: 91.9855 | BW70: 136.6 | CA70: 119.8786 | CB70: 139.8916 | CC70: 232.2669
BK71: 134.6453 | BL71: 116.984 | BP71: 106.4388 | BQ71: 122.5266 | BU71: 108.0471 | BV71: 71.2227 | BW71: 110.6953 | CA71: 91.0059 | CB71: 186.4046 | CC71: 165.9997
BK72: 75.7634 | BL72: 55.5786 | BP72: 144.3986 | BQ72: 79.6756 | BU72: 97.1044 | BW72: 133.6313 | CA72: 48.8382 | CB72: 216.1991 | CC72: 196.7905
BK73: 103.4961 | BL73: 68.8044 | BP73: 99.4796 | BQ73: 83.0661 | BU73: 106.3803 | BW73: 118.5165 | CA73: 143.9255 | CB73: 154.4387 | CC73: 159.5173
BK74: 93.4377 | BL74: 58.086 | BP74: 84.3362 | BQ74: 107.524 | BW74: 143.9379 | CA74: 128.8517 | CB74: 189.2715 | CC74: 151.8538
BK75: 67.2504 | BL75: 83.8322 | BP75: 65.2243 | BQ75: 87.7363 | BW75: 139.2235 | CA75: 94.0859 | CB75: 214.0852 | CC75: 121.054
BK76: 109.2269 | BL76: 52.2334 | BP76: 68.1726 | BQ76: 97.2773 | CA76: 88.8318 | CB76: 211.2834 | CC76: 128.423
BK77: 109.4866 | BL77: 105.6406 | BP77: 116.9936 | BQ77: 28.528 | CA77: 84.5824 | CB77: 169.8431 | CC77: 196.9584
BK78: 114.8305 | BL78: 59.7249 | BP78: 58.8495 | BQ78: 48.9809 | CA78: 117.2433 | CB78: 110.7448 | CC78: 205.4684
BK79: 100.284 | BL79: 48.6647 | BP79: 78.959 | BQ79: 63.0709 | CA79: 115.3629 | CB79: 139.1718 | CC79: 195.1938
BK80: 71.3126 | BL80: 82.1227 | BP80: 70.642 | BQ80: 27.4732 | CA80: 144.8691 | CB80: 175.9213 | CC80: 236.1355
BK81: 115.09 | BL81: 72.7941 | BP81: 130.1377 | BQ81: 46.3732 | CA81: 76.0319 | CB81: 149.1828 | CC81: 203.6132
BK82: 121.5822 | BL82: 88.6432 | BP82: 105.9681 | BQ82: 30.2596 | CA82: 84.1245 | CB82: 133.7359 | CC82: 204.6427
BK83: 89.3985 | BL83: 54.4222 | BP83: 105.4169 | BQ83: 23.2893 | CA83: 88.811 | CB83: 127.9315 | CC83: 175.6742
BK84: 114.7037 | BL84: 90.6651 | BP84: 133.0332 | BQ84: 48.3176 | CA84: 107.449 | CB84: 143.3557 | CC84: 180.6715
BK85: 59.6316 | BL85: 89.0183 | BP85: 96.1501 | BQ85: 63.3385 | CA85: 66.1083 | CB85: 104.8972 | CC85: 195.5809
BK86: 103.6804 | BL86: 109.908 | BP86: 144.9688 | BQ86: 48.9204 | CA86: 102.5877 | CB86: 116.714 | CC86: 191.1025
BP87: 162.234 | BQ87: 102.0271
BP88: 145.0941 | BQ88: 138.8753
BP89: 128.6418 | BQ89: 152.3949
BP90: 58.7623 | BQ90: 139.3659
BP91: 73.7389 | BQ91: 122.0613
BP92: 72.3164 | BQ92: 119.8769
BP93: 68.0062 | BQ93: 146.5224
BP94: 50.0874 | BQ94: 134.8536
BP95: 104.8513 | BQ95: 158.5515
BP96: 72.8902 | BQ96: 104.4717
BP97: 81.4947 | BQ97: 85.4034
BP98: 146.5581 | BQ98: 51.3007
BP99: 111.4189 | BQ99: 50.7296
BP100: 120.7634 | BQ100: 52.2447
BP101: 86.6037 | BQ101: 73.0588
BP102: 101.9127 | BQ102: 74.6706
BP103: 94.7479 | BQ103: 77.2952
BP104: 78.7591 | BQ104: 48.3901
BP105: 86.6278 | BQ105: 52.3299
BP106: 85.061 | BQ106: 71.9867
BP107: 109.9597 | BQ107: 72.8701
BP108: 105.4743 | BQ108: 77.4385
BP109: 104.7263 | BQ109: 101.2707
BP110: 112.1571 | BQ110: 53.5981
BP111: 109.8658 | BQ111: 110.339
BP112: 104.8338 | BQ112: 120.3385
BP113: 85.3027 | BQ113: 107.6447
BP114: 95.9914 | BQ114: 129.3644
BQ115: 89.6626
BQ116: 101.5708
BQ117: 86.619
BQ118: 72.8815
BQ119: 60.8688
BQ120: 55.8658
BQ121: 43.2083
BQ122: 50.7973
BQ123: 34.4645
BQ124: 20.3891
BQ125: 30.3056
BQ126: 49.1991

Sheet Figure 2
A2: Fig 2. Presynaptic modifications triggered by lactate perfusion.
A4: Fig 2A-B. Analysis of the paired-pulse ratio and 2B CV-2 of the MF EPSC.
B6: PPR | F6: CV-2
A7: CELL | B7: Baseline | C7: Lactate perfusion (2 mM) | D7: Washout | F7: Lactate perfusion (2 mM) | G7: Washout
A8: 1 | B8: 2.0537 | C8: 1.4895 | D8: 1.7737 | F8: 2.6514 | G8: 1.5556
A9: 2 | B9: 1.8116 | C9: 1.5243 | D9: 1.8636 | F9: 2.819 | G9: 0.719
A10: 3 | B10: 2.8089 | C10: 1.3929 | D10: 3.0034 | F10: 1.4848 | G10: 0.6428
A11: 4 | B11: 2.8262 | C11: 1.6585 | D11: 1.7466 | F11: 2.1967 | G11: 1.3909
A12: 5 | B12: 2.2016 | C12: 1.2074 | D12: 2.7513 | F12: 1.8229 | G12: 1.0949
A13: 6 | B13: 1.8808 | C13: 1.7757 | D13: 1.9739 | F13: 1.2393 | G13: 0.853
A14: 7 | B14: 1.9117 | C14: 1.4025 | D14: 2.1261 | F14: 1.3767 | G14: 1.5109
A15: 8 | B15: 3.1607 | C15: 2.1083 | D15: 2.5765 | F15: 1.3597 | G15: 2.4592
A16: 9 | B16: 2.6091 | C16: 1.5183 | D16: 2.6014 | F16: 1.0797 | G16: 0.6827
A17: 10 | B17: 1.5287 | C17: 1.0451 | D17: 1.6279 | F17: 1.0746 | G17: 0.8938
A19: MEAN | B19: =AVERAGE(B9:B17) -> 2.304366667 | C19: =AVERAGE(C9:C17) -> 1.514777778 | D19: 2.2523 | F19: =AVERAGE(F9:F17) -> 1.605933333 | G19: 1.138577778
A20: SEM | B20: =_xlfn.STDEV.S(B9:B17)/SQRT(10) -> 0.1782437825 | C20: =_xlfn.STDEV.S(C9:C17)/SQRT(10) -> 0.09897266009 | D20: 0.1553325948 | F20: =_xlfn.STDEV.S(F9:F17)/SQRT(10) -> 0.1833411854 | G20: 0.1843697927
A23: Fig 2A-B. Analysis of the paired-pulse ratio and CV-2 of the RC EPSC.
B25: PPR | F25: CV-2
A26: CELL | B26: Baseline | C26: Lactate perfusion (2 mM) | D26: Washout | F26: Lactate perfusion (2 mM) | G26: Washout
A27: 1 | B27: 1.1814 | C27: 1.4435 | D27: 1.145 | F27: 2.0189 | G27: 1.042
A28: 2 | B28: 1.4499 | C28: 2.3279 | D28: 1.3433 | F28: 1.838 | G28: 1.0992
A29: 3 | B29: 1.3944 | C29: 1.7289 | D29: 0.4213 | F29: 0.637 | G29: 0.8499
A30: 4 | B30: 1.0187 | C30: 2.579 | D30: 1.4663 | F30: 2.2127 | G30: 0.8396
A31: 5 | B31: 1.2214 | C31: 1.5018 | D31: 1.6104 | F31: 1.5449 | G31: 1.2983
A32: 6 | B32: 0.7886 | C32: 1.2916 | D32: 0.9663 | F32: 1.4971 | G32: 1.0104
A33: 7 | B33: 1.5852 | C33: 2.6119 | D33: 1.6361 | F33: 1.4305 | G33: 0.6905
A34: 8 | B34: 1.508 | C34: 1.5486 | D34: 1.5823 | F34: 1.0119 | G34: 1.3904
A35: 9 | B35: 1.55 | C35: 1.7319 | D35: 1.767 | F35: 1.4982 | G35: 0.7267
A36: 10 | B36: 1.4644 | C36: 2.0391 | D36: 1.65 | F36: 0.9794 | G36: 0.8144
A38: MEAN | B38: =AVERAGE(B27:B36) -> 1.3162 | C38: =AVERAGE(C27:C36) -> 1.88042 | D38: 1.3588 | F38: =AVERAGE(F27:F36) -> 1.46686 | G38: 0.97614
A39: SEM | B39: =_xlfn.STDEV.S(B27:B36)/SQRT(10) -> 0.08190719274 | C39: =_xlfn.STDEV.S(C27:C36)/SQRT(10) -> 0.1521905566 | D39: 0.1304711215 | F39: =_xlfn.STDEV.S(F27:F36)/SQRT(10) -> 0.1542491773 | G39: 0.07458056971

Sheet Figure 3
A2: Fig 3. Postsynaptic requirements for synaptic potentiation of CA3 pyramidal cells.
A4: Fig 3A. Averaged time-course graph with holding al -100 mV | BZ4: Fig 3B. Boxplots summarizing the changes in the RC EPSC amplitude in hiperpolarized cells | CI4: Fig 3F. Boxplots summarizing the changes in the RC EPSC amplitude in cells treated with BAPTA (20 mM) or D-APV
B6: Baseline | N6: Lactate perfusion (2 mM) + Hold -100 mV | Y6: Washout | AG6: Lactate perfusion (2 mM) + Hold -70 mV | AR6: Washout | CC6: Lactate perfusion (2 mM) | CL6: Lactate perfusion (2 mM)
A7: CELL | B7: TIME (min) | C7: 1 | D7: 2 | E7: 3 | F7: 4 | G7: 5 | H7: 6 | I7: 7 | J7: 8 | K7: 9 | L7: 10 | N7: 11 | O7: 12 | P7: 13 | Q7: 14 | R7: 15 | S7: 16 | T7: 17 | U7: 18 | V7: 19 | W7: 20 | Y7: 21 | Z7: 22 | AA7: 23 | AB7: 24 | AC7: 25 | AD7: 26 | AE7: 27 | AG7: 28 | AH7: 29 | AI7: 30 | AJ7: 31 | AK7: 32 | AL7: 33 | AM7: 34 | AN7: 35 | AO7: 36 | AP7: 37 | AR7: 38 | AS7: 39 | AT7: 40 | AU7: 41 | AV7: 42 | AW7: 43 | AX7: 44 | AY7: 45 | AZ7: 46 | BA7: 47 | BB7: 48 | BC7: 49 | BD7: 50 | BE7: 51 | BF7: 52 | BG7: 53 | BH7: 54 | BI7: 55 | BJ7: 56 | BK7: 57 | BL7: 58 | BM7: 59 | BN7: 60 | BO7: 61 | BP7: 62 | BQ7: 63 | BR7: 64 | BS7: 65 | BT7: 66 | BU7: 67 | BV7: 68 | BW7: 69 | BX7: 70 | BZ7: Baseline | CB7: Baseline | CC7: Holding -100 mV | CD7: Holding -70 mV | CE7: Washout | CI7: Baseline | CK7: Baseline | CL7: BAPTA (20 mM) | CM7: D-APV | CN7: Washout
A8: 1 | C8: 127.3525675 | D8: 107.3139996 | E8: 111.0181835 | F8: 93.89563435 | G8: 93.58933827 | H8: 81.43337142 | I8: 85.01589697 | J8: 98.1880799 | K8: 78.52784928 | L8: 123.6650792 | N8: 108.1140912 | O8: 159.6558762 | P8: 154.4464496 | Q8: 190.1715026 | R8: 152.408289 | S8: 115.9718831 | T8: 95.75488453 | U8: 126.6192673 | V8: 54.99024684 | W8: 84.88851026 | Y8: 97.20573531 | Z8: 105.4003621 | AA8: 62.12380956 | AB8: 65.13668017 | AC8: 89.17093785 | AD8: 61.91197732 | AE8: 74.41765341 | AG8: 90.28448477 | AH8: 85.16904501 | AI8: 78.07699327 | AJ8: 67.27073671 | AK8: 72.22157465 | AL8: 52.43252945 | AM8: 63.35042538 | AN8: 66.81128962 | AO8: 50.03511336 | AP8: 107.0978741 | AR8: 68.80364894 | AS8: 66.81701552 | AT8: 89.94240295 | AU8: 49.56708115 | AV8: 77.46725952 | AW8: 86.82648124 | AX8: 43.61576801 | AY8: 68.43008088 | AZ8: 105.1627649 | BA8: 78.60800093 | BB8: 92.82502596 | BC8: 112.0716137 | BD8: 106.101696 | BE8: 114.5362988 | BF8: 107.7634268 | BG8: 120.5734885 | BH8: 96.38321905 | BI8: 171.8523942 | BJ8: 113.1007124 | BK8: 134.6674243 | BL8: 186.8781039 | BM8: 209.4925186 | BN8: 222.6804479 | BO8: 176.6844385 | BP8: 206.1719247 | BQ8: 179.0918755 | BR8: 169.215957 | BS8: 201.3570526 | BT8: 196.1929529 | BU8: 165.8996566 | BV8: 200.1604953 | BW8: 151.6182214 | BX8: 181.0584705 | BZ8: MEAN | CA8: =AVERAGE(CB8:CB74) -> 99.85471343 | CB8: 127.3526 | CC8: 108.1141 | CD8: 90.2845 | CE8: 113.1007 | CI8: MEAN | CJ8: =AVERAGE(CK8:CK53) -> 100.0000022 | CK8: 102.6683 | CL8: 89.7245 | CM8: 82.7153 | CN8: 105.7542
A9: 2 | C9: 115.9149331 | D9: 121.7724762 | E9: 120.2762312 | F9: 114.9577944 | G9: 77.05591342 | H9: 79.31355641 | I9: 82.3945787 | J9: 81.15382181 | K9: 98.91902956 | L9: 124.1565982 | N9: 90.749768 | O9: 86.73912426 | P9: 128.1014714 | Q9: 155.9976196 | R9: 130.4046485 | S9: 110.5070081 | T9: 122.413721 | U9: 140.8125835 | V9: 131.3949767 | W9: 189.105963 | Y9: 110.0314478 | Z9: 111.8198635 | AA9: 46.78828306 | AB9: 102.2732456 | AC9: 83.30902081 | AD9: 76.7220063 | AE9: 53.18937281 | AG9: 44.18155659 | AH9: 88.41623259 | AI9: 118.3841077 | AJ9: 99.2074013 | AK9: 96.19088027 | AL9: 100.56199 | AM9: 72.17636096 | AN9: 47.06147744 | AO9: 82.97891317 | AP9: 108.704691 | AR9: 92.05123299 | AS9: 110.5108062 | AT9: 68.76902454 | AU9: 64.84565407 | AV9: 122.7703914 | AW9: 93.25025 | AX9: 109.4597673 | AY9: 190.5794482 | AZ9: 110.1123968 | BA9: 140.0081803 | BB9: 128.8641373 | BC9: 155.9217335 | BD9: 79.84856198 | BE9: 114.7984405 | BF9: 176.7376062 | BG9: 155.4967649 | BH9: 157.689911 | BI9: 170.8525508 | BJ9: 128.9779705 | BK9: 147.5323993 | BL9: 147.6006971 | BM9: 216.7997496 | BN9: 138.3196898 | BO9: 216.2027714 | BP9: 178.8180748 | BQ9: 109.0040938 | BR9: 145.5014961 | BS9: 134.053455 | BT9: 192.6788527 | BU9: 195.7775861 | BV9: 163.6322063 | BW9: 184.9475001 | BX9: 191.2034549 | BZ9: MEDIAN | CA9: =MEDIAN(CB8:CB74) -> 98.2958 | CB9: 107.314 | CC9: 159.6559 | CD9: 85.169 | CE9: 134.6674 | CI9: MEDIAN | CJ9: =MEDIAN(CK8:CK53) -> 99.6995 | CK9: 116.4175 | CL9: 69.2952 | CM9: 63.5466 | CN9: 99.5676
A10: 3 | C10: 87.25791172 | D10: 92.4093674 | E10: 112.6308821 | F10: 74.20755518 | G10: 127.9625993 | H10: 81.27649845 | I10: 100.8929202 | J10: 104.7462913 | K10: 90.64928834 | L10: 127.9666859 | N10: 138.7847481 | O10: 104.9752435 | P10: 155.7620704 | Q10: 124.6448131 | R10: 108.7448025 | S10: 119.9573986 | T10: 214.308782 | U10: 119.3911477 | V10: 122.9194859 | W10: 119.2276083 | Y10: 175.5726942 | Z10: 106.8600243 | AA10: 130.9962379 | AB10: 87.55023771 | AC10: 83.2961958 | AD10: 97.07021098 | AE10: 125.7582354 | AG10: 149.1285473 | AH10: 128.0804831 | AI10: 111.9317544 | AJ10: 118.0174236 | AK10: 96.24638591 | AL10: 146.7388435 | AM10: 122.4861116 | AN10: 134.0053396 | AO10: 73.43483713 | AP10: 128.7148773 | AR10: 149.5046828 | AS10: 119.5158442 | AT10: 98.93863659 | AU10: 102.1685197 | AV10: 110.5069274 | AW10: 154.7399524 | AX10: 186.7157849 | AY10: 207.5526065 | AZ10: 148.2188642 | BA10: 149.7315917 | BB10: 129.2709056 | BC10: 146.4690051 | BD10: 158.5463074 | BE10: 153.3417022 | BF10: 144.9501433 | BG10: 132.5396264 | BH10: 137.2761029 | BI10: 109.9774708 | BJ10: 123.6247444 | BK10: 116.2573443 | BL10: 136.1926647 | BM10: 129.7063258 | BN10: 135.9902859 | BO10: 141.4207803 | BP10: 136.1949935 | BQ10: 137.5898734 | BR10: 138.9847533 | BS10: 140.3796332 | BT10: 141.7745131 | BU10: 143.1693931 | BV10: 144.564273 | BW10: 145.9591529 | BX10: 147.3540328 | BZ10: Q3 | CA10: =_xlfn.QUARTILE.INC(CB8:CB74, 3) -> 111.66375 | CB10: 111.0182 | CC10: 154.4464 | CD10: 78.077 | CE10: 186.8781 | CI10: Q3 | CJ10: =_xlfn.QUARTILE.INC(CK8:CK53, 3) -> 109.80155 | CK10: 101.4651 | CL10: 88.7876 | CM10: 74.7647 | CN10: 73.7863
A11: 4 | C11: 89.05663669 | D11: 80.76189647 | E11: 63.66928357 | F11: 88.48725352 | G11: 183.3372201 | H11: 133.7083023 | I11: 86.60117205 | J11: 78.93849627 | K11: 74.7780788 | L11: 109.718297 | N11: 129.3872065 | O11: 131.2133354 | P11: 133.513063 | Q11: 77.92586041 | R11: 107.6674093 | S11: 71.90172127 | T11: 105.5352671 | U11: 82.67481301 | V11: 118.0379183 | W11: 90.95079705 | Y11: 121.3975847 | Z11: 59.10911353 | AA11: 61.24334436 | AB11: 75.3518427 | AC11: 121.0780372 | AD11: 107.3828965 | AE11: 115.7878995 | AG11: 122.1722471 | AH11: 117.4442992 | AI11: 150.0918983 | AJ11: 138.0343409 | AK11: 122.6104969 | AL11: 131.196728 | AM11: 114.2021124 | AN11: 152.4776135 | AO11: 124.2740985 | AP11: 146.0816708 | AR11: 267.3562576 | AS11: 284.2173264 | AT11: 241.8085542 | AU11: 254.076502 | AV11: 171.7091895 | AW11: 238.5780733 | AX11: 221.0153509 | AY11: 181.677079 | AZ11: 230.7334367 | BA11: 228.928754 | BB11: 261.5113652 | BC11: 296.017958 | BD11: 233.8039333 | BE11: 272.6370042 | BF11: 246.2895071 | BG11: 246.8988625 | BH11: 247.5082179 | BI11: 248.1175733 | BJ11: 248.7269286 | BK11: 249.336284 | BL11: 249.9456394 | BM11: 250.5549948 | BN11: 251.1643502 | BO11: 251.7737056 | BP11: 264.3447058 | BQ11: 222.5716501 | BR11: 181.38659 | BS11: 196.7109993 | BT11: 205.585685 | BU11: 180.2919842 | BV11: 310.2449718 | BZ11: Q1 | CA11: =_xlfn.QUARTILE.INC(CB8:CB74, 1) -> 81.90775 | CB11: 93.8956 | CC11: 190.1715 | CD11: 67.2707 | CE11: 209.4925 | CI11: Q1 | CJ11: =_xlfn.QUARTILE.INC(CK8:CK53, 1) -> 89.3188 | CK11: 110.1503 | CL11: 72.7654 | CM11: 64.9932 | CN11: 100.1618
A12: 5 | C12: 101.4322095 | D12: 78.86705747 | E12: 90.23411605 | F12: 159.9926571 | G12: 91.22291533 | H12: 70.14965014 | I12: 126.3376815 | J12: 99.30958702 | K12: 109.4564816 | L12: 74.42985383 | N12: 114.7530284 | O12: 91.61127174 | P12: 70.95941928 | Q12: 145.6950041 | R12: 101.5350706 | S12: 131.7994844 | T12: 77.23375008 | U12: 94.73191272 | V12: 108.2262198 | W12: 110.489351 | Y12: 149.0607751 | Z12: 121.7434797 | AA12: 136.7600075 | AB12: 99.77230968 | AC12: 95.04039674 | AD12: 106.6277995 | AE12: 124.985312 | AG12: 98.00954728 | AH12: 104.7879166 | AI12: 140.4507885 | AJ12: 146.7471558 | AK12: 81.45611381 | AL12: 132.5486583 | AM12: 110.6738895 | AN12: 107.456848 | AO12: 68.07470967 | AP12: 97.80844635 | AR12: 79.10772317 | AS12: 86.2765945 | AT12: 130.514678 | AU12: 119.2085476 | AV12: 126.5401164 | AW12: 122.1722471 | AX12: 117.4442992 | AY12: 150.0918983 | AZ12: 138.0343409 | BA12: 122.6104969 | BB12: 131.196728 | BC12: 114.2021124 | BD12: 152.4776135 | BE12: 124.2740985 | BF12: 146.0816708 | BG12: 123.3247969 | BH12: 141.4543728 | BI12: 159.4276035 | BJ12: 137.7802839 | BK12: 148.3198348 | BL12: 134.7784738 | BM12: 146.0386786 | BN12: 154.9942694 | BO12: 122.9715544 | BP12: 145.8237063 | BQ12: 146.5091752 | BR12: 131.5568083 | BS12: 161.4136651 | BT12: 154.1801345 | BU12: 148.9797369 | BV12: 146.9876545 | BW12: 139.5244936 | CB12: 93.5893 | CC12: 152.4083 | CD12: 72.2216 | CE12: 222.6804 | CK12: 96.3607 | CL12: 51.0659 | CM12: 91.979 | CN12: 65.6146
A13: 6 | C13: 107.8915608 | D13: 116.1994262 | E13: 112.3092834 | F13: 105.2872812 | G13: 98.29581456 | H13: 125.0850717 | I13: 57.96434318 | J13: 82.38206119 | K13: 108.3377184 | L13: 94.13900004 | N13: 123.1620335 | O13: 102.3447073 | P13: 128.8563762 | Q13: 111.5865281 | R13: 100.7996886 | S13: 119.0197741 | T13: 109.8052153 | U13: 149.9503973 | V13: 81.82931337 | W13: 66.57000524 | Y13: 119.569113 | Z13: 83.57225397 | AA13: 87.92152474 | AB13: 56.10933703 | AC13: 93.76633188 | AD13: 73.20448789 | AE13: 109.3457516 | AG13: 88.14671429 | AH13: 110.8547506 | AI13: 71.56555757 | AJ13: 63.414335 | AK13: 74.98883045 | AL13: 78.45451524 | AM13: 80.94875721 | AN13: 83.94285415 | AO13: 100.6340824 | AP13: 121.8613916 | AR13: 68.80573483 | AS13: 64.78667462 | AT13: 100.3745565 | AU13: 104.6258766 | AV13: 71.58642914 | AW13: 74.3375012 | AX13: 61.53810012 | AY13: 81.48900581 | AZ13: 109.5174207 | BA13: 96.1696912 | BB13: 120.5042027 | BC13: 124.3182714 | BD13: 160.8331683 | BE13: 94.62366341 | BF13: 138.1365731 | BG13: 134.2679741 | BH13: 118.2230302 | BI13: 132.9380504 | BJ13: 134.2720154 | BK13: 122.3077325 | BL13: 112.3247018 | BM13: 128.218177 | BN13: 117.6201757 | BO13: 127.6513314 | BP13: 127.1457545 | BQ13: 141.7779644 | BR13: 132.5482597 | BS13: 135.2464849 | BT13: 112.7276201 | BU13: 89.9098481 | BV13: 83.53691045 | BW13: 142.3434607 | BX13: 125.2250844 | BZ13: Lactate (-100 mV) | CB13: 81.4334 | CC13: 115.9719 | CD13: 52.4325 | CE13: 176.6844 | CI13: Lactate + BAPTA | CK13: 107.2934 | CL13: 49.0095 | CM13: 83.9914 | CN13: 67.5973
A14: 7 | C14: 92.60325513 | D14: 109.0831196 | E14: 104.4562474 | F14: 76.77387859 | G14: 87.88111437 | H14: 93.17758004 | I14: 105.2695588 | J14: 107.1792376 | K14: 109.445735 | L14: 115.8166482 | N14: 95.25470493 | O14: 136.9506934 | P14: 128.5305639 | Q14: 135.4695967 | R14: 94.7164883 | S14: 147.7349959 | T14: 119.3270281 | U14: 152.6168391 | V14: 135.248329 | W14: 128.8036577 | Y14: 129.5790929 | Z14: 130.0814277 | AA14: 175.8658876 | AB14: 156.5159338 | AC14: 153.5258275 | AD14: 135.8084753 | AE14: 114.4930266 | AG14: 112.2644033 | AH14: 127.6946645 | AI14: 133.8662354 | AJ14: 152.7078675 | AK14: 175.206069 | AL14: 105.7280417 | AM14: 138.54342 | AN14: 137.1699667 | AO14: 108.9593424 | AP14: 123.7503851 | AR14: 125.201581 | AS14: 125.2554038 | AT14: 111.152086 | AU14: 115.2166356 | AV14: 113.9906896 | AW14: 86.75484066 | AX14: 100.9299221 | AY14: 118.8027636 | AZ14: 105.6483048 | BA14: 114.0006573 | BB14: 119.6300249 | BC14: 95.81285904 | BD14: 107.9247698 | BE14: 160.7818135 | BF14: 113.0816991 | BG14: 117.5887819 | BH14: 111.2278352 | BI14: 130.5379173 | BJ14: 143.957501 | BK14: 142.641857 | BL14: 156.2528033 | BM14: 162.3227097 | BN14: 128.1518167 | BO14: 98.80894208 | BP14: 126.8062708 | BQ14: 170.9680914 | BR14: 154.9291838 | BS14: 99.60896036 | BZ14: MEAN | CA14: =AVERAGE(CC8:CC87) -> 119.44285 | CB14: 85.0159 | CC14: 95.7549 | CD14: 63.3504 | CE14: 206.1719 | CI14: MEAN | CJ14: =AVERAGE(CL8:CL47) -> 70.0405475 | CK14: 81.202 | CL14: 87.2251 | CM14: 85.47 | CN14: 97.0686
A15: 8 | C15: 105.467644 | D15: 79.69821102 | E15: 105.0996937 | F15: 80.07203704 | G15: 94.77593111 | H15: 96.99538995 | I15: 100.2575658 | J15: 95.93033177 | K15: 108.8638326 | L15: 132.839363 | N15: 141.7924193 | O15: 140.3723491 | P15: 134.5744906 | Q15: 146.501712 | R15: 144.257569 | S15: 89.94908453 | T15: 96.35353372 | U15: 69.21692523 | V15: 114.8489964 | W15: 90.3640612 | Y15: 116.8023842 | Z15: 85.45844977 | AA15: 101.7234894 | AB15: 100.5784925 | AC15: 81.22957136 | AD15: 68.53862678 | AE15: 78.50736907 | AG15: 54.26263655 | AH15: 79.55831878 | AI15: 98.60355439 | AJ15: 58.41941276 | AK15: 81.14649901 | AL15: 88.26921135 | AM15: 88.78880627 | AN15: 65.9570999 | AO15: 60.95391839 | AP15: 105.9719585 | AR15: 121.3975847 | AS15: 59.10911353 | AT15: 61.24334436 | AU15: 75.3518427 | AV15: 121.0780372 | AW15: 107.3828965 | AX15: 115.7878995 | AY15: 139.8566327 | AZ15: 103.7022304 | BA15: 143.0828942 | BB15: 146.5114438 | BC15: 142.2693706 | BD15: 185.6898266 | BE15: 169.9958037 | BF15: 186.8375613 | BG15: 191.1602608 | BH15: 176.9564871 | BI15: 228.7365152 | BJ15: 222.4232249 | BK15: 226.0056961 | BL15: 191.6273706 | BM15: 178.616763 | BN15: 162.5064515 | BO15: 116.0302493 | BP15: 142.8117189 | BQ15: 143.1967451 | BR15: 146.1347272 | BS15: 109.0568629 | BT15: 137.0232059 | BU15: 199.3219382 | BV15: 177.7685486 | BW15: 170.4668198 | BX15: 168.0902409 | BZ15: MEDIAN | CA15: =MEDIAN(CC8:CC87) -> 119.35905 | CB15: 98.1881 | CC15: 126.6193 | CD15: 66.8113 | CE15: 179.0919 | CI15: MEDIAN | CJ15: =MEDIAN(CL8:CL47) -> 70.11405 | CK15: 105.0364 | CL15: 81.1587 | CM15: 68.9734 | CN15: 101.05
A16: 9 | C16: 109.2634787 | D16: 111.5983361 | E16: 100.9370615 | F16: 108.1176784 | G16: 86.14024234 | H16: 104.8543103 | I16: 90.8029153 | J16: 86.84945149 | K16: 98.10022483 | L16: 103.3363009 | N16: 124.6306831 | O16: 110.5159119 | P16: 141.543058 | Q16: 60.21638424 | R16: 151.3844668 | S16: 171.248359 | T16: 97.56605453 | U16: 95.16983296 | V16: 73.09381177 | W16: 88.25278025 | Y16: 130.0931026 | Z16: 53.06393445 | AA16: 85.30428091 | AB16: 52.55088953 | AC16: 53.16352552 | AD16: 106.7737019 | AE16: 131.3515716 | AG16: 116.9259555 | AH16: 153.9537153 | AI16: 80.01388239 | AJ16: 111.3911062 | AK16: 120.1450609 | AL16: 144.5700231 | AM16: 112.5711095 | AN16: 100.7529689 | AO16: 146.7881879 | AP16: 134.1552112 | AR16: 82.71793092 | AS16: 125.0863877 | AT16: 105.240603 | AU16: 145.5780055 | AV16: 131.6262015 | AW16: 132.2780703 | AX16: 155.2383395 | AY16: 144.1354439 | AZ16: 185.0009808 | BA16: 165.224608 | BB16: 246.4245296 | BC16: 181.0203558 | BD16: 178.2378416 | BE16: 157.0370147 | BF16: 209.696549 | BG16: 286.728735 | BH16: 156.1286234 | BI16: 188.1154653 | BJ16: 174.5016674 | BK16: 247.5622821 | BL16: 208.5587965 | BM16: 175.6967603 | BN16: 236.8366254 | BO16: 211.9448929 | BP16: 201.4123825 | BQ16: 178.6814746 | BR16: 200.033197 | BS16: 274.1862957 | BT16: 155.835886 | BU16: 176.1524649 | BV16: 203.026965 | BW16: 226.9801271 | BX16: 215.3008103 | BZ16: Q3 | CA16: =_xlfn.QUARTILE.INC(CC8:CC87, 3) -> 139.1816 | CB16: 78.5278 | CC16: 54.9902 | CD16: 50.0351 | CE16: 169.216 | CI16: Q3 | CJ16: =_xlfn.QUARTILE.INC(CL8:CL47, 3) -> 84.067225 | CK16: 88.0264 | CL16: 52.2662 | CM16: 80.1013 | CN16: 86.6115
BZ17: Q1 | CA17: =_xlfn.QUARTILE.INC(CC8:CC87, 1) -> 96.20385 | CB17: 123.6651 | CC17: 84.8885 | CD17: 107.0979 | CE17: 201.3571 | CI17: Q1 | CJ17: =_xlfn.QUARTILE.INC(CL8:CL47, 1) -> 56.163 | CK17: 91.3799 | CL17: 84.5551 | CM17: 65.3119 | CN17: 136.6844
B18: MEAN | C18: =AVERAGE(C8:C16) -> 104.0266886 | D18: =AVERAGE(D8:D16) -> 99.74487669 | E18: 102.2923314 | F18: 100.1990855 | G18: 104.4734543 | H18: 96.22152564 | I18: 92.83740361 | J18: 92.74192871 | K18: 97.45313761 | L18: 111.785314 | N18: =AVERAGE(N8:N16) -> 118.5142981 | O18: 118.2642792 | P18: 130.6985514 | Q18: 127.5787801 | R18: 121.3242703 | S18: 119.7877455 | T18: 115.3664707 | U18: 114.5759688 | V18: 104.509922 | W18: 107.6280816 | Y18: =AVERAGE(Y8:Y16) -> 127.7013255 | Z18: 95.23432323 | AA18: 98.74742945 | AB18: 88.42655208 | AC18: 94.84220496 | AD18: 92.67113139 | AE18: 103.0929102 | AG18: =AVERAGE(AG8:AG16) -> 97.2640103 | AH18: 110.6621584 | AI18: 109.2205302 | AJ18: 106.13442 | AK18: 102.2457679 | AL18: 108.9445045 | AM18: 100.4156659 | AN18: =AVERAGE(AN8:AN16) -> 99.51505087 | AO18: 90.68146699 | AP18: 119.3496118 | AR18: =AVERAGE(AR8:AR16) -> 117.2162641 | AS18: 115.7305741 | AT18: =AVERAGE(AT8:AT16) -> 111.9982096 | AU18: 114.5154072 | AV18: 116.3639157 | AW18: 121.8133681 | AX18: =AVERAGE(AX8:AX16) -> 123.5272479 | AY18: 142.5127732 | AZ18: 137.34786 | BA18: 137.5960972 | BB18: 152.9709292 | BC18: 152.0114755 | BD18: 151.4959687 | BE18: 151.3362044 | BF18: 163.2860819 | BG18: 167.6199212 | BH18: 149.2053111 | BI18: 171.1728379 | BJ18: 158.5961165 | BK18: 170.5145394 | BL18: 169.3510279 | BM18: 177.4940753 | BN18: 172.0293458 | BO18: 162.6098518 | BP18: 169.9477258 | BQ18: 158.8212159 | BR18: 155.5878858 | BS18: 161.3348232 | BT18: 161.9998563 | BU18: 162.437826 | BV18: 178.7402531 | BW18: 165.9771108 | BX18: 171.3720156 | CB18: 121.7725 | CC18: 90.7498 | CD18: 44.1816 | CE18: 196.193 | CK18: 123.704 | CL18: 87.8422 | CM18: 67.0862 | CN18: 105.4329
B19: SEM | C19: =_xlfn.STDEV.S(C8:C16)/SQRT(10) -> 4.141836896 | D19: =_xlfn.STDEV.S(D8:D16)/SQRT(10) -> 5.353598815 | E19: 5.313105329 | F19: 8.432069062 | G19: 10.34445104 | H19: 6.828632381 | I19: 5.94365826 | J19: 3.358512199 | K19: 4.268731481 | L19: 5.913987769 | N19: =_xlfn.STDEV.S(N8:N16)/SQRT(10) -> 5.661474048 | O19: 7.836754611 | P19: 7.839238536 | Q19: 12.6201646 | R19: 7.36869976 | S19: 9.258950995 | T19: 12.49978806 | U19: 9.61805346 | V19: 8.848631322 | W19: 11.39310116 | Y19: =_xlfn.STDEV.S(Y8:Y16)/SQRT(10) -> 7.266363588 | Z19: 8.474657451 | AA19: 13.31661206 | AB19: 10.09324671 | AC19: 8.9122018 | AD19: 7.625711109 | AE19: 8.688247686 | AG19: =_xlfn.STDEV.S(AG8:AG16)/SQRT(10) -> 10.44103327 | AH19: 7.632523601 | AI19: 9.150202009 | AJ19: 11.54611452 | AK19: 10.39996896 | AL19: 10.23549575 | AM19: 7.96030549 | AN19: =_xlfn.STDEV.S(AN8:AN16)/SQRT(10) -> 11.54699803 | AO19: 10.07053783 | AP19: 4.941654107 | AR19: =_xlfn.STDEV.S(AR8:AR16)/SQRT(10) -> 19.88367537 | AS19: 21.69935408 | AT19: =_xlfn.STDEV.S(AT8:AT16)/SQRT(10) -> 16.76190081 | AU19: 19.01778909 | AV19: 9.368008936 | AW19: 16.03083976 | AX19: =_xlfn.STDEV.S(AX8:AX16)/SQRT(10) -> 17.86625546 | AY19: 14.9649045 | AZ19: 14.05320701 | BA19: 13.81359735 | BB19: 18.69375059 | BC19: 18.93087372 | BD19: 14.95378012 | BE19: 16.51730782 | BF19: 14.42526309 | BG19: 19.42765355 | BH19: 14.11924963 | BI19: 14.36906637 | BJ19: 14.94145353 | BK19: 17.16789 | BL19: 13.70563532 | BM19: 13.15419163 | BN19: 16.09716434 | BO19: 16.93255706 | BP19: 14.76586525 | BQ19: 10.38971389 | BR19: 7.418048573 | BS19: 17.31898361 | BT19: 10.39909787 | BU19: 11.21448307 | BV19: 20.63674292 | BW19: 9.972117687 | BX19: 10.1331389 | BZ19: Lactate (-70 mV) | CB19: 120.2762 | CC19: 86.7391 | CD19: 88.4162 | CE19: 165.8997 | CI19: Lactate + D-APV | CK19: 116.3779 | CL19: 112.1732 | CM19: 87.7796 | CN19: 98.779
BZ20: MEAN | CA20: =AVERAGE(CD8:CD85) -> 101.4798731 | CB20: 114.9578 | CC20: 128.1015 | CD20: 118.3841 | CE20: 200.1605 | CI20: MEAN | CJ20: =AVERAGE(CM8:CM57) -> 77.10093 | CK20: 129.2747 | CL20: 84.8897 | CM20: 95.4224 | CN20: 120.3456
A21: Fig 3C. Analysis of the paired-pulse ratio | BZ21: MEDIAN | CA21: =MEDIAN(CD8:CD85) -> 100.69355 | CB21: 77.0559 | CC21: 155.9976 | CD21: 99.2074 | CE21: 151.6182 | CI21: MEDIAN | CJ21: =MEDIAN(CM8:CM57) -> 76.56395 | CK21: 102.4166 | CL21: 66.2733 | CM21: 83.9105 | CN21: 120.6248
BZ22: Q3 | CA22: =_xlfn.QUARTILE.INC(CD8:CD85, 3) -> 122.329925 | CB22: 79.3136 | CC22: 130.4046 | CD22: 96.1909 | CE22: 181.0585 | CI22: Q3 | CJ22: =_xlfn.QUARTILE.INC(CM8:CM57, 3) -> 85.10035 | CK22: 89.7235 | CL22: 62.7145 | CM22: 76.4482 | CN22: 97.4616
B23: PPR | BZ23: Q1 | CA23: =_xlfn.QUARTILE.INC(CD8:CD85, 1) -> 79.6722 | CB23: 82.3946 | CC23: 110.507 | CD23: 100.562 | CE23: 176.7376 | CI23: Q1 | CJ23: =_xlfn.QUARTILE.INC(CM8:CM57, 1) -> 66.576 | CK23: 89.1839 | CL23: 45.532 | CM23: 77.9938 | CN23: 103.3528
A24: CELL | B24: Baseline | C24: Lactate perfusion (2 mM) | D24: Washout | CB24: 81.1538 | CC24: 122.4137 | CD24: 72.1764 | CE24: 155.4968 | CK24: 64.6963 | CL24: 66.732 | CM24: 97.9314 | CN24: 95.6538
A25: 1 | B25: 2.0537 | C25: 1.4895 | D25: 1.7737 | BZ25: Washout | CB25: 98.919 | CC25: 140.8126 | CD25: 47.0615 | CE25: 157.6899 | CI25: Washout | CK25: 84.6232 | CL25: 89.0797 | CM25: 104.3928 | CN25: 90.3703
A26: 2 | B26: 1.8116 | C26: 1.5243 | D26: 1.8636 | BZ26: MEAN | CA26: =AVERAGE(CE14:CE81) -> 169.4556971 | CB26: 124.1566 | CC26: 131.395 | CD26: 82.9789 | CE26: 170.8526 | CI26: MEAN | CJ26: =AVERAGE(CN14:CN60) -> 103.860034 | CK26: 123.8134 | CL26: 32.1201 | CM26: 105.1111 | CN26: 78.9487
A27: 3 | B27: 2.8089 | C27: 1.3929 | D27: 3.0034 | BZ27: MEDIAN | CA27: =MEDIAN(CE14:CE81) -> 156.04435 | CB27: 87.2579 | CC27: 189.106 | CD27: 108.7047 | CE27: 128.978 | CI27: MEDIAN | CJ27: =MEDIAN(CN14:CN60) -> 97.4616 | CK27: 135.2855 | CL27: 44.3369 | CM27: 75.7962 | CN27: 88.8264
A28: 4 | B28: 2.8262 | C28: 1.6585 | D28: 1.7466 | BZ28: Q3 | CA28: =_xlfn.QUARTILE.INC(CE14:CE81, 3) -> 201.774575 | CB28: 92.4094 | CC28: 138.7847 | CD28: 149.1285 | CE28: 147.5324 | CI28: Q3 | CJ28: =_xlfn.QUARTILE.INC(CN14:CN60, 3) -> 114.93015 | CK28: 132.8954 | CL28: 79.2483 | CM28: 77.4937 | CN28: 124.0906
A29: 5 | B29: 2.2016 | C29: 1.2074 | D29: 2.7513 | BZ29: Q1 | CA29: =_xlfn.QUARTILE.INC(CE14:CE81, 1) -> 134.57195 | CB29: 112.6309 | CC29: 104.9752 | CD29: 128.0805 | CE29: 147.6007 | CI29: Q1 | CJ29: =_xlfn.QUARTILE.INC(CN14:CN60, 1) -> 88.0536 | CK29: 79.659 | CL29: 59.3346 | CM29: 128.8323 | CN29: 152.1204
A30: 6 | B30: 1.8808 | C30: 1.7757 | D30: 1.9739 | CB30: 74.2076 | CC30: 155.7621 | CD30: 111.9318 | CE30: 216.7997 | CK30: 74.0198 | CL30: 63.1086 | CM30: 76.6797 | CN30: 82.0846
A31: 7 | B31: 1.9117 | C31: 1.4025 | D31: 2.1261 | CB31: 127.9626 | CC31: 124.6448 | CD31: 118.0174 | CE31: 138.3197 | CK31: 93.3683 | CL31: 78.5057 | CM31: 67.0122 | CN31: 84.9301
A32: 8 | B32: 3.1607 | C32: 2.1083 | D32: 2.5765 | CB32: 81.2765 | CC32: 108.7448 | CD32: 96.2464 | CE32: 216.2028 | CK32: 63.939 | CL32: 36.1229 | CM32: 67.8682 | CN32: 143.3991
A33: 9 | B33: 2.6091 | C33: 1.5183 | D33: 2.6014 | CB33: 100.8929 | CC33: 119.9574 | CD33: 146.7388 | CE33: 144.9501 | CK33: 97.0196 | CL33: 54.0261 | CM33: 67.8239 | CN33: 139.1742
A34: 10 | B34: 1.5287 | C34: 1.0451 | D34: 1.6279 | CB34: 104.7463 | CC34: 214.3088 | CD34: 122.4861 | CE34: 132.5396 | CK34: 90.9201 | CL34: 54.273 | CM34: 109.5349 | CN34: 115.0203
CB35: 90.6493 | CC35: 119.3911 | CD35: 134.0053 | CE35: 137.2761 | CK35: 100.4557 | CL35: 58.4181 | CM35: 39.3157 | CN35: 85.163
A36: MEAN | B36: =AVERAGE(B26:B34) -> 2.304366667 | C36: =AVERAGE(C26:C34) -> 1.514777778 | D36: 2.2523 | CB36: 127.9667 | CC36: 122.9195 | CD36: 73.4348 | CE36: 109.9775 | CK36: 108.7553 | CL36: 53.0461 | CM36: 78.4451 | CN36: 88.1859
A37: SEM | B37: =_xlfn.STDEV.S(B26:B34)/SQRT(10) -> 0.1782437825 | C37: =_xlfn.STDEV.S(C26:C34)/SQRT(10) -> 0.09897266009 | D37: 0.1553325948 | CB37: 80.7619 | CC37: 119.2276 | CD37: 128.7149 | CE37: 123.6247 | CK37: 121.5657 | CL37: 56.793 | CM37: 45.2529 | CN37: 90.7741
CB38: 63.6693 | CC38: 114.753 | CD38: 98.0095 | CE38: 116.2573 | CK38: 78.4685 | CL38: 92.7963 | CM38: 90.8112 | CN38: 87.9213
A39: Fig 3D. Averaged time-course graph showing the effect of lactate on cells loaded with BAPTA (20 mM). | CB39: 88.4873 | CC39: 91.6113 | CD39: 104.7879 | CE39: 136.1927 | CK39: 91.4933 | CL39: 83.3021 | CM39: 81.0739 | CN39: 115.4835
CB40: 183.3372 | CC40: 70.9594 | CD40: 140.4508 | CE40: 129.7063 | CK40: 98.9433 | CL40: 75.4043 | CM40: 66.4306 | CN40: 114.84
C41: Baseline | N41: Lactate perfusion (2 mM) | Y41: Washout | CB41: 133.7083 | CC41: 145.695 | CD41: 146.7472 | CE41: 135.9903 | CK41: 87.6888 | CL41: 63.0287 | CM41: 74.9857 | CN41: 84.3566
A42: CELL | B42: TIME (min) | C42: 1 | D42: 2 | E42: 3 | F42: 4 | G42: 5 | H42: 6 | I42: 7 | J42: 8 | K42: 9 | L42: 10 | N42: 11 | O42: 12 | P42: 13 | Q42: 14 | R42: 15 | S42: 16 | T42: 17 | U42: 18 | V42: 19 | W42: 20 | Y42: 21 | Z42: 22 | AA42: 23 | AB42: 24 | AC42: 25 | AD42: 26 | AE42: 27 | AF42: 28 | AG42: 29 | AH42: 30 | AI42: 31 | AJ42: 32 | AK42: 33 | AL42: 34 | AM42: 35 | AN42: 36 | AO42: 37 | AP42: 38 | AQ42: 39 | AR42: 40 | AS42: 41 | AT42: 42 | AU42: 43 | AV42: 44 | AW42: 45 | AX42: 46 | AY42: 47 | AZ42: 48 | BA42: 49 | BB42: 50 | BC42: 51 | BD42: 52 | BE42: 53 | BF42: 54 | BG42: 55 | CB42: 86.6012 | CC42: 101.5351 | CD42: 81.4561 | CE42: 141.4208 | CK42: 113.3227 | CL42: 70.9329 | CM42: 75.2544 | CN42: 83.9397
D43: 107.8829416 | E43: 123.0550403 | F43: 95.47466716 | G43: 79.86454711 | H43: 113.9044868 | I43: 87.45259204 | J43: 100.2100861 | K43: 93.54996779 | L43: 98.60567111 | N43: 89.72451555 | O43: 69.29516381 | P43: 88.78760902 | Q43: 72.76540973 | R43: 51.06589609 | S43: 49.00949102 | T43: 87.22510036 | U43: 81.15865549 | V43: 52.26621405 | W43: 84.5550664 | Y43: 100.7548688 | Z43: 61.20424252 | AA43: 59.11790433 | AB43: 87.92553528 | AC43: 80.59790845 | AD43: 53.42462564 | AE43: 72.51297379 | AF43: 88.35357884 | AG43: 59.71955996 | AH43: 88.0871741 | AI43: 56.07370642 | AJ43: 76.77844283 | AK43: 75.04531541 | AL43: 71.50722109 | AM43: 53.15822091 | AN43: 63.41031318 | AO43: 84.50717342 | AP43: 70.31288975 | AQ43: 54.6858076 | AR43: 72.62671963 | AS43: 96.12720909 | AT43: 69.52864211 | AU43: 45.09723274 | AV43: 61.18628265 | AW43: 76.75150303 | AX43: 73.3421211 | AY43: 81.80720634 | AZ43: 75.32768447 | BA43: 63.12894189 | BB43: 64.35919296 | BC43: 57.65417495 | BD43: 68.27145124 | BE43: 48.53056116 | BF43: 75.74874364 | CB43: 78.9385 | CC43: 131.7995 | CD43: 132.5487 | CE43: 127.6513 | CK43: 108.3866 | CL43: 60.3998 | CM43: 80.6582 | CN43: 107.8358
C44: 105.6247315 | D44: 105.8633787 | E44: 103.3625725 | F44: 104.9709464 | G44: 85.82703253 | H44: 74.27427646 | I44: 112.9569654 | J44: 87.97385696 | K44: 121.1259598 | L44: 99.115295 | N44: 87.84223384 | O44: 112.1732227 | P44: 84.88972929 | Q44: 66.27329887 | R44: 62.71453807 | S44: 45.5319814 | T44: 66.73197947 | U44: 89.07967427 | V44: 32.12007458 | W44: 44.33692126 | Y44: 46.67319827 | Z44: 51.44895685 | AA44: 37.14710926 | AB44: 42.7694302 | AC44: 60.71927882 | AD44: 46.15917791 | AE44: 51.24105426 | AF44: 68.02276285 | AG44: 37.51654545 | AH44: 78.02598201 | AI44: 51.1049464 | AJ44: 83.09339814 | AK44: 58.51462243 | AL44: 42.28482576 | AM44: 45.84757331 | AN44: 69.3210284 | AO44: 64.51685295 | AP44: 77.9945716 | AQ44: 71.98934978 | AR44: 70.33211947 | AS44: 92.66734845 | AT44: 94.43027499 | AU44: 96.8114975 | AV44: 102.8093964 | AW44: 108.1320874 | AX44: 113.4547783 | CB44: 74.7781 | CC44: 77.2338 | CD44: 110.6739 | CE44: 127.1458 | CK44: 108.2183 | CL44: 82.4018 | CM44: 88.1118 | CN44: 73.7432
C45: 101.5222042 | D45: 99.63091251 | E45: 86.46814561 | F45: 102.2220159 | G45: 106.4454203 | H45: 93.05381984 | I45: 81.59578497 | J45: 119.1067619 | K45: 99.82870362 | L45: 111.2793479 | N45: 79.24830368 | O45: 59.3345962 | P45: 63.10860751 | Q45: 78.50571884 | R45: 36.12288071 | S45: 54.02614622 | T45: 54.27301556 | U45: 58.41807191 | V45: 53.04605686 | W45: 56.79296649 | Y45: 64.40208974 | Z45: 107.2569885 | AA45: 119.6803257 | AB45: 113.3434948 | AC45: 118.7253682 | AD45: 86.07492969 | AE45: 119.4881534 | AF45: 96.15965112 | AG45: 100.6343612 | AH45: 102.9315818 | AI45: 94.68434468 | AJ45: 105.0854185 | AK45: 79.95639079 | AL45: 118.7933632 | AM45: 86.43266852 | AN45: 109.0959489 | AO45: 99.11470472 | AP45: 96.98008869 | AQ45: 70.30184224 | AR45: 72.49410897 | AS45: 81.49822003 | AT45: 82.08804708 | AU45: 89.57693856 | AV45: 114.1323959 | AW45: 104.5103715 | AX45: 95.43678178 | AY45: 103.7874978 | AZ45: 130.6904386 | BA45: 103.971293 | BB45: 119.9863251 | BC45: 98.5130508 | BD45: 94.89425898 | BE45: 93.03016606 | BF45: 115.2972677 | BG45: 96.80121983 | CB45: 109.7183 | CC45: 94.7319 | CD45: 107.4568 | CE45: 141.778 | CK45: 122.0081 | CL45: 83.9046 | CM45: 65.8256 | CN45: 110.9041
C46: 118.1317274 | D46: 113.146376 | E46: 97.33864666 | F46: 115.8887524 | G46: 97.66252524 | H46: 99.41083648 | I46: 80.65084743 | J46: 91.68726486 | K46: 99.81675352 | L46: 117.5443734 | N46: 92.7963392 | O46: 83.30208184 | P46: 75.4043179 | Q46: 63.02870263 | R46: 70.93285996 | S46: 60.39984339 | T46: 82.40182556 | U46: 83.90456166 | V46: 97.76693551 | W46: 81.26131983 | Y46: 69.39389894 | Z46: 106.5905279 | AA46: 85.02002736 | AB46: 94.05243986 | AC46: 98.25488697 | AD46: 96.33291647 | AE46: 91.87903613 | AF46: 82.28250211 | AG46: 94.87385695 | AH46: 90.76303378 | AI46: 95.37565727 | AJ46: 111.7449036 | AK46: 128.8316916 | AL46: 70.0459206 | AM46: 89.5857768 | AN46: 79.16302677 | AO46: 82.2105878 | AP46: 64.72987027 | CB46: 78.8671 | CC46: 108.2262 | CD46: 88.1467 | CE46: 132.5483 | CK46: 82.0342 | CL46: 97.7669 | CM46: 38.1972 | CN46: 78.7071
CB47: 90.2341 | CC47: 110.4894 | CD47: 110.8548 | CE47: 135.2465 | CK47: 87.321 | CL47: 81.2613 | CM47: 66.2052 | CN47: 94.8809
B48: MEAN | C48: =AVERAGE(C43:C46) -> 108.4262211 | D48: =AVERAGE(D43:D46) -> 106.6309022 | E48: 102.5561013 | F48: 104.6390955 | G48: 92.44988129 | H48: 95.16085488 | I48: 90.66404747 | J48: 99.74449246 | K48: 103.5803462 | L48: 106.6361719 | N48: =AVERAGE(N43:N46) -> 87.40284807 | O48: 81.02626613 | P48: 78.04756593 | Q48: 70.14328252 | R48: 55.20904371 | S48: 52.24186551 | T48: 72.65798024 | U48: 78.14024083 | V48: 58.79982025 | W48: 66.7365685 | Y48: =AVERAGE(Y43:Y46) -> 70.30601395 | Z48: 81.62517895 | AA48: 75.24134167 | AB48: 84.52272504 | AC48: 89.57436061 | AD48: 70.49791243 | AE48: 83.7803044 | AF48: 83.70462373 | AG48: 73.18608088 | AH48: 89.95194291 | AI48: 74.30966369 | AJ48: 94.17554078 | AK48: 85.58700507 | AL48: 75.65783265 | AM48: 68.75605988 | AN48: 80.24757931 | AO48: 82.58732972 | AP48: 77.50435508 | AQ48: 65.65899987 | AR48: 71.81764936 | AS48: 90.09759252 | AT48: 82.01565472 | AU48: 77.1618896 | AV48: 92.70935832 | AW48: 96.46465399 | AX48: 94.07789374 | AY48: 92.79735207 | AZ48: 103.0090615 | BA48: 83.55011743 | BB48: 92.17275903 | BC48: 78.08361287 | BD48: 81.58285511 | BE48: 70.78036361 | BF48: 95.52300568 | BG48: 96.80121983 | CB48: 159.9927 | CC48: 123.162 | CD48: 71.5656 | CE48: 112.7276 | CK48: 103.2626 | CM48: 117.4539 | CN48: 93.2769
B49: SEM | C49: =_xlfn.STDEV.S(C43:C46)/SQRT(4) -> 4.325948529 | D49: =_xlfn.STDEV.S(D43:D46)/SQRT(4) -> 2.792966597 | E49: =_xlfn.STDEV.S(E43:E46)/SQRT(4) -> 7.675182132 | F49: 4.247488735 | G49: 5.95328712 | H49: 8.216217876 | I49: 7.58169504 | J49: 6.943708374 | K49: 6.032526419 | L49: 4.669051254 | N49: =_xlfn.STDEV.S(N43:N46)/SQRT(4) -> 2.903583137 | O49: =_xlfn.STDEV.S(O43:O46)/SQRT(4) -> 11.4871651 | P49: 5.717830036 | Q49: 3.444801794 | R49: 7.555451307 | S49: 3.230158026 | T49: 7.529209353 | U49: 6.776020049 | V49: 13.86253555 | W49: =_xlfn.STDEV.S(W43:W46)/SQRT(4) -> 9.700028719 | Y49: =_xlfn.STDEV.S(Y43:Y46)/SQRT(4) -> 11.25955526 | Z49: =_xlfn.STDEV.S(Z43:Z46)/SQRT(4) -> 14.74188289 | AA49: 17.75195241 | AB49: 14.93421403 | AC49: 12.37714702 | AD49: 12.22688983 | AE49: 14.50975383 | AF49: 5.948975272 | AG49: 14.93717584 | AH49: =_xlfn.STDEV.S(AH43:AH46)/SQRT(4) -> 5.122131711 | AI49: =_xlfn.STDEV.S(AI43:AI46)/SQRT(4) -> 12.00663967 | AJ49: 8.431986941 | AK49: 15.12681905 | AL49: 15.87228379 | AM49: 11.23399208 | AN49: 10.15007277 | AO49: 7.091802719 | AP49: 7.038283098 | AQ49: 4.770223577 | AR49: 0.6441070724 | AS49: 3.822779236 | AT49: 6.225487138 | AU49: 14.00170861 | AV49: 13.94032643 | AW49: 8.583930435 | AX49: 10.04541251 | AY49: 7.771206569 | AZ49: 19.57368943 | BA49: 14.43995171 | BB49: 19.66716118 | BC49: 14.44579409 | BD49: 9.412583946 | BE49: 15.73298619 | BF49: 13.98251478 | CB49: 91.2229 | CC49: 102.3447 | CD49: 63.4143 | CE49: 89.9098 | CK49: 92.3321 | CM49: 106.7387 | CN49: 109.4591
CB50: 70.1497 | CC50: 128.8564 | CD50: 74.9888 | CE50: 83.5369 | CK50: 94.1353 | CM50: 72.7577 | CN50: 121.1897
CB51: 126.3377 | CC51: 111.5865 | CD51: 78.4545 | CE51: 142.3435 | CK51: 95.102 | CM51: 79.5418 | CN51: 96.9656
A52: Fig 3E. Averaged time-course graph showing the effect of lactate in the presence of D-APV (50 µM). | CB52: 99.3096 | CC52: 100.7997 | CD52: 80.9488 | CE52: 125.2251 | CK52: 111.5459 | CM52: 81.0505 | CN52: 86.5072
CB53: 109.4565 | CC53: 119.0198 | CD53: 83.9429 | CE53: 311.1436 | CK53: 104.0405 | CM53: 49.7167 | CN53: 93.7293
C54: Baseline | N54: Lactate perfusion (2 mM) | Y54: Washout | CB54: 74.4299 | CC54: 109.8052 | CD54: 100.6341 | CE54: 327.6748 | CM54: 42.015 | CN54: 113.4
A55: CELL | B55: TIME (min) | C55: 1 | D55: 2 | E55: 3 | F55: 4 | G55: 5 | H55: 6 | I55: 7 | J55: 8 | K55: 9 | L55: 10 | N55: 11 | O55: 12 | P55: 13 | Q55: 14 | R55: 15 | S55: 16 | T55: 17 | U55: 18 | V55: 19 | W55: 20 | Y55: 21 | Z55: 22 | AA55: 23 | AB55: 24 | AC55: 25 | AD55: 26 | AE55: 27 | AF55: 28 | AG55: 29 | AH55: 30 | AI55: 31 | AJ55: 32 | AK55: 33 | AL55: 34 | AM55: 35 | AN55: 36 | AO55: 37 | AP55: 38 | AQ55: 39 | AR55: 40 | AS55: 41 | AT55: 42 | AU55: 43 | AV55: 44 | AW55: 45 | AX55: 46 | AY55: 47 | AZ55: 48 | BA55: 49 | BB55: 50 | BC55: 51 | BD55: 52 | BE55: 53 | BF55: 54 | BG55: 55 | CB55: 116.1994 | CC55: 149.9504 | CD55: 121.8614 | CE55: 205.5857 | CM55: 53.3797 | CN55: 103.812
C56: 102.6683129 | D56: 116.41754 | E56: 101.4651028 | F56: 110.1502971 | G56: 96.36071623 | H56: 107.2933924 | I56: 81.20197768 | J56: 105.0364432 | K56: 88.02635401 | L56: 91.37986387 | N56: 82.71525666 | O56: 63.54663327 | P56: 74.76466871 | Q56: 64.99320484 | R56: 91.9789998 | S56: 83.9913533 | T56: 85.47004493 | U56: 68.97344237 | V56: 80.10129835 | W56: 65.3119202 | Y56: 70.38171746 | Z56: 47.09079643 | AA56: 42.27547831 | AB56: 46.04941406 | AC56: 51.62199006 | AD56: 55.14021108 | AE56: 96.62507703 | AF56: 91.14021086 | AG56: 138.5373682 | AH56: 99.04262028 | AI56: 107.1760352 | AJ56: 155.3238605 | AK56: 143.973648 | AL56: 123.1945667 | AM56: 122.0815345 | AN56: 96.828908 | AO56: 87.78752239 | AP56: 105.7541701 | AQ56: 99.56763469 | AR56: 73.78628813 | AS56: 100.1618285 | AT56: 65.61457787 | AU56: 67.59728071 | AV56: 97.0685631 | AW56: 101.0500327 | AX56: 86.61148998 | AY56: 136.6843769 | AZ56: 140.4607788 | BA56: 47.24892008 | BB56: 59.25139146 | BC56: 74.89314134 | BD56: 62.90429577 | BE56: 46.59505311 | BF56: 79.07109212 | CB56: 112.3093 | CC56: 81.8293 | CD56: 112.2644 | CE56: 180.292 | CM56: 64.0817 | CN56: 92.5209
E57: 123.7040192 | F57: 116.3778525 | G57: 129.2746856 | H57: 102.4165933 | I57: 89.72346037 | J57: 89.18386749 | K57: 64.69634928 | L57: 84.62317233 | N57: 67.08620688 | O57: 87.77957274 | P57: 95.42235007 | Q57: 83.91052538 | R57: 76.44818079 | S57: 77.99375744 | T57: 97.9313584 | U57: 104.3928215 | V57: 105.1111418 | W57: 75.79624669 | Y57: 123.4469935 | Z57: 91.90905386 | AA57: 81.2364041 | AB57: 122.0154648 | AC57: 92.01799514 | AD57: 131.95788 | AE57: 132.5144903 | AF57: 115.9982668 | AG57: 125.8794047 | AH57: 114.8390818 | AI57: 133.4506868 | AJ57: 121.0157199 | AK57: 119.5422009 | AL57: 130.005482 | AM57: 134.2081582 | AN57: 114.1973639 | AO57: 129.1305652 | AP57: 90.15751408 | AQ57: 87.21445032 | AR57: 105.3988081 | AS57: 105.4328521 | AT57: 98.77904288 | AU57: 120.3456271 | AV57: 120.6247836 | AW57: 97.4615568 | AX57: 103.3527944 | AY57: 95.65384619 | AZ57: 90.37028658 | BA57: 78.9486787 | BB57: 88.82641099 | BC57: 77.29586527 | BD57: 65.12700032 | BE57: 64.30059361 | BF57: 59.00103552 | BG57: 53.70147743 | CB57: 105.2873 | CC57: 66.57 | CD57: 127.6947 | CE57: 130.5379 | CM57: 68.7794 | CN57: 82.5987
E58: 123.8133612 | F58: 135.2855279 | G58: 132.8954307 | H58: 79.65904463 | I58: 74.01980574 | J58: 93.36827701 | K58: 63.93896559 | L58: 97.01958719 | N58: 77.4936913 | O58: 128.8323448 | P58: 76.67974158 | Q58: 67.01215766 | R58: 67.86824597 | S58: 67.82388971 | T58: 109.5348797 | U58: 39.31572092 | V58: 78.44514255 | W58: 45.25288959 | Y58: 58.52003192 | Z58: 95.54472314 | AA58: 107.467853 | AB58: 85.57551258 | AC58: 59.03235456 | AD58: 54.92269074 | AE58: 65.72359028 | AF58: 67.81945347 | AG58: 78.66249114 | AH58: 85.46240248 | AI58: 95.45600797 | AJ58: 88.46536549 | AK58: 84.31577813 | AL58: 113.5868838 | AM58: 82.00256722 | AN58: 76.92814035 | AO58: 79.97989235 | AP58: 74.87441618 | AQ58: 90.04668792 | AR58: 84.06737671 | AS58: 73.33301554 | AT58: 88.15708624 | AU58: 137.7658203 | AV58: 68.70659019 | AW58: 124.0905947 | AX58: 152.120443 | AY58: 82.08462715 | AZ58: 84.93012027 | BA58: 143.3991468 | BB58: 139.1741522 | BC58: 115.0203482 | BD58: 85.16299484 | BE58: 88.18591302 | BF58: 90.7741384 | BG58: 87.92125183 | CB58: 98.2958 | CC58: 95.2547 | CD58: 133.8662 | CE58: 143.9575 | CN58: 107.3466
C59: 90.92008438 | D59: 100.4557323 | E59: 108.7553402 | F59: 121.5656834 | G59: 78.46846217 | H59: 91.49331423 | I59: 98.94331841 | J59: 87.6887764 | K59: 113.3227144 | L59: 108.3865741 | N59: 90.81122093 | O59: 81.07391701 | P59: 66.43060008 | Q59: 74.985691 | R59: 75.25442979 | S59: 80.65815198 | T59: 88.11177089 | U59: 65.825632 | V59: 38.19723299 | W59: 66.20524336 | Y59: 54.44817006 | Z59: 54.67111625 | AA59: 60.08568263 | AB59: 61.19077095 | AC59: 53.0526498 | AD59: 82.89484123 | AE59: 65.78706886 | AF59: 70.36047047 | AG59: 54.93021452 | AH59: 48.79137486 | AI59: 85.07127473 | AJ59: 93.656493 | AK59: 92.57911993 | AL59: 117.0561523 | AM59: 78.11295659 | AN59: 101.4800812 | AO59: 116.6114684 | AP59: 97.31521197 | AQ59: 117.8780403 | AR59: 117.242948 | AS59: 115.4485364 | AT59: 112.0356583 | AU59: 115.4834837 | AV59: 114.8399515 | AW59: 84.35664251 | AX59: 83.93967221 | AY59: 107.8358397 | AZ59: 73.74321802 | BA59: 110.9040548 | BB59: 78.70707836 | BC59: 94.88088493 | BD59: 93.27688164 | BE59: 109.4591272 | BF59: 121.1896889 | BG59: 120.3834683 | CB59: 125.0851 | CC59: 136.9507 | CD59: 152.7079 | CE59: 142.6419 | CN59: 148.0173
C60: 108.2183346 | D60: 122.0080795 | E60: 82.03418452 | F60: 87.32098655 | G60: 103.2625859 | H60: 92.33212299 | I60: 94.13529994 | J60: 95.10203019 | K60: 111.5458738 | L60: 104.040502 | N60: 117.4538732 | O60: 106.7386556 | P60: 72.75773379 | Q60: 79.54183554 | R60: 81.05046283 | S60: 49.71671509 | T60: 42.0149764 | U60: 53.37971433 | V60: 64.08171409 | W60: 68.77941506 | Y60: 56.00989968 | Z60: 34.44540719 | AA60: 71.50778385 | AB60: 103.1851717 | AC60: 79.35302199 | AD60: 85.74816093 | AE60: 82.41558972 | AF60: 77.33836997 | AG60: 92.07344612 | AH60: 79.37379024 | AI60: 69.97272189 | AJ60: 50.16042934 | AK60: 90.96321563 | AL60: 73.20333589 | AM60: 91.68259977 | AN60: 94.65642523 | AO60: 89.92662414 | AP60: 71.55687652 | AQ60: 110.6641089 | AR60: 77.96145757 | AS60: 80.68227497 | AT60: 96.96562467 | AU60: 86.50719659 | AV60: 93.72934904 | AW60: 113.40003 | AX60: 103.8120369 | AY60: 92.52093655 | AZ60: 82.59873973 | BA60: 107.3466385 | BB60: 148.0172563 | BC60: 153.8333727 | BD60: 164.7575447 | BE60: 146.3179305 | BF60: 150.266035 | BG60: 172.4580217 | CB60: 57.9643 | CC60: 128.5306 | CD60: 175.2061 | CE60: 156.2528 | CN60: 153.8334
CB61: 82.3821 | CC61: 135.4696 | CD61: 105.728 | CE61: 162.3227
B62: MEAN | C62: =AVERAGE(C56:C60) -> 100.602244 | D62: =AVERAGE(D56:D60) -> 112.9604506 | E62: =AVERAGE(E56:E60) -> 107.9544016 | F62: 114.1400695 | G62: 108.0523761 | H62: 94.63889349 | I62: 87.60477243 | J62: 94.07587885 | K62: 88.30605142 | L62: 97.08993989 | N62: =AVERAGE(N56:N60) -> 87.11204979 | O62: =AVERAGE(O56:O60) -> 93.59422468 | P62: 77.21101885 | Q62: 74.08868289 | R62: 78.52006384 | S62: 72.0367735 | T62: 84.61260607 | U62: 66.37746623 | V62: 73.18730595 | W62: =AVERAGE(W56:W60) -> 64.26914298 | Y62: =AVERAGE(Y56:Y60) -> 72.56136253 | Z62: =AVERAGE(Z56:Z60) -> 64.73221938 | AA62: 72.51464037 | AB62: 83.60326681 | AC62: 67.01560231 | AD62: 82.1327568 | AE62: 88.61316323 | AF62: 84.53135432 | AG62: 98.01658494 | AH62: =AVERAGE(AH56:AH60) -> 85.50185392 | AI62: =AVERAGE(AI56:AI60) -> 98.22534532 | AJ62: 101.7243736 | AK62: 106.2747925 | AL62: 111.4092841 | AM62: 101.6175633 | AN62: 96.81818372 | AO62: 100.6872145 | AP62: 87.93163778 | AQ62: 101.0741844 | AR62: 91.69137571 | AS62: 95.0117015 | AT62: 92.310398 | AU62: 105.5398817 | AV62: 98.99384748 | AW62: 104.0717713 | AX62: 105.9672873 | AY62: 102.9559253 | AZ62: 94.42062868 | BA62: 97.56948778 | BB62: 102.7952578 | BC62: 103.1847225 | BD62: 94.24574346 | BE62: 90.97172347 | BF62: 100.060398 | BG62: 108.6160548 | CB62: 108.3377 | CC62: 94.7165 | CD62: 138.5434 | CE62: 128.1518
B63: SEM | C63: =_xlfn.STDEV.S(C56:C60)/SQRT(5) -> 3.949907491 | D63: =_xlfn.STDEV.S(D56:D60)/SQRT(5) -> 5.001790036 | E63: =_xlfn.STDEV.S(E56:E60)/SQRT(5) -> 7.791557001 | F63: 7.881812361 | G63: 10.25282582 | H63: 4.797086023 | I63: 4.479097865 | J63: 3.052986325 | K63: 10.76376772 | L63: 4.265878973 | N63: =_xlfn.STDEV.S(N56:N60)/SQRT(5) -> 8.506436119 | O63: =_xlfn.STDEV.S(O56:O60)/SQRT(5) -> 11.19805162 | P63: 4.868103564 | Q63: 3.604268425 | R63: 3.974695996 | S63: 6.199432232 | T63: 11.45872222 | U63: 10.84778886 | V63: 10.95855018 | W63: =_xlfn.STDEV.S(W56:W60)/SQRT(5) -> 5.097403439 | Y63: =_xlfn.STDEV.S(Y56:Y60)/SQRT(5) -> 13.02554399 | Z63: =_xlfn.STDEV.S(Z56:Z60)/SQRT(5) -> 12.28358114 | AA63: 10.88047772 | AB63: 13.73944964 | AC63: 7.978067301 | AD63: 14.08044751 | AE63: 12.39937565 | AF63: 8.847836375 | AG63: 15.30458716 | AH63: =_xlfn.STDEV.S(AH56:AH60)/SQRT(5) -> 11.02097837 | AI63: =_xlfn.STDEV.S(AI56:AI60)/SQRT(5) -> 10.72345342 | AJ63: 17.52825345 | AK63: 11.18356379 | AL63: 9.952474569 | AM63: 11.21793007 | AN63: 6.016877638 | AO63: 9.416983623 | AP63: 6.51641194 | AQ63: 5.874963073 | AR63: 8.390484862 | AS63: 7.836090537 | AT63: 7.689334197 | AU63: 12.56678262 | AV63: 9.131637382 | AW63: 6.816457453 | AX63: 12.25042279 | AY63: 9.378812426 | AZ63: 11.81838148 | BA63: 16.20594809 | BB63: 17.37798962 | BC63: 14.5687474 | BD63: 18.55469843 | BE63: 17.454778 | BF63: 16.09302605 | BG63: 22.59521252 | CB63: 94.139 | CC63: 147.735 | CD63: 137.17 | CE63: 98.8089
CB64: 104.4562 | CC64: 119.327 | CD64: 108.9593 | CE64: 126.8063
CB65: 76.7739 | CC65: 152.6168 | CD65: 123.7504 | CE65: 170.9681
CB66: 87.8811 | CC66: 135.2483 | CD66: 54.2626 | CE66: 154.9292
CB67: 93.1776 | CC67: 128.8037 | CD67: 79.5583 | CE67: 200.0332
CB68: 105.2696 | CC68: 141.7924 | CD68: 98.6036 | CE68: 274.1863
CB69: 107.1792 | CC69: 140.3723 | CD69: 58.4194 | CE69: 155.8359
CB70: 109.4457 | CC70: 134.5745 | CD70: 81.1465 | CE70: 176.1525
CB71: 115.8166 | CC71: 146.5017 | CD71: 88.2692 | CE71: 203.027
CB72: 105.4676 | CC72: 144.2576 | CD72: 88.7888 | CE72: 226.9801
CB73: 79.6982 | CC73: 89.9491 | CD73: 65.9571 | CE73: 215.3008
CB74: 105.0997 | CC74: 96.3535 | CD74: 60.9539 | CE74: 216.9063
CB75: 80.072 | CC75: 69.2169 | CD75: 105.972 | CE75: 238.5448
CB76: 94.7759 | CC76: 114.849 | CD76: 116.926 | CE76: 220.7994
CB77: 96.9954 | CC77: 90.3641 | CD77: 153.9537 | CE77: 258.804
CB78: 100.2576 | CC78: 124.6307 | CD78: 80.0139 | CE78: 221.7772
CB79: 95.9303 | CC79: 110.5159 | CD79: 111.3911 | CE79: 200.4949
CB80: 108.8638 | CC80: 141.5431 | CD80: 120.1451 | CE80: 223.0689
CB81: 132.8394 | CC81: 60.2164 | CD81: 144.57 | CE81: 217.9777
CB82: 109.2635 | CC82: 151.3845 | CD82: 112.5711
CB83: 111.5983 | CC83: 171.2484 | CD83: 100.753
CB84: 100.9371 | CC84: 97.5661 | CD84: 146.7882
CB85: 108.1177 | CC85: 95.1698 | CD85: 134.1552
CB86: 86.1402 | CC86: 73.0938
CB87: 104.8543 | CC87: 88.2528
CB88: 90.8029
CB89: 86.8495
CB90: 98.1002
CB91: 103.3363

Sheet Figure 4
A2: Fig 4. Synaptic potentiation is independent of lactate metabolism.
BK3: Fig 4F. Boxplots summarizing the changes in the RC EPSC amplitude in cells treated with 4-CIN
A4: Fig 4A. Averaged time-course graph showing the effect of lactate on slices preincubated with oxamate (20 mM) | BZ4: Fig 3B. Boxplots summarizing the changes in the RC EPSC amplitude
BO5: 4-CIN +
C6: Baseline | N6: Lactate perfusion (2 mM) | Y6: Washout | BK6: Baseline | BM6: Baseline | BN6: 4-CIN (0.5 mM) | BO6: Lactate (2 mM) | BP6: Washout
A7: CELL | B7: TIME (min) | C7: 1 | D7: 2 | E7: 3 | F7: 4 | G7: 5 | H7: 6 | I7: 7 | J7: 8 | K7: 9 | L7: 10 | N7: 11 | O7: 12 | P7: 13 | Q7: 14 | R7: 15 | S7: 16 | T7: 17 | U7: 18 | V7: 19 | W7: 20 | Y7: 21 | Z7: 22 | AA7: 23 | AB7: 24 | AC7: 25 | AD7: 26 | AE7: 27 | AF7: 28 | AG7: 29 | AH7: 30 | AI7: 31 | AJ7: 32 | AK7: 33 | AL7: 34 | AM7: 35 | AN7: 36 | AO7: 37 | AP7: 38 | AQ7: 39 | AR7: 40 | AS7: 41 | AT7: 42 | AU7: 43 | AV7: 44 | AW7: 45 | AX7: 46 | AY7: 47 | AZ7: 48 | BA7: 49 | BB7: 50 | BC7: 51 | BD7: 52 | BE7: 53 | BF7: 54 | BG7: 55 | BK7: MEAN | BL7: =AVERAGE(BM7:BM75) -> 99.9999971 | BM7: 108.4962 | BN7: 91.2714 | BO7: 34.6487 | BP7: 90.1212
A8: 1 | C8: 87.80572865 | D8: 115.658752 | E8: 117.812132 | F8: 129.4267127 | G8: 138.2474914 | H8: 105.9239746 | I8: 115.1167763 | J8: 85.20830016 | K8: 57.75735374 | L8: 47.04277839 | N8: 59.79104323 | O8: 66.41077638 | P8: 86.89794844 | Q8: 100.8907831 | R8: 92.20782702 | S8: 83.85596352 | T8: 96.10319174 | U8: 72.74967668 | V8: 84.83835233 | W8: 101.0508883 | Y8: 81.97356791 | Z8: 106.6949664 | AA8: 143.7708414 | AB8: 135.209131 | AC8: 177.1036935 | AD8: 172.1839769 | AE8: 137.6309083 | AF8: 151.2118236 | AG8: 104.394429 | AH8: 133.758863 | AI8: 164.7911819 | AJ8: 174.3637805 | AK8: 176.705763 | AL8: 157.3564143 | AM8: 186.6757726 | AN8: 197.6732518 | AO8: 190.2120674 | AP8: 161.3699172 | AQ8: 214.8650671 | AR8: 227.5413142 | AS8: 190.3410806 | AT8: 153.2185745 | AU8: 161.1574815 | AV8: 157.7901007 | AW8: 245.4885702 | AX8: 247.6507658 | AY8: 205.8323756 | AZ8: 210.5189235 | BA8: 242.8087699 | BB8: 246.5383208 | BC8: 303.841268 | BD8: 277.0151965 | BE8: 244.3041108 | BF8: 228.652204 | BG8: 348.9985452 | BK8: MEDIAN | BL8: =MEDIAN(BM7:BM75) -> 95.5818 | BM8: 107.0665 | BN8: 56.3317 | BO8: 37.7653 | BP8: 147.9872
A9: 2 | C9: 117.2872675 | D9: 89.63793241 | E9: 94.11050772 | F9: 80.69504569 | G9: 98.69467142 | H9: 102.535854 | I9: 102.8228748 | J9: 114.9820483 | K9: 97.14232132 | L9: 102.0914768 | N9: 84.25570172 | O9: 107.5197548 | P9: 111.589481 | Q9: 123.2011682 | R9: 97.44403546 | S9: 164.5925334 | T9: 135.9993622 | U9: 136.3587068 | V9: 145.7804326 | W9: 117.2855736 | Y9: 178.9560737 | Z9: 186.5926704 | AA9: 182.7178744 | AB9: 174.2142769 | AC9: 178.6323288 | AD9: 195.023105 | AE9: 182.3740667 | AF9: 160.6940061 | AG9: 166.9248721 | AH9: 142.1954788 | AI9: 170.5361019 | AJ9: 136.1629325 | AK9: 165.3451244 | AL9: 160.0521626 | AM9: 142.3053724 | AN9: 136.3349736 | AO9: 125.4964955 | AP9: 138.0633208 | AQ9: 122.5545194 | AR9: 104.237648 | AS9: 118.7333952 | AT9: 141.9901037 | AU9: 116.3581179 | AV9: 106.5598118 | AW9: 91.75557317 | AX9: 95.0167749 | AY9: 81.8239237 | AZ9: 80.64872243 | BA9: 118.8663881 | BB9: 125.998323 | BC9: 133.1302579 | BD9: 101.6169813 | BE9: 106.8804233 | BF9: 112.1438653 | BG9: 161.1259404 | BK9: Q3 | BL9: =_xlfn.QUARTILE.INC(BM7:BM75, 3) -> 113.6044 | BM9: 76.9958 | BN9: 99.7845 | BO9: 37.4927 | BP9: 198.0072
A10: 3 | F10: 76.02496845 | G10: 97.22919497 | H10: 68.81724689 | I10: 101.2376256 | J10: 106.061048 | K10: 118.0993822 | L10: 132.5305338 | N10: 156.0168491 | O10: 176.328353 | P10: 155.5582442 | Q10: 170.9827178 | R10: 186.143423 | S10: 194.0548827 | T10: 216.8076487 | U10: 196.4665949 | V10: 197.2563061 | W10: 193.9226046 | Y10: 180.6931813 | Z10: 174.8226635 | AA10: 181.6058585 | AB10: 189.9772486 | AC10: 170.4173843 | AD10: 158.1014411 | AE10: 210.8442468 | AF10: 245.7766806 | AG10: 228.1595402 | AH10: 262.9203051 | AI10: 187.0819198 | AJ10: 177.4361305 | AK10: 167.4509895 | AL10: 170.1506877 | AM10: 184.385412 | AN10: 202.6213762 | AO10: 182.4610389 | AP10: 193.6439236 | AQ10: 169.0655362 | AR10: 162.4718526 | AS10: 181.6825164 | AT10: 200.2897711 | AU10: 211.463073 | AV10: 233.3665103 | AW10: 262.4068709 | AX10: 224.5540862 | AY10: 243.3069065 | AZ10: 251.454778 | BA10: 269.6581557 | BB10: 275.5478298 | BC10: 231.4397825 | BD10: 236.7558819 | BE10: 277.7597577 | BF10: 272.9870335 | BG10: 276.6657599 | BK10: Q1 | BL10: =_xlfn.QUARTILE.INC(BM7:BM75, 1) -> 85.8551 | BM10: 137.4755 | BN10: 56.9751 | BO10: 35.2306 | BP10: 164.0877
A11: 4 | C11: 96.00439111 | D11: 103.1117136 | E11: 85.22326153 | F11: 108.0930253 | G11: 80.5531938 | H11: 81.49676443 | I11: 105.6733291 | J11: 110.3316879 | K11: 112.8164857 | L11: 116.6961476 | N11: 116.1045756 | O11: 139.2026782 | P11: 169.7474551 | Q11: 150.2055884 | R11: 141.7727171 | S11: 145.230833 | T11: 138.883708 | U11: 167.9771801 | V11: 173.9383557 | W11: 205.6100714 | Y11: 176.7922498 | Z11: 194.4214429 | AA11: 211.7302736 | AB11: 187.9801704 | AC11: 185.2616449 | AD11: 187.9900082 | AE11: 220.6341063 | AF11: 220.1141942 | AG11: 231.5311543 | AH11: 216.3682504 | AI11: 224.0910419 | AJ11: 276.889886 | AK11: 294.6818514 | AL11: 234.2529614 | AM11: 250.6491346 | AN11: 263.8963259 | AO11: 263.4867211 | AP11: 290.4989047 | AQ11: 283.8644255 | AR11: 266.3490359 | AS11: 309.9358511 | AT11: 346.770383 | AU11: 320.1762207 | AV11: 293.5708439 | AW11: 296.7736676 | AX11: 320.7954388 | AY11: 322.6027198 | AZ11: 256.1665072 | BA11: 275.7039287 | BB11: 246.3191115 | BC11: 246.893824 | BD11: 251.2835554 | BE11: 218.1420396 | BF11: 226.863901 | BG11: 228.678669 | BM11: 95.5818 | BN11: 47.9822 | BO11: 52.2406 | BP11: 222.6827
BK12: 4-CIN | BM12: 115.2659 | BN12: 56.9093 | BO12: 34.2795 | BP12: 123.2805
B13: MEAN | C13: =AVERAGE(C8:C11) -> 100.3657958 | D13: 102.8027993 | E13: 99.04863375 | F13: 98.55993804 | G13: 103.6811379 | H13: 89.69345997 | I13: 106.2126515 | J13: 104.1457711 | K13: 96.45388575 | L13: =AVERAGE(L8:L11) -> 99.59023415 | N13: =AVERAGE(N8:N11) -> 104.0420424 | O13: 122.3653906 | P13: 130.9482822 | Q13: 136.3200644 | R13: 129.3920007 | S13: 146.9335532 | T13: 146.9484776 | U13: 143.3880396 | V13: 150.4533617 | W13: =AVERAGE(W8:W11) -> 154.4672845 | Y13: =AVERAGE(Y8:Y11) -> 154.6037681 | Z13: 165.6329358 | AA13: 179.956212 | AB13: 171.8452068 | AC13: 177.8537629 | AD13: 178.3246328 | AE13: 187.870832 | AF13: 194.4491761 | AG13: 182.7524989 | AH13: =AVERAGE(AH8:AH11) -> 188.8107243 | AI13: =AVERAGE(AI8:AI11) -> 186.6250614 | AJ13: 191.2131824 | AK13: 201.0459321 | AL13: 180.4530565 | AM13: 191.0039229 | AN13: 200.1314819 | AO13: 190.4140807 | AP13: 195.8940166 | AQ13: 197.587387 | AR13: 190.1499627 | AS13: 200.1732108 | AT13: 210.5672081 | AU13: 202.2887233 | AV13: 197.8218167 | AW13: 224.1061705 | AX13: 222.0042664 | AY13: 213.3914814 | AZ13: 199.6972328 | BA13: 226.7593106 | BB13: 223.6008963 | BC13: 228.8262831 | BD13: 216.6679037 | BE13: 211.7715829 | BF13: 210.161751 | BG13: 253.8672286 | BK13: MEAN | BL13: =AVERAGE(BN7:BN46) -> 53.88568 | BM13: 83.9433 | BN13: 53.0998 | BO13: 34.7374 | BP13: 110.2077
B14: SEM | C14: =_xlfn.STDEV.S(C8:C11)/SQRT(4) -> 7.608493137 | D14: 6.506580008 | E14: 8.423144252 | F14: 12.48538067 | G14: 12.234606 | H14: 8.809837202 | I14: 3.106656519 | J14: 6.570049231 | K14: 13.64477228 | L14: =_xlfn.STDEV.S(L8:L11)/SQRT(4) -> 18.58576278 | N14: =_xlfn.STDEV.S(N8:N11)/SQRT(4) -> 20.80972417 | O14: 23.35738164 | P14: 19.20551382 | Q14: 15.33418493 | R14: 21.94185751 | S14: 23.29867817 | T14: 25.24953881 | U14: 26.55363865 | V14: 24.27142742 | W14: =_xlfn.STDEV.S(W8:W11)/SQRT(4) -> 26.4702631 | Y14: =_xlfn.STDEV.S(Y8:Y11)/SQRT(4) -> 24.22321023 | Z14: 20.05455879 | AA14: 13.93233694 | AB14: 12.70473183 | AC14: 3.046106973 | AD14: 8.261071326 | AE14: 18.60885608 | AF14: 22.91667157 | AG14: 30.04393659 | AH14: =_xlfn.STDEV.S(AH8:AH11)/SQRT(4) -> 30.89678482 | AI14: =_xlfn.STDEV.S(AI8:AI11)/SQRT(4) -> 13.35253199 | AJ14: 30.06207059 | AK14: 31.30933973 | AL14: 18.14345595 | AM14: 22.34509207 | AN14: 26.05793588 | AO14: 28.30959103 | AP14: 33.53039738 | AQ14: 34.38225414 | AR14: 35.76708859 | AS14: 39.9153869 | AT14: 47.12449434 | AU14: 43.8344221 | AV14: 41.19323698 | AW14: 45.3885048 | AX14: 47.0370096 | AY14: 50.15741019 | AZ14: 40.98503715 | BA14: 36.66782698 | BB14: 33.25029945 | BC14: 35.49441695 | BD14: 39.24313178 | BE14: 37.03100353 | BF14: 34.36977926 | BG14: 39.58656179 | BK14: MEDIAN | BL14: =MEDIAN(BN7:BN46) -> 50.28185 | BM14: 120.9154 | BN14: 50.8446 | BO14: 31.5184 | BP14: 102.2304
BK15: Q3 | BL15: =_xlfn.QUARTILE.INC(BN7:BN46, 3) -> 56.7649 | BM15: 68.4045 | BN15: 54.119 | BO15: 33.8108 | BP15: 95.4338
A16: Fig 4B. Analysis of the paired-pulse ratio in the presence of pyruvate (2mM) | BK16: Q1 | BL16: =_xlfn.QUARTILE.INC(BN7:BN46, 1) -> 43.66665 | BM16: 85.8551 | BN16: 69.7754 | BO16: 23.5655 | BP16: 105.739
BM17: 91.4868 | BN17: 87.4111 | BO17: 50.4014 | BP17: 112.1188
B18: PPR | BK18: Lactate + 4-CIN | BM18: 91.7579 | BN18: 68.9072 | BO18: 69.9216 | BP18: 159.5712
A19: CELL | B19: Baseline | C19: Pyruvate perfusion (2 mM) | D19: Washout | BK19: MEAN | BL19: =AVERAGE(BO7:BO76) -> 56.56106857 | BM19: 112.0216 | BN19: 50.2557 | BO19: 54.4551 | BP19: 161.2712
A20: 1 | B20: 1.519 | C20: 2.0722 | D20: 1.5927 | BK20: MEDIAN | BL20: =MEDIAN(BO7:BO76) -> 52.27975 | BM20: 80.4117 | BN20: 46.4642 | BO20: 46.8496 | BP20: 155.0704
A21: 2 | B21: 1.4406 | C21: 1.8787 | D21: 1.4776 | BK21: Q3 | BL21: =_xlfn.QUARTILE.INC(BO7:BO76, 3) -> 74.044575 | BM21: 99.9316 | BN21: 41.8941 | BO21: 54.7342 | BP21: 157.1172
A22: 3 | B22: 1.4202 | C22: 1.9456 | D22: 1.5017 | BK22: Q1 | BL22: =_xlfn.QUARTILE.INC(BO7:BO76, 1) -> 35.543325 | BM22: 67.9575 | BN22: 52.2899 | BO22: 44.3017 | BP22: 185.6148
BM23: 115.7998 | BN23: 40.3289 | BO23: 41.6665 | BP23: 197.8619
A24: MEAN | B24: =AVERAGE(B20:B22) -> 1.459933333 | C24: =AVERAGE(C20:C22) -> 1.9655 | D24: 1.524 | BK24: Washout | BM24: 100.5088 | BN24: 38.9989 | BO24: 58.3648 | BP24: 214.3272
A25: SEM | B25: =_xlfn.STDEV.S(B20:B22)/SQRT(3) -> 0.03011474353 | C25: =_xlfn.STDEV.S(C20:C22)/SQRT(3) -> 0.0567379062 | D25: 0.03504744403 | BK25: MEAN | BL25: =AVERAGE(BP13:BP59) -> 135.2453523 | BM25: 90.8553 | BN25: 40.8803 | BO25: 26.9479 | BP25: 165.0898
BK26: MEDIAN | BL26: =MEDIAN(BP13:BP59) -> 120.72 | BM26: 149.2691 | BN26: 43.7337 | BO26: 34.1995 | BP26: 199.9239
A27: Fig 4C. Temporal sequence of the predictable presynaptic and postsynaptic contribution of lactate to synaptic potentiation | BK27: Q3 | BL27: =_xlfn.QUARTILE.INC(BP13:BP59, 3) -> 152.05915 | BM27: 78.2145 | BN27: 50.308 | BO27: 93.0155 | BP27: 225.01
BK28: Q1 | BL28: =_xlfn.QUARTILE.INC(BP13:BP59, 1) -> 111.688125 | BM28: 112.1836 | BN28: 66.5901 | BO28: 36.4815 | BP28: 229.982
A29: Time (min) | B29: 1 | C29: 2 | D29: 3 | E29: 4 | F29: 5 | G29: 6 | H29: 7 | I29: 8 | J29: 9 | K29: 10 | L29: 11 | M29: 12 | N29: 13 | O29: 14 | P29: 15 | Q29: 16 | R29: 17 | S29: 18 | T29: 19 | U29: 20 | V29: 21 | W29: 22 | X29: 23 | Y29: 24 | Z29: 25 | AA29: 26 | AB29: 27 | AC29: 28 | AD29: 29 | AE29: 30 | AF29: 31 | AG29: 32 | AH29: 33 | AI29: 34 | AJ29: 35 | AK29: 36 | AL29: 37 | AM29: 38 | AN29: 39 | AO29: 40 | AP29: 41 | AQ29: 42 | AR29: 43 | AS29: 44 | AT29: 45 | AU29: 46 | AV29: 47 | AW29: 48 | AX29: 49 | AY29: 50 | AZ29: 51 | BA29: 52 | BB29: 53 | BC29: 54 | BD29: 55 | BM29: 113.4617 | BN29: 53.4882 | BO29: 49.2438 | BP29: 133.4593
A30: Lactate (A) | B30: 103.1592 | C30: 96.8535 | D30: 104.923 | E30: 95.6141 | F30: 103.3459 | G30: 99.5577 | H30: 103.7238 | I30: 96.0295 | J30: 98.3938 | K30: 93.4974 | L30: 96.0011 | M30: 89.8994 | N30: 87.2568 | O30: 86.9403 | P30: 96.5525 | Q30: 99.4475 | R30: 85.4705 | S30: 86.512 | T30: 98.8653 | U30: 98.0477 | V30: 95.9671 | W30: 105.7772 | X30: 109.6145 | Y30: 113.8658 | Z30: 109.2654 | AA30: 130.0449 | AB30: 131.9077 | AC30: 140.2684 | AD30: 155.8647 | AE30: 175.7559 | AF30: 154.16 | AG30: 155.5863 | AH30: 175.6983 | AI30: 173.1145 | AJ30: 177.58 | AK30: 188.5717 | AL30: 195.2636 | AM30: 181.7976 | AN30: 196.2019 | AO30: 209.7086 | AP30: 216.1845 | AQ30: 202.4936 | AR30: 205.351 | AS30: 195.4927 | AT30: 204.9415 | AU30: 215.5969 | AV30: 202.0636 | AW30: 204.4909 | AX30: 217.943 | AY30: 193.1417 | AZ30: 210.1333 | BA30: 220.8461 | BB30: 211.9997 | BC30: 209.6015 | BD30: 221.2368 | BM30: 123.1985 | BN30: 43.1209 | BO30: 45.9697 | BP30: 118.4977
A31: Lactate + Oxamate (B) | B31: 100.3658 | C31: 102.8028 | D31: 99.0486 | E31: 98.5599 | F31: 103.6811 | G31: 89.6935 | H31: 106.2127 | I31: 104.1458 | J31: 96.4539 | K31: 99.5902 | L31: 100.0212 | M31: 116.753 | N31: 118.0152 | O31: 131.6916 | P31: 125.2651 | Q31: 147.5011 | R31: 149.6367 | S31: 135.1917 | T31: 142.625 | U31: 137.4197 | V31: 154.6038 | W31: 156.0368 | X31: 169.3649 | Y31: 166.4669 | Z31: 175.3845 | AA31: 175.1028 | AB31: 176.9497 | AC31: 185.8942 | AD31: 166.4929 | AE31: 179.6249 | AF31: 197.9851 | AG31: 191.2132 | AH31: 201.0459 | AI31: 180.4531 | AJ31: 191.0039 | AK31: 200.1315 | AL31: 190.4141 | AM31: 195.894 | AN31: 197.5874 | AO31: 190.15 | AP31: 200.1732 | AQ31: 210.5672 | AR31: 202.2887 | AS31: 197.8218 | AT31: 224.1062 | AU31: 222.0043 | AV31: 213.3915 | AW31: 199.6972 | AX31: 212.4597 | AY31: 206.2853 | AZ31: 227.9551 | BA31: 209.9719 | BB31: 189.7755 | BC31: 189.22 | BD31: 246.2677 | BM31: 79.1274 | BN31: 45.0264 | BO31: 46.5394 | BP31: 129.6693
A32: A-B | B32: =B30-B31+100 -> 102.7934 | C32: =C30-C31+100 -> 94.0507 | D32: =D30-D31+100 -> 105.8744 | E32: 97.0542 | F32: 99.6648 | G32: 109.8642 | H32: 97.5111 | I32: 91.8837 | J32: 101.9399 | K32: 93.9072 | L32: 95.9799 | M32: 73.1464 | N32: 69.2416 | O32: 55.2487 | P32: 71.2874 | Q32: 51.9464 | R32: 35.8338 | S32: 51.3203 | T32: 56.2403 | U32: 60.628 | V32: 41.3633 | W32: 49.7404 | X32: 40.2496 | Y32: 47.3989 | Z32: 33.8809 | AA32: 54.9421 | AB32: 54.958 | AC32: 54.3742 | AD32: 89.3718 | AE32: 96.131 | AF32: 56.1749 | AG32: 64.3731 | AH32: 74.6524 | AI32: 92.6614 | AJ32: 86.5761 | AK32: 88.4402 | AL32: 104.8495 | AM32: 85.9036 | AN32: 98.6145 | AO32: 119.5586 | AP32: 116.0113 | AQ32: 91.9264 | AR32: 103.0623 | AS32: 97.6709 | AT32: 80.8353 | AU32: 93.5926 | AV32: 88.6721 | AW32: 104.7937 | AX32: 105.4833 | AY32: 86.8564 | AZ32: 82.1782 | BA32: 110.8742 | BB32: 122.2242 | BC32: 120.3815 | BD32: 74.9691 | BM32: 93.9168 | BN32: 43.6443 | BO32: 41.6041 | BP32: 118.2631
A33: Lactate +D-APV | B33: 100.6022 | C33: 112.9605 | D33: 107.9544 | E33: 114.1401 | F33: 108.0524 | G33: 94.6389 | H33: 87.6048 | I33: 94.0759 | J33: 88.3061 | K33: 97.0899 | L33: 87.112 | M33: 93.5942 | N33: 77.211 | O33: 74.0887 | P33: 78.5201 | Q33: 72.0368 | R33: 84.6126 | S33: 66.3775 | T33: 73.1873 | U33: 64.2691 | V33: 72.5614 | W33: 64.7322 | X33: 72.5146 | Y33: 83.6033 | Z33: 67.0156 | AA33: 82.1328 | AB33: 88.6132 | AC33: 84.5314 | AD33: 98.0166 | AE33: 85.5019 | AF33: 98.2253 | AG33: 101.7244 | AH33: 106.2748 | AI33: 111.4093 | AJ33: 101.6176 | AK33: 96.8182 | AL33: 100.6872 | AM33: 87.9316 | AN33: 101.0742 | AO33: 91.6914 | AP33: 95.0117 | AQ33: 92.3104 | AR33: 105.5399 | AS33: 98.9938 | AT33: 104.0718 | AU33: 105.9673 | AV33: 102.9559 | AW33: 94.4206 | AX33: 97.5695 | AY33: 102.7953 | AZ33: 103.1847 | BA33: 94.2457 | BB33: 90.9717 | BC33: 105.3077 | BD33: 108.6161 | BM33: 88.0509 | BN33: 48.7076 | BO33: 41.1205 | BP33: 113.5415
BM34: 131.9172 | BN34: 31.3485 | BO34: 43.6046 | BP34: 118.8296
A35: Fig 4D. Averaged time-course graph showing the effect of 4-CIN (0.5 mM) | BM35: 94.0114 | BN35: 44.7432 | BO35: 42.8247 | BP35: 149.3337 | BZ35: Fig 3B. Boxplots summarizing the changes in the RC EPSC amplitude
BM36: 85.9179 | BN36: 41.3362 | BO36: 112.5059 | BP36: 116.2724
C37: Baseline | N37: 4-CIN (0.5 mM) | AD37: Washout | BM37: 94.478 | BO37: 86.553 | BP37: 102.5752
A38: CELL | B38: TIME (min) | C38: 1 | D38: 2 | E38: 3 | F38: 4 | G38: 5 | H38: 6 | I38: 7 | J38: 8 | K38: 9 | L38: 10 | N38: 11 | O38: 12 | P38: 13 | Q38: 14 | R38: 15 | S38: 16 | T38: 17 | U38: 18 | V38: 19 | W38: 20 | X38: 21 | Y38: 22 | Z38: 23 | AA38: 24 | AB38: 25 | AD38: 26 | AE38: 27 | AF38: 28 | AG38: 29 | AH38: 30 | AI38: 31 | AJ38: 32 | AK38: 33 | AL38: 34 | AM38: 35 | AN38: 36 | AO38: 37 | AP38: 38 | AQ38: 39 | AR38: 40 | AS38: 41 | AT38: 42 | AU38: 43 | AV38: 44 | AW38: 45 | AX38: 46 | AY38: 47 | AZ38: 48 | BA38: 49 | BB38: 50 | BC38: 51 | BD38: 52 | BE38: 53 | BF38: 54 | BG38: 55 | BM38: 113.6044 | BO38: 109.4198 | BP38: 120.0321
A39: 1 | C39: 95.53708347 | D39: 96.54785961 | E39: 97.10251203 | F39: 77.10782089 | G39: 130.4836229 | H39: 104.9933622 | I39: 88.21362205 | J39: 115.0161893 | K39: 85.66969461 | L39: 101.413176 | N39: 91.27143466 | O39: 56.33168804 | P39: 99.78446418 | Q39: 56.97510266 | R39: 47.9821627 | S39: 56.90927307 | T39: 53.09975059 | U39: 50.84461508 | V39: 54.11902173 | W39: 69.7754401 | X39: 78.46047617 | Y39: 47.95455744 | Z39: 71.61225266 | AA39: 85.05175946 | AB39: 89.97186647 | AD39: 56.92626359 | AE39: 45.5359134 | AF39: 156.0715604 | AG39: 134.9641684 | AH39: 99.87789864 | AI39: 70.38063315 | AJ39: 64.29473898 | AK39: 131.9360826 | AL39: 117.7059308 | AM39: 160.2165983 | AN39: 164.8245451 | AO39: 195.0798923 | AP39: 138.9754229 | AQ39: 185.8385114 | AR39: 137.9129703 | AS39: 169.5875159 | AT39: 114.28571 | AU39: 157.106402 | AV39: 148.2019435 | AW39: 177.7331849 | AX39: 105.9298173 | AY39: 106.0805857 | AZ39: 135.4270852 | BA39: 173.643363 | BB39: 66.04448498 | BC39: 57.01545022 | BD39: 57.92429933 | BE39: 43.39969221 | BF39: 44.56123509 | BG39: 72.13675178 | BM39: 85.7866 | BO39: 83.3409 | BP39: 109.8666
A40: 2 | C40: 124.3066024 | D40: 116.7108937 | E40: 111.9157896 | F40: 110.4708073 | G40: 88.66538187 | H40: 58.78842013 | I40: 99.77843993 | J40: 117.7074901 | K40: 111.604412 | L40: 101.069259 | N40: 87.41114462 | O40: 68.90723467 | P40: 50.25569236 | Q40: 46.46423944 | R40: 41.89411517 | S40: 52.28990694 | T40: 40.32893176 | U40: 38.99891839 | V40: 40.88027427 | W40: 43.73366095 | X40: 47.88440145 | Y40: 52.64788759 | Z40: 57.74714406 | AA40: 66.87040523 | AB40: 71.4444513 | AD40: 73.44730891 | AE40: 76.25235804 | AF40: 62.47927322 | AG40: 74.82305227 | AH40: 79.26775057 | AI40: 72.36553211 | AJ40: 73.6615751 | AK40: 67.62556322 | AL40: 80.97142163 | AM40: 69.52782295 | AN40: 81.59462282 | AO40: 74.19854607 | AP40: 66.47715163 | AQ40: 71.03290435 | AR40: 73.3963565 | AS40: 79.82693184 | AT40: 94.84902808 | AU40: 87.94027488 | AV40: 76.67827556 | AW40: 87.0949736 | AX40: 82.48303776 | AY40: 74.29522506 | AZ40: 83.39758772 | BA40: 76.57244989 | BB40: 77.73262011 | BC40: 90.48533027 | BD40: 65.87877754 | BE40: 59.10067129 | BF40: 87.62540886 | BG40: 64.61408861 | BM40: 93.7144 | BO40: 74.228 | BP40: 130.4241
A41: 3 | C41: 78.01765976 | D41: 104.3472231 | E41: 108.0232649 | F41: 101.7057888 | G41: 107.132513 | H41: 113.1275976 | I41: 98.91600359 | J41: 112.383912 | K41: 88.2622862 | L41: 88.08375101 | N41: 50.30797409 | O41: 66.5900735 | P41: 53.48822835 | Q41: 43.12093726 | R41: 45.02639185 | S41: 43.64434427 | T41: 48.70757365 | U41: 31.34847973 | V41: 44.74317396 | W41: 41.33621989 | X41: 43.09011193 | Y41: 31.36517717 | Z41: 43.70150121 | AA41: 47.92342713 | AB41: 43.30075777 | AD41: 41.4820034 | AE41: 91.27813398 | AF41: 85.14368695 | AG41: 73.77004489 | AH41: 81.91013006 | AI41: 94.36654893 | AJ41: 76.50074626 | AK41: 90.21590812 | AL41: 101.678174 | AM41: 64.70003022 | AN41: 102.5278277 | AO41: 77.16929249 | AP41: 76.92075425 | AQ41: 89.92755114 | AR41: 111.5535272 | AS41: 79.84604803 | AT41: 84.64661264 | AU41: 71.03292073 | AV41: 79.17364748 | AW41: 67.37485996 | AX41: 80.48184312 | AY41: 64.32433578 | AZ41: 90.76307394 | BA41: 73.19847326 | BB41: 107.2301319 | BC41: 98.55284625 | BD41: 61.99925571 | BE41: 110.2574734 | BF41: 98.50188494 | BG41: 77.53888713 | BM41: 100.9704 | BO41: 95.8861 | BP41: 139.5806
BM42: 85.5617 | BO42: 118.1301 | BP42: 122.0969
B43: MEAN | C43: =AVERAGE(C39:C41) -> 99.2871152 | D43: =AVERAGE(D39:D41) -> 105.8686588 | E43: 105.6805222 | F43: 96.42813899 | G43: 108.7605059 | H43: 92.30312666 | I43: 95.63602186 | J43: 115.0358638 | K43: 95.17879761 | L43: 96.85539535 | N43: =AVERAGE(N39:N41) -> 76.33018446 | O43: =AVERAGE(O39:O41) -> 63.94299874 | P43: 67.84279496 | Q43: 48.85342646 | R43: 44.96755657 | S43: 50.94784143 | T43: 47.378752 | U43: 40.39733773 | V43: 46.58082332 | W43: 51.61510698 | X43: =AVERAGE(X39:X41) -> 56.47832985 | Y43: =AVERAGE(Y39:Y41) -> 43.9892074 | Z43: 57.68696598 | AA43: 66.61519727 | AB43: 68.23902518 | AD43: =AVERAGE(AD39:AD41) -> 57.28519197 | AE43: =AVERAGE(AE39:AE41) -> 71.02213514 | AF43: 101.2315069 | AG43: 94.51908851 | AH43: 87.01859309 | AI43: 79.0375714 | AJ43: 71.48568678 | AK43: 96.59251799 | AL43: 100.1185088 | AM43: 98.1481505 | AN43: =AVERAGE(AN39:AN41) -> 116.3156652 | AO43: =AVERAGE(AO39:AO41) -> 115.482577 | AP43: 94.12444294 | AQ43: 115.5996556 | AR43: 107.6209513 | AS43: =AVERAGE(AS39:AS41) -> 109.7534986 | AT43: =AVERAGE(AT39:AT41) -> 97.9271169 | AU43: 105.3598659 | AV43: 101.3512889 | AW43: 110.7343395 | AX43: 89.63156606 | AY43: 81.56671551 | AZ43: 103.1959156 | BA43: 107.8047621 | BB43: 83.66907898 | BC43: =AVERAGE(BC39:BC41) -> 82.01787558 | BD43: =AVERAGE(BD39:BD41) -> 61.93411086 | BE43: 70.91927895 | BF43: 76.8961763 | BG43: 71.42990917 | BM43: 82.4195 | BO43: 90.3549 | BP43: 98.2985
B44: SEM | C44: =_xlfn.STDEV.S(C39:C41)/SQRT(3) -> 13.49337622 | D44: =_xlfn.STDEV.S(D39:D41)/SQRT(3) -> 5.870067036 | E44: 4.433758027 | F44: 9.986030341 | G44: 12.09929875 | H44: 16.92107278 | I44: 3.719541338 | J44: 1.536816119 | K44: 8.246837559 | L44: 4.38694571 | N44: =_xlfn.STDEV.S(N39:N41)/SQRT(3) -> 13.05873953 | O44: =_xlfn.STDEV.S(O39:O41)/SQRT(3) -> 3.863993913 | P44: 15.99807277 | Q44: 4.17395239 | R44: 1.757714127 | S44: 3.887605901 | T44: 3.746010261 | U44: 5.671316893 | V44: 3.930598976 | W44: 9.106503266 | X44: =_xlfn.STDEV.S(X39:X41)/SQRT(3) -> 11.07786638 | Y44: =_xlfn.STDEV.S(Y39:Y41)/SQRT(3) -> 6.455784006 | Z44: 8.057196115 | AA44: 10.7187859 | AB44: 13.56778248 | AD44: =_xlfn.STDEV.S(AD39:AD41)/SQRT(3) -> 9.229333875 | AE44: =_xlfn.STDEV.S(AE39:AE41)/SQRT(3) -> 13.46110582 | AF44: 28.18978844 | AG44: 20.22482444 | AH44: 6.474741867 | AI44: 7.685877096 | AJ44: 3.687705742 | AK44: 18.83663621 | AL44: 10.63297477 | AM44: 31.065501 | AN44: =_xlfn.STDEV.S(AN39:AN41)/SQRT(3) -> 24.99588859 | AO44: =_xlfn.STDEV.S(AO39:AO41)/SQRT(3) -> 39.80789618 | AP44: 22.62723296 | AQ44: 35.54046783 | AR44: 18.72785118 | AS44: =_xlfn.STDEV.S(AS39:AS41)/SQRT(3) -> 29.91700915 | AT44: =_xlfn.STDEV.S(AT39:AT41)/SQRT(3) -> 8.693388219 | AU44: 26.3295946 | AV44: 23.43640048 | AW44: 33.97967376 | AX44: 8.169576487 | AY44: 12.5903671 | AZ44: 16.25524341 | BA44: 32.93370595 | BB44: 12.25419024 | BC44: =_xlfn.STDEV.S(BC39:BC41)/SQRT(3) -> 12.71629085 | BD44: =_xlfn.STDEV.S(BD39:BD41)/SQRT(3) -> 2.296491075 | BE44: 20.18456787 | BF44: 16.46952489 | BG44: 3.747769295 | BM44: 99.2532 | BO44: 82.2059 | BP44: 151.0554
BM45: 119.3001 | BO45: 83.9107 | BP45: 102.757
A46: Fig 4E. Averaged time-course graph showing the effect of Lactate (2 mM) in the presence of 4-CIN (0.5 mM) | BM46: 124.9116 | BO46: 51.726 | BP46: 110.8824
BM47: 113.2098 | BO47: 52.3189 | BP47: 105.3905
C48: Baseline | N48: 4-CIN (0.5 mM) | T48: 4-CIN (0.5 mM) + Lactate (2 mM) | AE48: Washout | BM48: 132.6977 | BO48: 68.745 | BP48: 122.9357
A49: CELL | B49: TIME (min) | C49: 1 | D49: 2 | E49: 3 | F49: 4 | G49: 5 | H49: 6 | I49: 7 | J49: 8 | K49: 9 | L49: 10 | N49: 11 | O49: 12 | P49: 13 | Q49: 14 | R49: 15 | T49: 16 | U49: 17 | V49: 18 | W49: 19 | X49: 20 | Y49: 21 | Z49: 22 | AA49: 23 | AB49: 24 | AC49: 25 | AE49: 26 | AF49: 27 | AG49: 28 | AH49: 29 | AI49: 30 | AJ49: 31 | AK49: 32 | AL49: 33 | AM49: 34 | AN49: 35 | AO49: 36 | AP49: 37 | AQ49: 38 | AR49: 39 | AS49: 40 | AT49: 41 | AU49: 42 | AV49: 43 | AW49: 44 | AX49: 45 | AY49: 46 | AZ49: 47 | BA49: 48 | BB49: 49 | BC49: 50 | BD49: 51 | BE49: 52 | BF49: 53 | BG49: 54 | BH49: 55 | BM49: 93.3118 | BO49: 68.1126 | BP49: 126.9273
A50: 1 | C50: 113.2098407 | D50: 132.6976947 | E50: 93.31177155 | F50: 63.56510805 | G50: 66.36150813 | H50: 138.1849802 | I50: 125.1719789 | J50: 94.31705614 | K50: 117.1879347 | L50: 55.99212691 | N50: 58.15716289 | O50: 47.18511548 | P50: 46.80275333 | Q50: 49.94015521 | R50: 61.35027407 | T50: 93.0155029 | U50: 36.48148466 | V50: 49.24379993 | W50: 45.96965715 | X50: 46.53940289 | Y50: 41.60413533 | Z50: 41.12048451 | AA50: 43.60457646 | AB50: 42.8246584 | AC50: 112.5058904 | AE50: 41.60160273 | AF50: 51.22904919 | AG50: 58.82819682 | AH50: 72.1121468 | AI50: 71.92982749 | AJ50: 81.38761437 | AK50: 82.54736668 | AL50: 87.72572431 | AM50: 74.67473773 | AN50: 137.1417117 | AO50: 85.17832571 | AP50: 115.9319613 | AQ50: 99.24219281 | AR50: 125.4176044 | AS50: 93.90937218 | AT50: 119.6391103 | AU50: 112.2340977 | AV50: 100.096394 | AW50: 114.5519104 | AX50: 90.12119202 | AY50: 147.9871505 | AZ50: 198.0072129 | BA50: 164.0877488 | BB50: 231.2328902 | BC50: 236.3423905 | BD50: 252.782654 | BE50: 151.4487923 | BF50: 152.157688 | BG50: 112.5406761 | BH50: 106.4278698 | BM50: 63.5651 | BO50: 56.0968 | BP50: 139.7121
A51: 2 | C51: 94.47802299 | D51: 113.6044011 | E51: 85.78661925 | F51: 93.71444509 | G51: 100.9703535 | H51: 85.56170573 | I51: 82.41949233 | J51: 99.25324202 | K51: 119.3000767 | L51: 124.9116413 | N51: 74.27147994 | O51: 150.5577545 | P51: 129.7756879 | Q51: 123.2257108 | R51: 111.2938181 | T51: 86.55303791 | U51: 109.4198319 | V51: 83.34089237 | W51: 74.2280096 | X51: 95.88611445 | Y51: 118.1301336 | Z51: 90.35487672 | AA51: 82.20591894 | AB51: 83.91074421 | AC51: 51.7259954 | AE51: 83.03187043 | AF51: 74.52663617 | AG51: 106.7983289 | AH51: 94.88816452 | AI51: 111.320276 | AJ51: 91.13830392 | AK51: 86.69762522 | AL51: 101.6743966 | AM51: 112.2085997 | AN51: 88.75022237 | AO51: 136.2396684 | AP51: 130.2765517 | AQ51: 128.1294546 | AR51: 131.5274528 | AS51: 114.0778642 | AT51: 112.1093742 | AU51: 116.376165 | AV51: 118.3285895 | AW51: 107.8350181 | AX51: 123.2805252 | AY51: 110.2076683 | AZ51: 102.2303855 | BA51: 95.43375982 | BB51: 105.7389547 | BC51: 112.1188229 | BD51: 159.3590194 | BE51: 161.4624797 | BF51: 190.7481524 | BG51: 203.3340243 | BH51: 220.2546391 | BM51: 66.3615 | BO51: 60.3593 | BP51: 118.8919
A52: 3 | C52: 78.21449489 | D52: 112.1836297 | E52: 113.4617255 | F52: 123.1984957 | G52: 79.12741898 | H52: 93.91681721 | I52: 88.05085172 | J52: 131.9172116 | K52: 94.01142623 | L52: 85.91792852 | N52: 54.02528189 | O52: 50.96449253 | P52: 59.28373601 | Q52: 59.23725925 | R52: 62.61840464 | T52: 52.31894185 | U52: 68.74496467 | V52: 68.11255541 | W52: 56.09679429 | X52: 60.35932661 | Y52: 99.93880561 | Z52: 83.40157312 | AA52: 70.55753616 | AB52: 109.4199552 | AC52: 58.45546264 | AE52: 88.64010386 | AF52: 90.98881516 | AG52: 55.25856325 | AH52: 98.234126 | AI52: 72.31699347 | AJ52: 136.5006456 | AK52: 98.50136352 | AL52: 84.72448466 | AM52: 105.4578586 | AN52: 132.9468816 | AO52: 92.49430917 | AP52: 96.1626136 | AQ52: 69.23296542 | AR52: 92.96903446 | AS52: 92.96903446 | AT52: 124.3941384 | AU52: 141.5087096 | AV52: 100.3221755 | AW52: 113.5473711 | AX52: 114.295158 | AY52: 127.9826397 | AZ52: 115.1165174 | BA52: 147.5091689 | BB52: 206.3051978 | BC52: 166.126491 | BD52: 192.0071263 | BE52: 154.3386202 | BF52: 126.7612735 | BG52: 222.2961155 | BH52: 163.984299 | BM52: 138.185 | BO52: 99.9388 | BP52: 114.2796
A53: 4 | C53: 91.48675377 | D53: 91.75791506 | E53: 112.0215887 | F53: 80.4116512 | G53: 99.93156364 | H53: 67.95749215 | I53: 115.7998045 | J53: 100.5087539 | K53: 90.8553279 | L53: 149.2691492 | N53: 108.4770934 | O53: 97.47172082 | P53: 93.30354572 | Q53: 97.80486704 | R53: 70.21202589 | T53: 59.09431375 | U53: 62.87898217 | V53: 77.00661165 | W53: 77.01823244 | X53: 68.29838347 | Y53: 76.36356605 | Z53: 75.5268332 | AA53: 82.85599963 | AB53: 70.03383093 | AC53: 68.89494485 | AE53: 122.9262435 | AF53: 111.7426792 | AG53: 99.20717038 | AH53: 115.9457156 | AI53: 89.81328492 | AJ53: 109.5191332 | AK53: 128.1054676 | AL53: 101.9071857 | AM53: 140.3969345 | AN53: 114.3535944 | AO53: 83.80894567 | AP53: 142.8412776 | AQ53: 147.5091689 | AR53: 167.1711175 | AS53: 166.126491 | AT53: 173.0953975 | AU53: 154.3386202 | AV53: 126.7612735 | AW53: 222.2961155 | AX53: 163.984299 | AY53: 165.7313652 | AZ53: 159.3590194 | BA53: 161.4624797 | BB53: 190.7481524 | BC53: 203.3340243 | BD53: 220.2546391 | BE53: 169.6554983 | BF53: 205.4529726 | BG53: 231.2328902 | BH53: 236.3423905 | BM53: 125.172 | BO53: 83.4016 | BP53: 121.4079
A54: 5 | C54: 108.4962321 | D54: 107.0665425 | E54: 76.99580362 | F54: 137.4754874 | G54: 95.58179027 | H54: 115.2658528 | I54: 83.94331295 | J54: 120.9154398 | K54: 68.40447943 | L54: 85.85505915 | N54: 90.49771083 | O54: 67.43048515 | P54: 40.91311375 | Q54: 34.28514376 | R54: 27.61874065 | T54: 12.81780982 | U54: 28.56747586 | V54: 17.86016242 | W54: 21.36301643 | X54: 23.08369795 | Y54: 30.22776259 | Z54: 37.73858361 | AA54: 34.48060103 | AB54: 34.14019807 | AC54: 25.09536806 | AE54: 32.40304551 | AF54: 62.53088338 | AG54: 47.03926446 | AH54: 59.18834908 | AI54: 62.69779155 | AJ54: 86.47327706 | AK54: 80.04625128 | AL54: 98.94848559 | AM54: 84.15853662 | AN54: 81.78120817 | AO54: 114.3489641 | AP54: 103.796479 | AQ54: 114.6564242 | AR54: 156.7594849 | AS54: 194.7894226 | AT54: 152.4799228 | AU54: 137.5270958 | AV54: 126.8208806 | AW54: 132.4375282 | AX54: 117.5904785 | AY54: 128.6766254 | AZ54: 117.3576832 | BA54: 112.6722055 | BB54: 117.9199002 | BC54: 148.1904853 | BD54: 115.3822527 | BE54: 101.7899322 | BG54: 119.1131399 | BH54: 109.0255057 | BM54: 94.3171 | BO54: 70.5575 | BP54: 117.3457
BM55: 117.1879 | BO55: 109.42 | BP55: 111.9567
B56: MEAN | C56: =AVERAGE(C50:C54) -> 97.17706889 | D56: =AVERAGE(D50:D54) -> 111.4620366 | E56: 96.31550173 | F56: 99.67303748 | G56: 88.39452689 | H56: 100.1773696 | I56: 99.07708809 | J56: 109.3823407 | K56: 97.95184899 | L56: 100.389181 | N56: =AVERAGE(N50:N54) -> 77.08574578 | O56: 82.72191369 | P56: =AVERAGE(P50:P54) -> 74.01576733 | Q56: 72.89862721 | R56: 66.61865267 | T56: =AVERAGE(T50:T54) -> 60.75992125 | U56: 61.21854785 | V56: 59.11280436 | W56: 54.93514198 | X56: 58.83338507 | Y56: =AVERAGE(Y50:Y54) -> 73.25288064 | Z56: 65.62847023 | AA56: 62.74092644 | AB56: 68.06587736 | AC56: 63.33553228 | AE56: =AVERAGE(AE50:AE54) -> 73.72057321 | AF56: 78.20361262 | AG56: =AVERAGE(AG50:AG54) -> 73.42630477 | AH56: 88.0737004 | AI56: 81.61563468 | AJ56: 101.0037948 | AK56: 95.17961486 | AL56: 94.99605537 | AM56: 103.3793334 | AN56: 110.9947236 | AO56: 102.4140426 | AP56: 117.8017766 | AQ56: 111.7540412 | AR56: 134.7689388 | AS56: 132.3744369 | AT56: 136.3435886 | AU56: 132.3969376 | AV56: 114.4658626 | AW56: 138.1335887 | AX56: 121.8543305 | AY56: 136.1170898 | AZ56: 138.4141637 | BA56: 136.2330725 | BB56: 170.3890191 | BC56: 173.2224428 | BD56: 187.9571383 | BE56: 147.7390646 | BF56: 168.7800216 | BG56: 177.7033692 | BH56: 167.2069408 | BM56: 55.9921 | BO56: 58.4555 | BP56: 109.9434
B57: SEM | C57: =_xlfn.STDEV.S(C50:C54)/SQRT(5) -> 6.26265509 | D57: =_xlfn.STDEV.S(D50:D54)/SQRT(5) -> 6.571287433 | E57: 7.189591973 | F57: 13.58815807 | G57: 6.761081978 | H57: 12.17204469 | I57: 8.912567272 | J57: 7.242702403 | K57: 9.393371097 | L57: 16.40481424 | N57: =_xlfn.STDEV.S(N50:N54)/SQRT(5) -> 10.15700213 | O57: 19.13698476 | P57: =_xlfn.STDEV.S(P50:P54)/SQRT(5) -> 16.63513403 | Q57: 16.36743969 | R57: 13.3669998 | T57: =_xlfn.STDEV.S(T50:T54)/SQRT(5) -> 14.27966709 | U57: 14.24917992 | V57: 11.80542634 | W57: 10.17028661 | X57: 12.02913458 | Y57: =_xlfn.STDEV.S(Y50:Y54)/SQRT(5) -> 16.71613988 | Z57: 10.96299022 | AA57: 10.02359061 | AB57: 13.698838 | AC57: 14.26453255 | AE57: =_xlfn.STDEV.S(AE50:AE54)/SQRT(5) -> 16.53671219 | AF57: 10.66562717 | AG57: =_xlfn.STDEV.S(AG50:AG54)/SQRT(5) -> 12.28371384 | AH57: 10.0390615 | AI57: 8.62476539 | AJ57: 10.06428287 | AK57: 8.819530392 | AL57: 3.649305051 | AM57: 11.50211251 | AN57: 11.23630624 | AO57: 10.07034257 | AP57: 8.516145172 | AQ57: 13.26573667 | AR57: 12.99744588 | AS57: 20.49627175 | AT57: 11.44596619 | AU57: 7.918287746 | AV57: 6.021917339 | AW57: 21.44103199 | AX57: 11.95675934 | AY57: 9.515071095 | AZ57: 17.7277184 | BA57: 13.70995021 | BB57: 24.83856085 | BC57: 21.56552682 | BD57: 23.81894716 | BE57: 11.91071192 | BF57: 16.06109436 | BG57: 25.68058087 | BH57: 27.09550608 | BM57: 82.5363 | BO57: 57.504
BM58: 93.383 | BO58: 61.1868
BM59: 116.9901 | BO59: 74.9342
BM60: 98.3691 | BO60: 74.9455
BM61: 89.9573 | BO61: 66.4603
BM62: 96.5043 | BO62: 74.3085
BM63: 111.4711 | BO63: 73.4943
BM64: 120.6533 | BO64: 80.6262
BM65: 99.4889 | BO65: 68.1491
BM66: 90.6466 | BO66: 67.0409
BM67: 93.4852 | BO67: 12.9167
BM68: 92.0798 | BO68: 28.7879
BM69: 95.6838 | BO69: 17.998
BM70: 119.2305 | BO70: 21.5278
BM71: 142.1205 | BO71: 23.2618
BM72: 111.9604 | BO72: 30.461
BM73: 84.2984 | BO73: 38.0297
BM74: 77.6311 | BO74: 34.7466
BM75: 83.5102 | BO75: 34.4036
BO76: 25.289

Sheet Figure 5
A2: Fig 5. Synaptic potentiation involves activation of Gs proteins
A4: Fig 5A. Averaged time-course graph showing the effect of 3,5-DHBA (0.5 mM) | BJ4: Fig. 5B Box plots summarizing the actions of 3,5-DHBA on the RC EPSC | BQ4: Fig 4F. Boxplots summarizing the changes in the RC EPSC amplitude in cells treated with PT (50 ng/ml) or CTX (2.5 mcM)
C6: Baseline | N6: 3,5-DHBA (0.5 mM) | Y6: Washout | BJ6: Baseline | BL6: Baseline | BM6: 3.5-DHBA (0.5 mM) | BN6: Washout | BQ6: LTP | BS6: LTP | BT6: PT | BU6: CTX
A7: CELL | B7: TIME (min) | C7: 1 | D7: 2 | E7: 3 | F7: 4 | G7: 5 | H7: 6 | I7: 7 | J7: 8 | K7: 9 | L7: 10 | N7: 11 | O7: 12 | P7: 13 | Q7: 14 | R7: 15 | S7: 16 | T7: 17 | U7: 18 | V7: 19 | W7: 20 | Y7: 21 | Z7: 22 | AA7: 23 | AB7: 24 | AC7: 25 | AD7: 26 | AE7: 27 | AF7: 28 | AG7: 29 | AH7: 30 | AI7: 31 | AJ7: 32 | AK7: 33 | AL7: 34 | AM7: 35 | AN7: 36 | AO7: 37 | AP7: 38 | AQ7: 39 | AR7: 40 | AS7: 41 | AT7: 42 | AU7: 43 | AV7: 44 | AW7: 45 | AX7: 46 | AY7: 47 | AZ7: 48 | BA7: 49 | BB7: 50 | BC7: 51 | BD7: 52 | BE7: 53 | BF7: 54 | BG7: 55 | BJ7: MEAN | BK7: =AVERAGE(BL7:BL73) -> 97.21119783 | BL7: 87.0887 | BM7: 86.1537 | BN7: 166.2513 | BQ7: MEAN | BR7: =AVERAGE(BS7:BS86) -> 215.1190813 | BS7: 281.7199 | BT7: 122.435 | BU7: 138.8758
A8: 1 | C8: 99.0102337 | D8: 87.08871212 | E8: 109.0833379 | F8: 101.7173238 | G8: 108.7838695 | H8: 85.3565465 | I8: 111.8323945 | J8: 117.3793429 | K8: 95.8443367 | L8: 82.91413607 | N8: 86.15368734 | O8: 123.1690297 | P8: 112.5002729 | Q8: 103.5184302 | R8: 108.706308 | S8: 106.7867062 | T8: 105.7698176 | U8: 150.3644555 | V8: 131.6488848 | W8: 137.9592219 | Y8: 179.9448495 | Z8: 171.6179573 | AA8: 170.9199145 | AB8: 138.2673046 | AC8: 150.6531544 | AD8: 117.4856323 | AE8: 171.9734411 | AF8: 146.1396134 | AG8: 115.0015645 | AH8: 161.3111418 | AI8: 148.4427041 | AJ8: 146.7837896 | AK8: 154.0830125 | AL8: 116.0206147 | AM8: 122.7309608 | AN8: 131.3709633 | AO8: 148.2401882 | AP8: 134.4948923 | AQ8: 129.7917631 | AR8: 115.5444844 | AS8: 166.2512569 | AT8: 157.4611624 | AU8: 142.6171116 | AV8: 145.5708394 | AW8: 201.6960157 | AX8: 137.0349706 | AY8: 116.7725145 | AZ8: 164.3467406 | BA8: 103.7460856 | BB8: 165.1826585 | BC8: 147.7855968 | BD8: 114.9951038 | BE8: 158.5771666 | BF8: 161.5179633 | BG8: 109.158741 | BJ8: MEDIAN | BK8: =MEDIAN(BL7:BL73) -> 96.70755 | BL8: 109.0833 | BM8: 123.169 | BN8: 157.4612 | BQ8: MEDIAN | BR8: =MEDIAN(BS7:BS86) -> 210.5062 | BS8: 311.6732 | BT8: 104.7987 | BU8: 101.7093
A9: 2 | C9: 104.0973544 | D9: 105.1762778 | E9: 113.0013505 | F9: 81.80981631 | G9: 67.17295658 | H9: 89.16478497 | I9: 93.44480867 | J9: 92.60283639 | K9: 108.3073583 | L9: 112.6721653 | N9: 173.5408557 | O9: 124.4170827 | P9: 142.6141933 | Q9: 224.848499 | R9: 240.9336613 | S9: 252.9159755 | T9: 240.7635175 | U9: 210.4016751 | V9: 194.8532659 | W9: 308.8948085 | Y9: 305.8619571 | Z9: 275.2615513 | AA9: 353.3561584 | AB9: 391.2501458 | AC9: 301.5047404 | AD9: 317.5706122 | AE9: 360.0638698 | AF9: 351.6195909 | AG9: 328.2075183 | AH9: 303.7693017 | AI9: 295.6056816 | AJ9: 323.360918 | AK9: 345.4311066 | AL9: 316.5164062 | AM9: 293.2464154 | AN9: 366.8733151 | AO9: 283.2251889 | AP9: 273.9284242 | AQ9: 288.8664035 | AR9: 339.5022189 | AS9: 378.7082808 | AT9: 312.5135251 | AU9: 334.2837498 | AV9: 381.5288978 | AW9: 355.5768573 | AX9: 369.2097861 | AY9: 310.876944 | AZ9: 349.0305279 | BA9: 335.7273773 | BB9: 317.1706814 | BC9: 361.184748 | BD9: 346.294126 | BE9: 320.6473114 | BF9: 351.8125445 | BG9: 294.8409011 | BJ9: Q3 | BK9: =_xlfn.QUARTILE.INC(BL7:BL73, 3) -> 109.00845 | BL9: 101.7173 | BM9: 112.5003 | BN9: 142.6171 | BQ9: Q3 | BR9: =_xlfn.QUARTILE.INC(BS7:BS86, 3) -> 257.906725 | BS9: 249.7544 | BT9: 101.3594 | BU9: 106.3959
A10: 3 | C10: 106.8434179 | D10: 111.6525445 | E10: 108.6945183 | F10: 110.2953731 | G10: 91.81409498 | H10: 122.2386195 | I10: 88.59788869 | J10: 105.0330549 | K10: 77.95934929 | L10: 83.7145568 | N10: 67.54240298 | O10: 43.64762633 | P10: 109.2391817 | Q10: 59.66031597 | R10: 53.59239297 | S10: 106.4661616 | T10: 102.1834091 | U10: 110.6122305 | V10: 79.45458492 | W10: 67.59417706 | Y10: 74.96059417 | Z10: 136.5096288 | AA10: 104.7700425 | AB10: 116.6263084 | AC10: 119.8031664 | AD10: 128.9071219 | AE10: 90.96707091 | AF10: 149.1756415 | AG10: 135.2960442 | AH10: 127.1115966 | AI10: 130.9677306 | AJ10: 153.2430138 | AK10: 167.5616553 | AL10: 130.0109454 | AM10: 123.6903649 | AN10: 108.1146485 | AO10: 185.214548 | AP10: 140.411324 | AQ10: 212.1784925 | AR10: 210.2711351 | AS10: 201.6704238 | AT10: 300.0308343 | AU10: 333.8910873 | AV10: 300.9130648 | AW10: 271.8574471 | AX10: 258.6674807 | AY10: 333.963571 | AZ10: 307.0576134 | BA10: 300.2337888 | BB10: 262.4490601 | BC10: 326.1829612 | BD10: 342.8500753 | BE10: 249.8679569 | BF10: 270.558953 | BG10: 272.491162 | BJ10: Q1 | BK10: =_xlfn.QUARTILE.INC(BL7:BL73, 1) -> 84.62135 | BL10: 108.7839 | BM10: 103.5184 | BN10: 145.5708 | BQ10: Q1 | BR10: =_xlfn.QUARTILE.INC(BS7:BS86, 1) -> 166.570225 | BS10: 270.4566 | BT10: 122.065 | BU10: 186.3583
A11: 4 | C11: 96.00439111 | D11: 103.1117136 | E11: 85.22326153 | F11: 108.0930253 | G11: 80.5531938 | H11: 81.49676443 | I11: 105.6733291 | J11: 110.3316879 | K11: 112.8164857 | L11: 116.6961476 | N11: 116.1045756 | O11: 139.2026782 | P11: 169.7474551 | Q11: 111.4766637 | R11: 121.928277 | S11: 129.0840834 | T11: 122.2135305 | U11: 150.8711689 | V11: 173.9383557 | W11: 205.6100714 | Y11: 176.7922498 | Z11: 211.8152814 | AA11: 223.2083674 | AB11: 206.0765877 | AC11: 204.6826655 | AD11: 234.5297769 | AE11: 230.3887606 | AF11: 245.1577473 | AG11: 261.9101169 | AH11: 236.7246405 | AI11: 269.531033 | AJ11: 276.889886 | AK11: 303.5240892 | AL11: 234.2529614 | AM11: 250.6491346 | AN11: 263.8963259 | AO11: 263.4867211 | AP11: 290.4989047 | AQ11: 283.8644255 | AR11: 274.9514544 | AS11: 329.8301797 | AT11: 361.104234 | AU11: 331.8332356 | AV11: 308.7751975 | AW11: 317.4780717 | AX11: 324.6992235 | AY11: 322.6027198 | AZ11: 256.1665072 | BA11: 275.7039287 | BB11: 246.3191115 | BC11: 246.893824 | BD11: 251.2835554 | BE11: 218.1420396 | BF11: 226.863901 | BG11: 228.678669 | BL11: 85.3565 | BM11: 108.7063 | BN11: 201.696 | BS11: 283.7218 | BT11: 119.1604 | BU11: 102.7567
A12: 5 | C12: 114.0487497 | D12: 121.8959352 | E12: 84.17965366 | F12: 79.97993364 | G12: 103.8756268 | H12: 88.7879264 | I12: 97.41067641 | J12: 69.63923066 | K12: 78.17316391 | L12: 84.42072389 | N12: 63.57184034 | O12: 171.4171104 | P12: 106.3531632 | Q12: 132.7669937 | R12: 146.4979245 | S12: 160.7389088 | T12: 183.1255748 | U12: 195.1791552 | V12: 254.6477023 | W12: 313.5072323 | Y12: 269.8961152 | Z12: 282.8886071 | AA12: 293.5617267 | AB12: 284.3705621 | AC12: 202.4163787 | AD12: 222.2578287 | AE12: 270.0889688 | AF12: 239.7190295 | AG12: 309.5282829 | AH12: 266.193763 | AI12: 272.6595591 | AJ12: 248.189522 | AK12: 291.3793984 | AL12: 354.4437166 | AM12: 291.9934927 | AN12: 260.5323926 | AO12: 325.3349642 | AP12: 296.2465073 | AQ12: 315.4637153 | AR12: 211.7496514 | AS12: 201.6804751 | AT12: 365.8730484 | AU12: 306.2471714 | AV12: 298.3044975 | AW12: 295.5689616 | AX12: 363.8302864 | AY12: 428.8282468 | AZ12: 396.3825572 | BA12: 366.7409025 | BB12: 351.3123225 | BC12: 309.627258 | BD12: 305.8335367 | BE12: 409.9485457 | BF12: 503.6061262 | BG12: 348.9904409 | BJ12: 3,5-DHBA | BL12: 111.8324 | BM12: 106.7867 | BN12: 137.035 | BQ12: PT | BS12: 232.8597 | BT12: 126.111 | BU12: 115.7484
BJ13: MEAN | BK13: =AVERAGE(BM7:BM71) -> 144.974714 | BL13: 117.3793 | BM13: 105.7698 | BN13: 116.7725 | BQ13: MEAN | BR13: =AVERAGE(BT7:BT97) -> 199.8844692 | BS13: 144.4027 | BT13: 131.2189 | BU13: 153.1351
B14: MEAN | C14: =AVERAGE(C8:C12) -> 104.0008294 | D14: =AVERAGE(D8:D12) -> 105.7850367 | E14: 100.0364244 | F14: 96.37909443 | G14: 90.43994834 | H14: 93.40892836 | I14: 99.39181947 | J14: 98.99723055 | K14: 94.62013878 | L14: 96.08354592 | N14: =AVERAGE(N8:N12) -> 101.3826724 | O14: =AVERAGE(O8:O12) -> 120.3707055 | P14: 128.0908532 | Q14: 126.4541805 | R14: 134.3317127 | S14: 151.1983671 | T14: 150.8111699 | U14: 163.485737 | V14: 166.9085587 | W14: 206.7131022 | Y14: =AVERAGE(Y8:Y12) -> 201.4911531 | Z14: =AVERAGE(Z8:Z12) -> 215.6186052 | AA14: 229.1632419 | AB14: 227.3181817 | AC14: 195.8120211 | AD14: 204.1501944 | AE14: 224.6964222 | AF14: 226.3623245 | AG14: 229.9887054 | AH14: 219.0220887 | AI14: 223.4413417 | AJ14: =AVERAGE(AJ8:AJ12) -> 229.6934259 | AK14: 252.3958524 | AL14: 230.2489289 | AM14: 216.4620737 | AN14: 226.1575291 | AO14: 241.1003221 | AP14: 227.1160105 | AQ14: 246.03296 | AR14: 230.4037888 | AS14: 255.6281233 | AT14: 299.3965608 | AU14: 289.7744711 | AV14: 287.0184994 | AW14: 288.4354707 | AX14: 290.6883495 | AY14: 302.6087992 | AZ14: 294.5967892 | BA14: 276.4304166 | BB14: 268.4867668 | BC14: 278.3348776 | BD14: 272.2512794 | BE14: 271.436604 | BF14: 302.8718976 | BG14: 250.8319828 | BJ14: MEDIAN | BK14: =MEDIAN(BM7:BM71) -> 130.3665 | BL14: 95.8443 | BM14: 150.3645 | BN14: 164.3467 | BQ14: MEDIAN | BR14: =MEDIAN(BT7:BT97) -> 189.6273 | BS14: 106.4016 | BT14: 113.109 | BU14: 139.0065
B15: SEM | C15: =_xlfn.STDEV.S(C8:C12)/SQRT(5) -> 3.14562712 | D15: =_xlfn.STDEV.S(D8:D12)/SQRT(5) -> 5.705517044 | E15: 6.307794846 | F15: 6.482946938 | G15: 7.609224662 | H15: 7.339134845 | I15: 4.18345597 | J15: 8.383267824 | K15: 7.307634941 | L15: 7.624002572 | N15: =_xlfn.STDEV.S(N8:N12)/SQRT(5) -> 20.28581117 | O15: =_xlfn.STDEV.S(O8:O12)/SQRT(5) -> 21.06064258 | P15: 12.28246467 | Q15: 27.32497805 | R15: 30.69310711 | S15: 27.29459761 | T15: 26.78325326 | U15: 17.79393303 | V15: 29.51264489 | W15: 47.92101595 | Y15: =_xlfn.STDEV.S(Y8:Y12)/SQRT(5) -> 40.40839328 | Z15: =_xlfn.STDEV.S(Z8:Z12)/SQRT(5) -> 28.5405734 | AA15: 43.85912626 | AB15: 50.37986591 | AC15: 30.9111032 | AD15: 36.93728666 | AE15: 45.32134376 | AF15: 37.82493866 | AG15: 44.26126905 | AH15: 32.78622369 | AI15: 34.59085784 | AJ15: =_xlfn.STDEV.S(AJ8:AJ12)/SQRT(5) -> 34.68564818 | AK15: 38.50430332 | AL15: 47.94695835 | AM15: 38.83406816 | AN15: 47.60535429 | AO15: 32.49411824 | AP15: 36.79958773 | AQ15: 33.72291081 | AR15: 37.30477339 | AS15: 41.51185172 | AT15: 37.77901184 | AU15: 37.16377919 | AV15: 38.55738745 | AW15: 25.69133032 | AX15: 43.1895794 | AY15: 50.94983537 | AZ15: 39.9503494 | BA15: 45.85799815 | BB15: 31.96075237 | BC15: 37.52626264 | BD15: 42.87391476 | BE15: 43.38779866 | BF15: 58.94560802 | BG15: 40.3751561 | BJ15: Q3 | BK15: =_xlfn.QUARTILE.INC(BM7:BM71, 3) -> 173.839025 | BL15: 82.9141 | BM15: 131.6489 | BN15: 103.7461 | BQ15: Q3 | BR15: =_xlfn.QUARTILE.INC(BT7:BT97, 3) -> 258.8319 | BS15: 135.6034 | BT15: 110.654 | BU15: 115.0492
BJ16: Q1 | BK16: =_xlfn.QUARTILE.INC(BM7:BM71, 1) -> 106.546325 | BL16: 105.1763 | BM16: 137.9592 | BN16: 165.1827 | BQ16: Q1 | BR16: =_xlfn.QUARTILE.INC(BT7:BT97, 1) -> 137.7776 | BS16: 206.6528 | BT16: 160.2089 | BU16: 126.8957
BL17: 113.0014 | BM17: 173.5409 | BN17: 378.7083 | BS17: 228.528 | BT17: 115.3425 | BU17: 148.922
A18: Fig 5C. Analysis of the paired-pulse ratio in the presence of 3,5-DHBA (0.5 mM) | BJ18: Washout | BL18: 81.8098 | BM18: 124.4171 | BN18: 312.5135 | BQ18: CTX | BS18: 258.5234 | BT18: 132.5259 | BU18: 78.4679
BJ19: MEAN | BK19: =AVERAGE(BN7:BN75) -> 285.306424 | BL19: 67.173 | BM19: 142.6142 | BN19: 334.2837 | BQ19: MEAN | BR19: =AVERAGE(BU7:BU89) -> 107.5696554 | BS19: 246.2085 | BT19: 136.9646 | BU19: 84.7792
B20: PPR | BJ20: MEDIAN | BK20: =MEDIAN(BN7:BN75) -> 307.9164 | BL20: 89.1648 | BM20: 224.8485 | BN20: 381.5289 | BQ20: MEDIAN | BR20: =MEDIAN(BU7:BU89) -> 101.7093 | BS20: 224.648 | BT20: 172.4344 | BU20: 96.6373
A21: CELL | B21: Baseline | C21: 3,5-DHBA (0.5 mM) | D21: Washout | BJ21: Q3 | BK21: =_xlfn.QUARTILE.INC(BN7:BN75, 3) -> 335.366475 | BL21: 93.4448 | BM21: 240.9337 | BN21: 355.5769 | BQ21: Q3 | BR21: =_xlfn.QUARTILE.INC(BU7:BU89, 3) -> 123.1001 | BS21: 179.3404 | BT21: 126.7828 | BU21: 75.2
A22: 1 | B22: 1.4819 | C22: 1.3912 | D22: 1.2976 | BJ22: Q1 | BK22: =_xlfn.QUARTILE.INC(BN7:BN75, 1) -> 248.78095 | BL22: 92.6028 | BM22: 252.916 | BN22: 369.2098 | BQ22: Q1 | BR22: =_xlfn.QUARTILE.INC(BU7:BU89, 1) -> 84.53895 | BS22: 228.2121 | BT22: 111.9991 | BU22: 106.9535
A23: 2 | B23: 1.3115 | C23: 1.2846 | D23: 1.2026 | BL23: 108.3074 | BM23: 240.7635 | BN23: 310.8769 | BS23: 268.4826 | BT23: 123.8729 | BU23: 101.8726
A24: 3 | B24: 1.3782 | C24: 1.3174 | D24: 1.4357 | BL24: 112.6722 | BM24: 210.4017 | BN24: 349.0305 | BS24: 243.9331 | BT24: 137.5709 | BU24: 96.3642
A25: 4 | B25: 1.3781 | C25: 1.475 | D25: 1.4612 | BL25: 111.6525 | BM25: 194.8533 | BN25: 335.7274 | BS25: 182.5201 | BT25: 137.6002 | BU25: 69.1772
A26: 5 | B26: 1.2704 | C26: 1.4876 | D26: 1.4285 | BL26: 108.6945 | BM26: 308.8948 | BN26: 317.1707 | BS26: 241.4055 | BT26: 123.0212 | BU26: 117.8241
BL27: 110.2954 | BM27: 67.5424 | BN27: 201.6704 | BS27: 314.1844 | BT27: 178.2642 | BU27: 96.2428
A28: MEAN | B28: =AVERAGE(B22:B26) -> 1.36402 | C28: =AVERAGE(C22:C26) -> 1.39116 | D28: 1.36512 | BL28: 91.8141 | BM28: 43.6476 | BN28: 300.0308 | BS28: 258.2452 | BT28: 167.3167 | BU28: 127.8154
A29: SEM | B29: =_xlfn.STDEV.S(B22:B26)/SQRT(5) -> 0.03592914416 | C29: =_xlfn.STDEV.S(C22:C26)/SQRT(5) -> 0.04069729229 | D29: 0.04959920765 | BL29: 122.2386 | BM29: 109.2392 | BN29: 333.8911 | BS29: 367.6035 | BT29: 174.1802 | BU29: 213.3236
BL30: 88.5979 | BM30: 59.6603 | BN30: 300.9131 | BS30: 254.3672 | BT30: 157.5174 | BU30: 133.013
A31: Fig 5D. Averaged time-course graph showing the effect of Lactate (2 mM) in the presence of pertussis toxin (50 ng/ml) | BL31: 105.0331 | BM31: 53.5924 | BN31: 271.8574 | BS31: 211.6102 | BT31: 154.1013 | BU31: 136.0148
BL32: 77.9593 | BM32: 106.4662 | BN32: 258.6675 | BS32: 271.9223 | BT32: 173.8118 | BU32: 124.4935
C33: Baseline | N33: Lactate perfusion (2 mM) | Y33: Washout | BL33: 83.7146 | BM33: 102.1834 | BN33: 333.9636 | BS33: 275.2917 | BT33: 161.9386 | BU33: 144.0583
A34: CELL | B34: TIME (min) | C34: 1 | D34: 2 | E34: 3 | F34: 4 | G34: 5 | H34: 6 | I34: 7 | J34: 8 | K34: 9 | L34: 10 | N34: 11 | O34: 12 | P34: 13 | Q34: 14 | R34: 15 | S34: 16 | T34: 17 | U34: 18 | V34: 19 | W34: 20 | Y34: 21 | Z34: 22 | AA34: 23 | AB34: 24 | AC34: 25 | AD34: 26 | AE34: 27 | AF34: 28 | AG34: 29 | AH34: 30 | AI34: 31 | AJ34: 32 | AK34: 33 | AL34: 34 | AM34: 35 | AN34: 36 | AO34: 37 | AP34: 38 | AQ34: 39 | AR34: 40 | AS34: 41 | AT34: 42 | AU34: 43 | AV34: 44 | AW34: 45 | AX34: 46 | AY34: 47 | AZ34: 48 | BA34: 49 | BB34: 50 | BC34: 51 | BD34: 52 | BE34: 53 | BF34: 54 | BG34: 55 | BL34: 96.0044 | BM34: 110.6122 | BN34: 307.0576 | BS34: 377.1076 | BT34: 168.7605 | BU34: 97.3181
A35: 1 | C35: 109.4412535 | D35: 91.71183451 | E35: 104.1492296 | F35: 87.68644963 | G35: 99.64641276 | H35: 91.60484798 | I35: 108.9235526 | J35: 111.8801769 | K35: 91.11993367 | L35: 103.8363088 | N35: 90.42104247 | O35: 109.6851448 | P35: 119.3580331 | Q35: 81.17496486 | R35: 118.2006899 | S35: 56.66371426 | T35: 61.5076386 | U35: 58.73450586 | V35: 106.9010828 | W35: 94.90890274 | Y35: 114.7610678 | Z35: 107.1999913 | AA35: 123.4839577 | AB35: 113.184838 | AC35: 107.0630899 | AD35: 136.5636689 | AE35: 167.1502154 | AF35: 104.963305 | AG35: 92.74570898 | AH35: 139.8672081 | AI35: 89.33610176 | AJ35: 152.3499782 | AK35: 140.7484388 | AL35: 90.86422449 | AM35: 83.35310599 | AN35: 130.3901194 | AO35: 133.9292243 | AP35: 90.81982582 | AQ35: 80.05265112 | AR35: 74.21210704 | AS35: 106.50438 | AT35: 91.36003729 | AU35: 91.14358075 | AV35: 87.37322077 | AW35: 149.7932355 | AX35: 122.4349893 | AY35: 104.7986523 | AZ35: 101.3594446 | BA35: 122.0649854 | BB35: 119.1604383 | BC35: 126.1110018 | BD35: 131.2189261 | BE35: 113.108986 | BF35: 110.6539972 | BG35: 160.2089004 | BL35: 103.1117 | BM35: 79.4546 | BN35: 300.2338 | BS35: 384.0688 | BT35: 159.5848 | BU35: 179.5823
A36: 2 | C36: 106.6057585 | D36: 106.1611105 | E36: 94.07999203 | F36: 108.762729 | G36: 92.91961401 | H36: 93.66454656 | I36: 93.1978401 | J36: 119.9238106 | K36: 100.4328028 | L36: 91.09865682 | N36: 90.45344415 | O36: 66.22588731 | P36: 81.8762031 | Q36: 82.58224815 | R36: 83.08086598 | S36: 96.45980376 | T36: 101.5497062 | U36: 117.7109412 | V36: 100.528537 | W36: 84.80409195 | Y36: 79.55363877 | Z36: 82.77770583 | AA36: 79.6792898 | AB36: 94.26488479 | AC36: 81.7522158 | AD36: 85.73152333 | AE36: 73.09353075 | AF36: 107.5554035 | AG36: 102.9089432 | AH36: 77.1635914 | AI36: 107.8203351 | AJ36: 99.40365001 | AK36: 135.2121294 | AL36: 134.0297374 | AM36: 135.5814384 | AN36: 145.2875531 | AO36: 124.7883366 | AP36: 116.7635658 | AQ36: 138.2959183 | AR36: 135.4268663 | AS36: 95.88639537 | AT36: 125.1240704 | AU36: 109.3065522 | AV36: 143.6660446 | AW36: 136.8957973 | AX36: 115.3425018 | AY36: 132.5259066 | AZ36: 136.964609 | BA36: 172.4343556 | BB36: 126.7828142 | BC36: 111.9990969 | BD36: 123.8728735 | BE36: 137.5709282 | BF36: 137.6001821 | BG36: 123.0212275 | BL36: 85.2233 | BM36: 67.5942 | BN36: 262.4491 | BS36: 355.2069 | BT36: 166.575 | BU36: 164.2367
A37: 3 | C37: 108.3270625 | D37: 92.13163845 | E37: 88.16089708 | F37: 102.0103244 | G37: 79.58669487 | H37: 112.4227791 | I37: 92.35903338 | J37: 113.0541934 | K37: 103.628131 | L37: 108.3192459 | N37: 98.47310921 | O37: 136.0337284 | P37: 106.6745342 | Q37: 123.1112349 | R37: 102.0376626 | S37: 97.0097906 | T37: 108.9076997 | U37: 100.8516494 | V37: 157.0070571 | W37: 155.7346801 | Y37: 179.132554 | Z37: 127.6157561 | AA37: 122.9901618 | AB37: 133.5210928 | AC37: 131.5122895 | AD37: 123.4575405 | AE37: 138.0256082 | AF37: 162.7535657 | AG37: 165.1698637 | AH37: 141.4847077 | AI37: 135.5390066 | AJ37: 146.343334 | AK37: 163.2599969 | AL37: 121.9968256 | AM37: 163.8718849 | AN37: 164.3041113 | AO37: 211.3997159 | AP37: 138.3354553 | AQ37: 115.3398685 | AR37: 131.887227 | AS37: 145.6858846 | AT37: 163.4409598 | AU37: 210.2163053 | AV37: 172.9017452 | AW37: 186.6014577 | AX37: 178.264197 | AY37: 167.3166636 | AZ37: 174.1801939 | BA37: 157.5173924 | BB37: 154.1012533 | BC37: 173.8117574 | BD37: 161.9385877 | BE37: 168.7604537 | BF37: 159.5847905 | BG37: 166.5750306 | BL37: 108.093 | BM37: 116.1046 | BN37: 329.8302 | BS37: 240.1023 | BT37: 278.2458 | BU37: 107.8725
A38: 4 | C38: 101.0100216 | D38: 107.9992992 | E38: 94.34675999 | F38: 94.6896895 | G38: 113.5353579 | H38: 113.9298048 | I38: 114.1750813 | J38: 73.17056371 | K38: 98.04054118 | L38: 89.10288087 | N38: 104.6338366 | O38: 107.9116449 | P38: 108.1330857 | Q38: 72.37590709 | R38: 98.766767 | S38: 72.44625991 | T38: 78.71930946 | U38: 94.18529093 | V38: 66.27470785 | W38: 105.4331044 | Y38: 102.3421386 | Z38: 67.84210387 | AA38: 87.43283615 | AB38: 99.43109345 | AC38: 92.94582997 | AD38: 110.2125681 | AE38: 151.3708672 | AF38: 121.2473979 | AG38: 120.3400981 | AH38: 151.0975255 | AI38: 221.8264525 | AJ38: 104.2428502 | AK38: 156.8492579 | AL38: 220.1194979 | AM38: 168.9028781 | AN38: 213.675757 | AO38: 191.4034975 | AP38: 180.4951518 | AQ38: 166.8683709 | AR38: 278.2458191 | AS38: 193.1842681 | AT38: 258.7692732 | AU38: 284.4785025 | AV38: 242.8311895 | AW38: 189.6273464 | AX38: 173.2498343 | AY38: 194.6986106 | AZ38: 217.0319923 | BA38: 127.5615799 | BB38: 140.327292 | BC38: 134.0460261 | BD38: 154.4761011 | BE38: 127.1388235 | BF38: 126.2193758 | BG38: 137.6158042 | BL38: 80.5532 | BM38: 139.2027 | BN38: 361.1042 | BS38: 116.9554 | BT38: 193.1843 | BU38: 99.1413
A39: 5 | C39: 95.49251699 | D39: 91.8961918 | E39: 99.81481062 | F39: 98.18896674 | G39: 106.8511041 | H39: 111.7828884 | I39: 97.86826677 | J39: 107.3813529 | K39: 96.08127003 | L39: 94.64263163 | N39: 87.41806787 | O39: 111.4925043 | P39: 63.96323273 | Q39: 100.9412543 | R39: 95.47816089 | S39: 118.3181801 | T39: 125.2555452 | U39: 87.42072846 | V39: 86.08207705 | W39: 118.3867878 | Y39: 83.35691134 | Z39: 152.1179063 | AA39: 181.0400905 | AB39: 223.9646621 | AC39: 149.1996815 | AD39: 247.4652312 | AE39: 193.6750978 | AF39: 229.8936513 | AG39: 263.3471405 | AH39: 167.1478054 | AI39: 185.311328 | AJ39: 164.4082809 | AK39: 170.6260642 | AL39: 197.3607765 | AM39: 186.0500594 | AN39: 167.3408648 | AO39: 135.1239063 | AP39: 157.367203 | AQ39: 214.6355959 | AR39: 190.5255238 | AS39: 220.6970142 | AT39: 239.1509215 | AU39: 241.5426225 | AV39: 238.8142593 | AW39: 165.0034123 | AX39: 200.4896149 | AY39: 254.8732775 | AZ39: 229.2586304 | BA39: 182.6595594 | BB39: 186.4425642 | BC39: 150.6771445 | BD39: 164.4641235 | BE39: 202.9116324 | BF39: 217.4501101 | BG39: 193.1246461 | BL39: 81.4968 | BM39: 169.7475 | BN39: 331.8332 | BS39: 166.7604 | BT39: 258.7693 | BU39: 110.501
A40: 6 | C40: 143.0398552 | D40: 148.1452688 | E40: 136.2598654 | F40: 103.0224812 | G40: 101.5978789 | H40: 111.7253911 | I40: 98.10555259 | J40: 71.17651996 | K40: 41.84484256 | L40: 45.08234436 | N40: 83.72528125 | O40: 154.1963786 | P40: 153.3712224 | Q40: 107.0293137 | R40: 126.8571989 | S40: 115.2322781 | T40: 136.1886797 | U40: 119.8045827 | V40: 83.36447702 | W40: 150.0172284 | Y40: 145.3405704 | Z40: 118.5377334 | AA40: 120.7001166 | AB40: 112.5699546 | AC40: 171.8181956 | AD40: 202.3851752 | AE40: 241.9074573 | AF40: 199.4291856 | AG40: 217.6941373 | AH40: 163.8093843 | AI40: 188.568749 | AJ40: 177.7762659 | AK40: 202.3511903 | AL40: 276.8428774 | AM40: 280.1264884 | AN40: 325.3156212 | AO40: 298.903509 | AP40: 358.4793919 | AQ40: 310.5599833 | AR40: 245.445897 | AS40: 209.0033672 | AT40: 289.6812588 | AU40: 283.4440782 | AV40: 277.1595445 | AW40: 282.9060454 | AX40: 287.5440931 | AY40: 287.2535292 | AZ40: 291.6714307 | BA40: 296.0893321 | BB40: 300.5072336 | BC40: 304.9251351 | BD40: 309.3430365 | BE40: 320.0104266 | BF40: 318.1788395 | BG40: 322.596741 | BL40: 105.6733 | BM40: 111.4767 | BN40: 308.7752 | BS40: 236.1922 | BT40: 284.4785 | BU40: 103.2231
A41: 7 | C41: 102.8417791 | D41: 84.08421415 | E41: 93.51828976 | F41: 117.7600563 | G41: 83.47025028 | H41: 113.3240834 | I41: 100.7902447 | J41: 84.82450269 | K41: 100.6500959 | L41: 118.7364838 | N41: 102.7864876 | O41: 64.45465808 | P41: 139.3639762 | Q41: 109.1806942 | R41: 126.9741206 | S41: 156.1586977 | T41: 125.1437446 | U41: 117.5204597 | V41: 94.02166733 | W41: 129.0648206 | Y41: 156.5595636 | Z41: 108.7994148 | AA41: 154.8409232 | AB41: 133.9968795 | AC41: 203.0802565 | AD41: 149.4880356 | AE41: 219.9176121 | AF41: 124.5459121 | AG41: 202.3557141 | AH41: 199.0923781 | AI41: 203.4776716 | AJ41: 252.4139024 | AK41: 226.95227 | AL41: 143.9024644 | AM41: 209.6138508 | AN41: 153.0036417 | AO41: 211.345157 | AP41: 165.71833 | AQ41: 153.1130714 | AR41: 207.4482715 | AS41: 243.622593 | AT41: 255.062124 | AU41: 178.0310096 | AV41: 172.3717101 | AW41: 135.4559538 | AX41: 208.3386883 | AY41: 273.0099072 | AZ41: 312.0927752 | BA41: 216.8765882 | BB41: 294.4848144 | BC41: 233.4962256 | BD41: 221.6650368 | BE41: 195.642435 | BF41: 287.5526639 | BG41: 288.089441 | BL41: 110.3317 | BM41: 121.9283 | BN41: 317.4781 | BS41: 191.723 | BT41: 242.8312 | BU41: 113.4421
A42: 8 | C42: 102.1161527 | D42: 86.49128566 | E42: 95.86378773 | F42: 109.3945229 | G42: 95.51844945 | H42: 110.4697408 | I42: 116.5865635 | J42: 99.13031463 | K42: 100.4357577 | L42: 83.99342496 | N42: 83.82450854 | O42: 100.4282528 | P42: 84.27369831 | Q42: 84.32374547 | R42: 55.74328703 | S42: 70.73420072 | T42: 84.27494937 | U42: 63.7148342 | V42: 55.84213253 | W42: 76.28588503 | Y42: 68.99374934 | Z42: 71.83778211 | AA42: 94.53373658 | AB42: 103.4762366 | AC42: 84.28746104 | AD42: 90.26330831 | AE42: 102.6291558 | AF42: 113.4847744 | AG42: 84.46513693 | AH42: 106.3878327 | AI42: 91.10079563 | AJ42: 95.9972508 | AK42: 123.6935137 | AL42: 119.9023075 | AM42: 105.5165607 | AN42: 116.4188976 | AO42: 131.8506584 | AP42: 130.746665 | AQ42: 164.8562892 | AR42: 165.2116311 | AS42: 129.5529978 | AT42: 143.6555442 | AU42: 125.3764107 | AV42: 160.4194444 | AW42: 144.332875 | AX42: 171.6754552 | AY42: 126.0545697 | AZ42: 145.8414299 | BA42: 134.2400799 | BB42: 140.118333 | BC42: 137.3143396 | BD42: 173.9564399 | BE42: 109.293176 | BF42: 140.3573136 | BG42: 125.2625487 | BL42: 112.8165 | BM42: 129.0841 | BN42: 324.6992 | BS42: 231.1179 | BT42: 189.6273 | BU42: 90.5989
BL43: 116.6961 | BM43: 122.2135 | BN43: 322.6027 | BS43: 301.708 | BT43: 173.2498 | BU43: 130.0863
B44: MEAN | C44: =AVERAGE(C35:C42) -> 108.6093 | D44: =AVERAGE(D35:D42) -> 101.0776054 | E44: 100.774204 | F44: 102.6894025 | G44: 96.64072028 | H44: 107.3655103 | I44: 102.7507669 | J44: 97.56767935 | K44: 91.52917186 | L44: 91.85149714 | N44: =AVERAGE(N35:N42) -> 92.71697222 | O44: =AVERAGE(O35:O42) -> 106.3035249 | P44: 107.1267482 | Q44: 95.08992035 | R44: 100.8923441 | S44: 97.87786564 | T44: 102.6934091 | U44: 94.99287406 | V44: 93.75271734 | W44: 114.3294376 | Y44: =AVERAGE(Y35:Y42) -> 116.2550242 | Z44: =AVERAGE(Z35:Z42) -> 104.5910492 | AA44: 120.587639 | AB44: 126.8012052 | AC44: 127.7073775 | AD44: 143.1958814 | AE44: 160.9711931 | AF44: 145.4841494 | AG44: 156.1283428 | AH44: 143.2563042 | AI44: 152.872555 | AJ44: 149.116939 | AK44: 164.9616076 | AL44: 163.1273389 | AM44: 166.6270333 | AN44: 176.9670708 | AO44: 179.8430006 | AP44: 167.3406986 | AQ44: 167.9652186 | AR44: 178.5504179 | AS44: 168.0171125 | AT44: 195.7805236 | AU44: 190.4423827 | AV44: 186.9421448 | AW44: 173.8270154 | AX44: 182.1674217 | AY44: 192.5663896 | AZ44: 201.0500633 | BA44: 176.1804841 | BB44: 182.7405929 | BC44: 171.5475909 | BD44: 180.1168906 | BE44: 171.8046077 | BF44: 187.1996591 | BG44: 189.5617924 | BL44: 121.8959 | BM44: 150.8712 | BN44: 256.1665 | BS44: 212.0308 | BT44: 194.6986 | BU44: 116.5443
B45: SEM | C45: =_xlfn.STDEV.S(C35:C42)/SQRT(8) -> 5.167676671 | D45: =_xlfn.STDEV.S(D35:D42)/SQRT(8) -> 7.37115423 | E45: 5.334396301 | F45: 3.324365011 | G45: 4.014917526 | H45: 3.241591992 | I45: 3.296520128 | J45: 6.677958713 | K45: 7.220998107 | L45: 7.794961755 | N45: =_xlfn.STDEV.S(N35:N42)/SQRT(8) -> 2.91222659 | O45: =_xlfn.STDEV.S(O35:O42)/SQRT(8) -> 10.86493447 | P45: 10.64991012 | Q45: 6.185287805 | R45: 8.498782376 | S45: 11.33936987 | T45: 9.2439082 | U45: 8.47741058 | V45: 10.8389038 | W45: 10.34836596 | Y45: =_xlfn.STDEV.S(Y35:Y42)/SQRT(8) -> 14.19426101 | Z45: =_xlfn.STDEV.S(Z35:Z42)/SQRT(8) -> 10.27049313 | AA45: 12.1695607 | AB45: 14.80672822 | AC45: 15.66100109 | AD45: 19.8388859 | AE45: 20.21227874 | AF45: 16.61732217 | AG45: 23.44104036 | AH45: 13.30583937 | AI45: 18.81526528 | AJ45: 18.44411756 | AK45: 12.3317096 | AL45: 22.09945237 | AM45: 21.85703664 | AN45: 23.53612948 | AO45: 21.43903944 | AP45: 29.09438464 | AQ45: 24.68413321 | AR45: 23.33535319 | AS45: 19.71649418 | AT45: 25.99418322 | AU45: 27.1652508 | AV45: 21.89795991 | AW45: 17.25476525 | AX45: 19.06907281 | AY45: 25.24625671 | AZ45: 26.52795338 | BA45: 20.48078811 | BB45: 26.04217844 | BC45: 23.24431353 | BD45: 21.23461909 | BE45: 24.65112023 | BF45: 27.75405015 | BG45: 26.74919815 | BL45: 84.1797 | BM45: 173.9384 | BN45: 275.7039 | BS45: 326.3398 | BT45: 217.032 | BU45: 157.0123
BL46: 79.9799 | BM46: 205.6101 | BN46: 246.3191 | BS46: 310.3909 | BT46: 127.5616 | BU46: 199.2949
A47: Fig 5E. Averaged time-course graph showing the effect of Lactate (2 mM) in the presence of cholerae toxin (2.5 mcg/ml) | BL47: 103.8756 | BM47: 63.5718 | BN47: 201.6805 | BS47: 100.5536 | BT47: 200.4896 | BU47: 171.634
BL48: 88.7879 | BM48: 171.4171 | BN48: 365.873 | BS48: 121.8369 | BT48: 254.8733 | BU48: 79.6728
C49: Baseline | N49: Lactate perfusion (2 mM) | Y49: Washout | BL49: 97.4107 | BM49: 106.3532 | BN49: 306.2472 | BS49: 131.4845 | BT49: 229.2586 | BU49: 65.4389
A50: CELL | B50: TIME (min) | C50: 1 | D50: 2 | E50: 3 | F50: 4 | G50: 5 | H50: 6 | I50: 7 | J50: 8 | K50: 9 | L50: 10 | N50: 11 | O50: 12 | P50: 13 | Q50: 14 | R50: 15 | S50: 16 | T50: 17 | U50: 18 | V50: 19 | W50: 20 | Y50: 21 | Z50: 22 | AA50: 23 | AB50: 24 | AC50: 25 | AD50: 26 | AE50: 27 | AF50: 28 | AG50: 29 | AH50: 30 | AI50: 31 | AJ50: 32 | AK50: 33 | AL50: 34 | AM50: 35 | AN50: 36 | AO50: 37 | AP50: 38 | AQ50: 39 | AR50: 40 | AS50: 41 | AT50: 42 | AU50: 43 | AV50: 44 | AW50: 45 | AX50: 46 | AY50: 47 | AZ50: 48 | BA50: 49 | BB50: 50 | BC50: 51 | BD50: 52 | BE50: 53 | BF50: 54 | BG50: 55 | BL50: 69.6392 | BM50: 132.767 | BN50: 298.3045 | BS50: 96.0315 | BT50: 182.6596 | BU50: 84.2987
A51: 1 | C51: 98.28823602 | D51: 100.5891468 | E51: 97.72379658 | F51: 99.92186592 | G51: 106.6411677 | H51: 119.3823437 | I51: 93.28294582 | J51: 97.8674191 | K51: 103.7358262 | L51: 82.56725217 | N51: 52.74471494 | O51: 36.533758 | P51: 41.02090893 | Q51: 34.37154755 | R51: 34.11287076 | S51: 47.93544855 | T51: 46.3928428 | U51: 47.74454354 | V51: 37.35175323 | W51: 68.63355907 | Y51: 53.70101329 | Z51: 54.44394653 | AA51: 75.5758751 | AB51: 50.55374312 | AC51: 61.0937012 | AD51: 100.7806418 | AE51: 102.9450179 | AF51: 106.5911231 | AG51: 99.10150089 | AH51: 82.59069429 | AI51: 78.27750593 | AJ51: 101.1695449 | AK51: 110.8128983 | AL51: 95.27690534 | AM51: 105.1921412 | AN51: 116.712042 | AO51: 116.1511456 | AP51: 105.08339 | AQ51: 111.8684916 | AR51: 97.74448515 | AS51: 100.3249489 | AT51: 79.41820521 | AU51: 85.80593668 | AV51: 97.80772541 | AW51: 76.11076485 | AX51: 108.2487848 | AY51: 103.1063714 | AZ51: 97.5313164 | BA51: 70.01500629 | BB51: 119.2511297 | BC51: 97.40838068 | BD51: 78.60295674 | BE51: 69.06455218 | BF51: 71.98150821 | BG51: 87.23849586 | BL51: 78.1732 | BM51: 146.4979 | BN51: 295.569 | BS51: 133.5293 | BT51: 186.4426 | BU51: 81.2963
A52: 2 | C52: 102.8852809 | D52: 105.7343708 | E52: 81.63334252 | F52: 98.33815888 | G52: 109.4758072 | H52: 84.69271391 | I52: 106.9807515 | J52: 103.3440732 | K52: 97.27070726 | L52: 109.6447938 | N52: 102.8715181 | O52: 74.34775218 | P52: 89.0642196 | Q52: 76.14188009 | R52: 82.50657525 | S52: 75.35785794 | T52: 71.81446602 | U52: 70.17505429 | V52: 39.04077038 | W52: 27.61612443 | Y52: 57.64701816 | Z52: 56.87319094 | AA52: 37.20790322 | AB52: 44.06987873 | AC52: 78.00278179 | AD52: 64.06090645 | AE52: 87.22676653 | AF52: 71.30214945 | AG52: 73.43909338 | AH52: 83.76289813 | AI52: 81.59970186 | AJ52: 46.26136847 | AK52: 59.46535504 | AL52: 60.86211897 | AM52: 69.59238988 | AN52: 61.89923924 | AO52: 56.95042021 | AP52: 47.3135286 | AQ52: 55.96172714 | AR52: 98.32639915 | AS52: 83.33397821 | AT52: 152.5296386 | AU52: 100.8588591 | AV52: 129.4539164 | AW52: 110.7133914 | AX52: 91.53116211 | AY52: 100.1059187 | AZ52: 75.66031197 | BA52: 61.05763026 | BB52: 129.9497918 | BC52: 172.8141854 | BD52: 129.044276 | BE52: 137.381325 | BF52: 109.2854625 | BG52: 100.0429937 | BL52: 84.4207 | BM52: 160.7389 | BN52: 363.8303 | BS52: 132.745 | BT52: 150.6771 | BU52: 77.0197
A53: 3 | C53: 100.5437083 | D53: 89.75066736 | E53: 98.37033866 | F53: 113.4463929 | G53: 99.95176484 | H53: 93.54719141 | I53: 99.33276549 | J53: 115.869656 | K53: 98.05854403 | L53: 91.12897099 | N53: 71.17520719 | O53: 119.3264207 | P53: 122.6625925 | Q53: 86.63779181 | R53: 89.48381039 | S53: 77.46010842 | T53: 100.1457167 | U53: 82.23052343 | V53: 77.02955986 | W53: 93.93097137 | Y53: 113.5738612 | Z53: 72.19586676 | AA53: 110.154234 | AB53: 100.3946926 | AC53: 112.3248564 | AD53: 137.8413561 | AE53: 143.0450683 | AF53: 140.025735 | AG53: 120.6455748 | AH53: 110.6907027 | AI53: 140.4273926 | AJ53: 150.7550412 | AK53: 120.4309887 | AL53: 117.710142 | AM53: 127.330759 | AN53: 121.0596162 | AO53: 177.5260429 | AP53: 141.9583841 | AQ53: 159.8969664 | AR53: 147.8883861 | AS53: 152.0425577 | AT53: 137.6570333 | AU53: 126.8616954 | AV53: 104.7208023 | AW53: 118.027899 | AX53: 138.791861 | AY53: 101.6478211 | AZ53: 106.3315785 | BA53: 186.2456675 | BB53: 102.6946166 | BC53: 115.6784541 | BD53: 153.042584 | BE53: 138.9225395 | BF53: 114.9796741 | BG53: 126.8190527 | BM53: 183.1256 | BN53: 428.8282 | BS53: 133.6494 | BT53: 164.4641 | BU53: 69.0011
A54: 4 | C54: 97.15221592 | D54: 117.708194 | E54: 106.5103147 | F54: 73.73705905 | G54: 95.12060661 | H54: 108.3069737 | I54: 101.7162788 | J54: 103.8811133 | K54: 93.01492516 | L54: 102.8523188 | N54: 68.31502134 | O54: 100.0428992 | P54: 77.9522953 | Q54: 86.37226235 | R54: 110.5442255 | S54: 96.619851 | T54: 101.9716792 | U54: 96.75086729 | V54: 147.4016997 | W54: 55.26133289 | Y54: 104.8076385 | Z54: 85.06208554 | AA54: 76.73167446 | AB54: 48.26763402 | AC54: 61.11069919 | AD54: 31.26848488 | AE54: 63.48228845 | AF54: 141.5340868 | AG54: 84.6983317 | AH54: 98.67301468 | AI54: 61.11567354 | AJ54: 121.2694513 | AK54: 112.8644044 | AL54: 89.60459188 | AM54: 130.5219612 | AN54: 117.8828835 | AO54: 118.6457706 | AP54: 124.5565022 | AQ54: 91.44049901 | AR54: 101.5504311 | AS54: 101.4641922 | AT54: 91.13368719 | AU54: 103.9739836 | AV54: 94.66674448 | AW54: 104.2857762 | AX54: 127.8153645 | AY54: 213.3235729 | AZ54: 133.0129576 | BA54: 136.0147592 | BB54: 124.4934811 | BC54: 144.0582588 | BD54: 97.31806149 | BE54: 179.5823352 | BF54: 164.2366661 | BG54: 107.872458 | BM54: 195.1792 | BN54: 396.3826 | BS54: 122.1295 | BT54: 202.9116 | BU54: 66.8731
A55: 5 | C55: 92.86237922 | D55: 71.49867512 | E55: 91.38779879 | F55: 111.4058484 | G55: 102.5341855 | H55: 117.2816131 | I55: 101.3375976 | J55: 122.4313693 | K55: 96.29984635 | L55: 92.96068672 | N55: 132.920236 | O55: 110.2318227 | P55: 78.62662594 | Q55: 62.65521171 | R55: 79.21081821 | S55: 73.56953479 | T55: 91.48422504 | U55: 81.2663661 | V55: 80.03916233 | W55: 84.12367165 | Y55: 54.03575947 | Z55: 85.34443155 | AA55: 112.5436094 | AB55: 89.23313496 | AC55: 66.50362992 | AD55: 67.0096605 | AE55: 127.9533935 | AF55: 124.0759667 | AG55: 128.5214681 | AH55: 98.31994306 | AI55: 141.3043998 | AJ55: 122.6835748 | AK55: 149.4750328 | AL55: 117.4814439 | AM55: 156.9551071 | AN55: 146.8578497 | AO55: 152.3943811 | AP55: 149.9979894 | AQ55: 104.4221327 | AR55: 152.9261948 | AS55: 113.5637319 | AT55: 208.5904456 | AU55: 164.3441321 | AV55: 135.3601428 | AW55: 110.8305221 | AX55: 82.11458569 | AY55: 99.14130585 | AZ55: 110.5009543 | BA55: 103.2231285 | BB55: 113.4420589 | BC55: 90.59893782 | BD55: 130.0862985 | BE55: 116.5443197 | BF55: 157.012321 | BG55: 199.2949432 | BM55: 254.6477 | BN55: 366.7409 | BS55: 194.0556 | BT55: 217.4501 | BU55: 72.4458
A56: 6 | C56: 106.4637276 | D56: 103.3465138 | E56: 102.9896739 | F56: 108.549158 | G56: 85.49569002 | H56: 114.3898296 | I56: 87.77549372 | J56: 106.7599533 | K56: 93.11166764 | L56: 91.11829233 | N56: 97.12166137 | O56: 90.67942219 | P56: 97.70887261 | Q56: 94.53765494 | R56: 80.57582754 | S56: 74.40907852 | T56: 76.40541791 | U56: 90.76350454 | V56: 111.4840791 | W56: 80.58403067 | Y56: 67.32630938 | Z56: 91.60706385 | AA56: 99.66738363 | AB56: 94.55064495 | AC56: 78.01438054 | AD56: 82.4693972 | AE56: 92.53334357 | AF56: 67.98051412 | AG56: 90.07853725 | AH56: 79.23187262 | AI56: 81.17944613 | AJ56: 85.49295529 | AK56: 93.48218163 | AL56: 91.72533043 | AM56: 82.8857101 | AN56: 112.3378926 | AO56: 74.04130506 | AP56: 62.90684214 | AQ56: 67.57445541 | AR56: 85.15320747 | AS56: 68.1691861 | AT56: 58.44635709 | AU56: 61.17300543 | AV56: 68.18764522 | AW56: 74.03446821 | AX56: 71.88865042 | AY56: 79.67279418 | AZ56: 79.37588481 | BA56: 94.21453983 | BB56: 89.44484089 | BC56: 77.0197443 | BD56: 69.00112712 | BE56: 66.87308295 | BF56: 72.44578388 | BG56: 58.28981069 | BM56: 313.5072 | BN56: 351.3123 | BS56: 147.672 | BT56: 193.1246 | BU56: 58.2898
A57: 7 | C57: 108.1423 | D57: 99.27874353 | E57: 108.8210691 | F57: 83.46970951 | G57: 98.96283637 | H57: 94.88390164 | I57: 89.62393739 | J57: 101.6341169 | K57: 115.3728739 | L57: 99.81051169 | N57: 92.2588361 | O57: 114.8702394 | P57: 102.9571383 | Q57: 87.62325972 | R57: 75.10302658 | S57: 94.61031206 | T57: 97.20400669 | U57: 90.91465708 | V57: 102.4832784 | W57: 110.4091393 | Y57: 88.49692114 | Z57: 100.7131246 | AA57: 96.1154136 | AB57: 107.699621 | AC57: 107.5776785 | AD57: 94.40873971 | AE57: 103.5707577 | AF57: 102.5868451 | AG57: 95.09252359 | AH57: 96.82313839 | AI57: 93.72885763 | AJ57: 117.3143394 | AK57: 114.3715137 | AL57: 132.1008541 | AM57: 106.2741502 | AN57: 131.8291262 | AO57: 146.1607101 | AP57: 121.1492007 | AQ57: 141.3462064 | AR57: 141.7194673 | AS57: 126.9507716 | AT57: 108.3455403 | AU57: 107.9574336 | AV57: 85.21777195 | AW57: 119.1847203 | AX57: 119.9759665 | AY57: 88.5592855 | AZ57: 132.9734018 | BA57: 77.59927684 | BB57: 112.9978201 | BC57: 109.8762538 | BD57: 79.10994557 | BE57: 93.9181774 | BF57: 93.58742293 | BG57: 92.5823527 | BS57: 269.3214 | BT57: 298.9035 | BU57: 65.9024
A58: 8 | C58: 101.770387 | D58: 106.7613236 | E58: 107.169748 | F58: 102.6095352 | G58: 96.87757282 | H58: 94.88960957 | I58: 93.1845476 | J58: 88.62157549 | K58: 99.83282136 | L58: 108.2828794 | N58: 93.32854494 | O58: 99.36571381 | P58: 100.9486527 | Q58: 72.41159708 | R58: 97.00245518 | S58: 119.0416743 | T58: 99.14759128 | U58: 75.21194967 | V58: 97.58546576 | W58: 91.86815808 | Y58: 64.12650015 | Z58: 65.03382841 | AA58: 55.63687543 | AB58: 65.51998554 | AC58: 81.07771687 | AD58: 79.66448054 | AE58: 37.73499998 | AF58: 60.30221822 | AG58: 64.29025222 | AH58: 81.13315011 | AI58: 64.26604099 | AJ58: 67.33910046 | AK58: 82.90511545 | AL58: 53.49853813 | AM58: 69.87694247 | AN58: 77.21839193 | AO58: 71.93945299 | AP58: 85.68189467 | AQ58: 65.00005685 | AR58: 67.15241193 | AS58: 96.96337728 | AT58: 106.1317966 | AU58: 116.4564685 | AV58: 98.16295389 | AW58: 101.9577152 | AX58: 98.91141087 | AY58: 80.63658281 | AZ58: 59.16062487 | BA58: 86.72196435 | BB58: 73.20380898 | BC58: 121.1702418 | BD58: 105.7616032 | BE58: 121.7067388 | BF58: 112.5920492 | BG58: 78.05690419 | BS58: 285.8222 | BT58: 358.4794 | BU58: 119.976
A59: 9 | C59: 120.3744952 | D59: 95.43578937 | E59: 95.7135078 | F59: 100.0018764 | G59: 94.75682239 | H59: 114.1228859 | I59: 80.72365623 | J59: 117.6238605 | K59: 82.21152136 | L59: 99.03558479 | N59: 108.8435225 | O59: 93.01091248 | P59: 89.3461488 | Q59: 74.19845061 | R59: 77.34438606 | S59: 83.1256537 | T59: 86.3823099 | U59: 68.01227576 | V59: 48.69059061 | W59: 69.47680596 | Y59: 81.20542854 | Z59: 70.26329215 | AA59: 76.84889013 | AB59: 94.02249647 | AC59: 87.39297963 | AD59: 75.83318749 | AE59: 72.70646869 | AF59: 69.60033942 | AG59: 83.56213314 | AH59: 106.4634829 | AI59: 91.57977993 | AJ59: 101.1200642 | AK59: 99.10512983 | AL59: 98.67139691 | AM59: 104.255017 | AN59: 110.590806 | AO59: 148.4371707 | AP59: 94.10622488 | AQ59: 109.3792824 | AR59: 107.8804336 | AS59: 86.91120807 | AT59: 90.39387856 | AU59: 93.26209247 | AV59: 124.398871 | AW59: 89.47517081 | AX59: 95.97154885 | AY59: 113.2673161 | AZ59: 61.94505299 | BA59: 94.38650352 | BB59: 95.19457354 | BC59: 96.00264356 | BD59: 96.81071358 | BE59: 97.6187836 | BF59: 98.42685363 | BG59: 99.23492365 | BS59: 257.7939 | BT59: 310.56 | BU59: 88.5593
BS60: 229.6479 | BT60: 245.4459 | BU60: 132.9734
B61: MEAN | C61: =AVERAGE(C51:C59) -> 103.1647478 | D61: =AVERAGE(D51:D59) -> 98.90038049 | E61: 98.92439889 | F61: 99.05328936 | G61: 98.86849483 | H61: 104.6107847 | I61: 94.88421934 | J61: 106.4481263 | K61: 97.65652592 | L61: 97.4890323 | N61: =AVERAGE(N51:N59) -> 91.06436249 | O61: =AVERAGE(O51:O59) -> 93.15654896 | P61: 88.9208283 | Q61: 74.99440621 | R61: 80.65377727 | S61: 82.45883548 | T61: 85.66091729 | U61: 78.11886019 | V61: 82.34515104 | W61: 75.76708815 | Y61: =AVERAGE(Y51:Y59) -> 76.1022722 | Z61: =AVERAGE(Z51:Z59) -> 75.72631449 | AA61: 82.2757621 | AB61: 77.14575904 | AC61: 81.45538045 | AD61: 81.48187274 | AE61: 92.35534497 | AF61: 98.22210867 | AG61: 93.26993501 | AH61: 93.07654411 | AI61: 92.60875538 | AJ61: =AVERAGE(AJ51:AJ59) -> 101.4894933 | AK61: 104.7680689 | AL61: 95.2145913 | AM61: 105.8760198 | AN61: 110.7097608 | AO61: 118.0273777 | AP61: 103.6393285 | AQ61: 100.7655353 | AR61: 111.1490463 | AS61: 103.3026613 | AT61: 114.7385092 | AU61: 106.7437341 | AV61: 104.2196193 | AW61: 100.5133809 | AX61: 103.9165927 | AY61: 108.8289965 | AZ61: 95.16578702 | BA61: 101.053164 | BB61: 106.7413468 | BC61: 113.8474556 | BD61: 104.3086185 | BE61: 113.5124283 | BF61: 110.5053046 | BG61: 105.4924372 | BS61: 246.4264 | BT61: 209.0034 | BU61: 77.5993
B62: SEM | C62: =_xlfn.STDEV.S(C51:C59)/SQRT(9) -> 2.653081534 | D62: =_xlfn.STDEV.S(D51:D59)/SQRT(9) -> 4.300466691 | E62: 2.905554223 | F62: 4.327705773 | G62: 2.360841943 | H62: 4.227500228 | I62: 2.735105713 | J62: 3.535607341 | K62: 2.977840741 | L62: 2.946320091 | N62: =_xlfn.STDEV.S(N51:N59)/SQRT(9) -> 8.020955339 | O62: =_xlfn.STDEV.S(O51:O59)/SQRT(9) -> 8.416217577 | P62: 7.526163612 | Q62: 6.029492403 | R62: 6.924220372 | S62: 6.559593422 | T62: 6.060785995 | U62: 4.991492829 | V62: 12.23900912 | W62: 8.08954609 | Y62: =_xlfn.STDEV.S(Y51:Y59)/SQRT(9) -> 7.413920829 | Z62: =_xlfn.STDEV.S(Z51:Z59)/SQRT(9) -> 5.298350193 | AA62: 8.36093325 | AB62: 8.315116962 | AC62: 6.176249891 | AD62: 9.708560671 | AE62: 10.73936398 | AF62: 10.72208646 | AG62: 6.912557358 | AH62: 3.896822132 | AI62: 9.798340287 | AJ62: =_xlfn.STDEV.S(AJ51:AJ59)/SQRT(9) -> 10.53465114 | AK62: 8.439425653 | AL62: 8.610701336 | AM62: 9.733279809 | AN62: 8.70354036 | AO62: 14.05870172 | AP62: 11.55227565 | AQ62: 11.6841029 | AR62: 9.921964356 | AS62: 8.328600805 | AT62: 15.11196116 | AU62: 9.543387104 | AV62: 7.305231847 | AW62: 5.652728589 | AX62: 7.271326929 | AY62: 13.56508684 | AZ62: 9.322192367 | BA62: 12.85305506 | BB62: 6.087267474 | BC62: 9.823419046 | BD62: 9.35482026 | BE62: 12.04410559 | BF62: 10.82726624 | BG62: 13.33798104 | BS62: 278.1997 | BT62: 289.6813 | BU62: 112.9978
BS63: 209.4022 | BT63: 283.4441 | BU63: 109.8763
A64: Fig 5G. Analysis of the paired-pulse ratio of cells loaded with PT or CTX | BS64: 191.0802 | BT64: 277.1595 | BU64: 79.1099
BS65: 149.593 | BT65: 282.906 | BU65: 93.9182
B66: PPR | BS66: 115.8592 | BT66: 287.5441 | BU66: 93.5874
A67: CELL | B67: Baseline | C67: Lactate+PT | D67: Lactate+CTX | BS67: 190.262 | BT67: 208.3387 | BU67: 92.5824
A68: 1 | B68: 1.1814 | C68: 1.9459 | D68: 2.0823 | BS68: 214.0423 | BT68: 273.0099 | BU68: 125.6294
A69: 2 | B69: 1.4499 | C69: 2.0205 | D69: 2.2826 | BS69: 189.4662 | BT69: 312.0928 | BU69: 133.1115
A70: 3 | B70: 1.3944 | C70: 1.9611 | D70: 1.923 | BS70: 232.2669 | BT70: 216.8766 | BU70: 80.6366
A71: 4 | B71: 1.0187 | C71: 2.0053 | D71: 1.9279 | BS71: 165.9997 | BT71: 294.4848 | BU71: 59.1606
A72: 5 | B72: 1.2214 | C72: 2.112 | D72: 1.8137 | BS72: 196.7905 | BT72: 233.4962 | BU72: 86.722
A73: 6 | B73: 0.7886 | C73: 1.8948 | D73: 2.1113 | BS73: 159.5173 | BT73: 221.665 | BU73: 73.2038
A74: 7 | B74: 1.5852 | D74: 1.8797 | BS74: 151.8538 | BT74: 195.6424 | BU74: 121.1702
A75: 8 | B75: 1.508 | D75: 2.0424 | BS75: 121.054 | BT75: 287.5527 | BU75: 105.7616
A76: 9 | B76: 1.55 | BS76: 128.423 | BT76: 288.0894 | BU76: 121.7067
A77: 10 | B77: 1.4644 | BS77: 196.9584 | BT77: 137.3143 | BU77: 112.592
BS78: 205.4684 | BT78: 173.9564 | BU78: 78.0569
A79: MEAN | B79: =AVERAGE(B69:B77) -> 1.331177778 | C79: =AVERAGE(C69:C77) -> 1.99874 | D79: 1.997228571 | BS79: 195.1938 | BT79: 109.2932 | BU79: 78.603
A80: SEM | B80: =_xlfn.STDEV.S(B69:B77)/SQRT(10) -> 0.08541083769 | C80: =_xlfn.STDEV.S(C69:C77)/SQRT(10) -> 0.02528074959 | D80: 0.05071187144 | BS80: 236.1355 | BT80: 140.3573 | BU80: 113.2673
BS81: 203.6132 | BT81: 125.2625 | BU81: 61.9451
A82: Fig 5H. Action potentials elicited in response to current injections and the effects of lactate (2 mM) in control cells | BS82: 204.6427 | BT82: 137.955 | BU82: 94.3865
BS83: 175.6742 | BT83: 150.0668 | BU83: 95.1946
F84: Cell 1 | H84: Cell 2 | J84: Cell 3 | L84: Cell 4 | N84: Cell 5 | P84: Cell 6 | R84: Cell 7 | BS84: 180.6715 | BT84: 122.1695 | BU84: 96.0026
A85: Spikes | C85: Spikes | F85: Spikes | H85: Spikes | J85: Spikes | L85: Spikes | N85: Spikes | P85: Spikes | R85: Spikes | BS85: 195.5809 | BT85: 165.5094 | BU85: 96.8107
A86: Mean BL | B86: SEM | C86: Mean Lactate | D86: SEM | E86: Current (pA) | F86: Baseline | G86: Lactate (2 mM) | H86: Baseline | I86: Lactate (2 mM) | J86: Baseline | K86: Lactate (2 mM) | L86: Baseline | M86: Lactate (2 mM) | N86: Baseline | O86: Lactate (2 mM) | P86: Baseline | Q86: Lactate (2 mM) | R86: Baseline | S86: Lactate (2 mM) | BS86: 191.1025 | BT86: 200.3698 | BU86: 97.6188
A87: =AVERAGE(F87,H87,J87,L87,N87,P87,R87) -> 0 | B87: =_xlfn.STDEV.S(F87,H87,J87,L87,N87,P87,R87)/SQRT(7) -> 0 | C87: =AVERAGE(G87,I87,K87,M87,O87,Q87,S87) -> 0 | D87: =_xlfn.STDEV.S(G87,I87,K87,M87,O87,Q87,S87)/SQRT(7) -> 0 | E87: 0 | F87: 0 | G87: 0 | H87: 0 | I87: 0 | J87: 0 | K87: 0 | L87: 0 | M87: 0 | N87: 0 | O87: 0 | P87: 0 | Q87: 0 | R87: 0 | S87: 0 | BT87: 266.5477 | BU87: 98.4269
A88: =AVERAGE(F88,H88,J88,L88,N88,P88,R88) -> 0 | B88: =_xlfn.STDEV.S(F88,H88,J88,L88,N88,P88,R88)/SQRT(7) -> 0 | C88: =AVERAGE(G88,I88,K88,M88,O88,Q88,S88) -> 0 | D88: =_xlfn.STDEV.S(G88,I88,K88,M88,O88,Q88,S88)/SQRT(7) -> 0 | E88: 50 | F88: 0 | G88: 0 | H88: 0 | I88: 0 | J88: 0 | K88: 0 | L88: 0 | M88: 0 | N88: 0 | O88: 0 | P88: 0 | Q88: 0 | R88: 0 | S88: 0 | BT88: 293.7107 | BU88: 99.2349
A89: 0 | B89: 0 | C89: 0.1428571429 | D89: 0.1428571429 | E89: 100 | F89: 0 | G89: 0 | H89: 0 | I89: 0 | J89: 0 | K89: 1 | L89: 0 | M89: 0 | N89: 0 | O89: 0 | P89: 0 | Q89: 0 | R89: 0 | S89: 0 | BT89: 212.8968 | BU89: 100.043
A90: 0 | B90: 0 | C90: 0.7142857143 | D90: 0.7142857143 | E90: 150 | F90: 0 | G90: 0 | H90: 0 | I90: 0 | J90: 0 | K90: 5 | L90: 0 | M90: 0 | N90: 0 | O90: 0 | P90: 0 | Q90: 0 | R90: 0 | S90: 0 | BT90: 274.1952
A91: 0 | B91: 0 | C91: 1 | D91: 1 | E91: 200 | F91: 0 | G91: 0 | H91: 0 | I91: 0 | J91: 0 | K91: 7 | L91: 0 | M91: 0 | N91: 0 | O91: 0 | P91: 0 | Q91: 0 | R91: 0 | S91: 0 | BT91: 245.8158
A92: 0.5714285714 | B92: 0.2973808571 | C92: 2 | D92: 1 | E92: 250 | F92: 0 | G92: 0 | H92: 1 | I92: 2 | J92: 2 | K92: 7 | L92: 0 | M92: 1 | N92: 0 | O92: 4 | P92: 1 | Q92: 0 | R92: 0 | S92: 0 | BT92: 332.0022
A93: 1 | B93: 0.4879500365 | C93: 3.285714286 | D93: 1.127878027 | E93: 300 | F93: 0 | G93: 0 | H93: 2 | I93: 3 | J93: 3 | K93: 9 | L93: 0 | M93: 2 | N93: 0 | O93: 5 | P93: 2 | Q93: 3 | R93: 0 | S93: 1 | BT93: 307.3435
A94: 2.285714286 | B94: 0.6060915267 | C94: 4.285714286 | D94: 1.062662553 | E94: 350 | F94: 1 | G94: 1 | H94: 3 | I94: 4 | J94: 4 | K94: 9 | L94: 0 | M94: 3 | N94: 4 | O94: 7 | P94: 3 | Q94: 4 | R94: 1 | S94: 2 | BT94: 258.8945
A95: 3 | B95: 0.755928946 | C95: 5.428571429 | D95: 1.109636209 | E95: 400 | F95: 1 | G95: 2 | H95: 4 | I95: 5 | J95: 4 | K95: 11 | L95: 1 | M95: 5 | N95: 6 | O95: 7 | P95: 4 | Q95: 5 | R95: 1 | S95: 3 | BT95: 275.8171
A96: 3.857142857 | B96: 0.936776932 | C96: 6.428571429 | D96: 1.306706927 | E96: 450 | F96: 1 | G96: 2 | H96: 5 | I96: 7 | J96: 6 | K96: 12 | L96: 2 | M96: 5 | N96: 7 | O96: 9 | P96: 5 | Q96: 7 | R96: 1 | S96: 3 | BT96: 241.0527
A97: 5 | B97: 0.8997354108 | C97: 7.714285714 | D97: 1.426188489 | E97: 500 | F97: 2 | G97: 3 | H97: 7 | I97: 8 | J97: 5 | K97: 12 | L97: 3 | M97: 6 | N97: 8 | O97: 13 | P97: 7 | Q97: 8 | R97: 3 | S97: 4 | BT97: 311.2657
A98: 5.714285714 | B98: 0.9689042833 | C98: 8.714285714 | D98: 1.523065294 | E98: 550 | F98: 3 | G98: 3 | H98: 7 | I98: 10 | J98: 6 | K98: 14 | L98: 4 | M98: 8 | N98: 10 | O98: 12 | P98: 7 | Q98: 10 | R98: 3 | S98: 4
A99: 6.714285714 | B99: 1.040015698 | C99: 9.428571429 | D99: 1.461524691 | E99: 600 | F99: 3 | G99: 4 | H99: 9 | I99: 11 | J99: 7 | K99: 13 | L99: 4 | M99: 8 | N99: 10 | O99: 14 | P99: 9 | Q99: 11 | R99: 5 | S99: 5
A100: 7.714285714 | B100: 1.322232703 | C100: 10.14285714 | D100: 1.624640201 | E100: 650 | F100: 4 | G100: 4 | H100: 10 | I100: 12 | J100: 8 | K100: 15 | L100: 5 | M100: 9 | N100: 13 | O100: 14 | P100: 10 | Q100: 12 | R100: 4 | S100: 5
A101: 8 | B101: 1.511857892 | C101: 11.14285714 | D101: 1.857142857 | E101: 700 | F101: 4 | G101: 5 | H101: 11 | I101: 14 | J101: 7 | K101: 15 | L101: 5 | M101: 10 | N101: 14 | O101: 16 | P101: 11 | Q101: 14 | R101: 4 | S101: 4
A103: Fig 5I. Action potentials elicited in response to current injections and the effects of lactate (2 mM) in cells loaded with pertussis toxin
F105: Cell 1 | H105: Cell 2 | J105: Cell 3
A106: Spikes | C106: Spikes | F106: Spikes | H106: Spikes | J106: Spikes
A107: Mean BL | B107: SEM | C107: Mean Lactate | D107: SEM | E107: Current (pA) | F107: Baseline | G107: Lactate (2 mM) | H107: Baseline | I107: Lactate (2 mM) | J107: Baseline | K107: Lactate (2 mM)
A108: =AVERAGE(F108,H108,J108,L108,N108,P108,R108) -> 0 | B108: =_xlfn.STDEV.S(F108,H108,J108)/SQRT(3) -> 0 | C108: =AVERAGE(G108,I108,K108,M108,O108,Q108,S108) -> 0 | D108: =_xlfn.STDEV.S(G108,I108,K108)/SQRT(3) -> 0 | E108: 0 | F108: 0 | G108: 0 | H108: 0 | I108: 0 | J108: 0 | K108: 0
A109: =AVERAGE(F109,H109,J109,L109,N109,P109,R109) -> 0 | B109: =_xlfn.STDEV.S(F109,H109,J109)/SQRT(3) -> 0 | C109: =AVERAGE(G109,I109,K109,M109,O109,Q109,S109) -> 0 | D109: =_xlfn.STDEV.S(G109,I109,K109)/SQRT(3) -> 0 | E109: 50 | F109: 0 | G109: 0 | H109: 0 | I109: 0 | J109: 0 | K109: 0
A110: 0 | B110: 0 | C110: 1 | D110: 1 | E110: 100 | F110: 0 | G110: 0 | H110: 0 | I110: 3 | J110: 0 | K110: 0
A111: 0 | B111: 0 | C111: 2 | D111: 2 | E111: 150 | F111: 0 | G111: 0 | H111: 0 | I111: 6 | J111: 0 | K111: 0
A112: 1 | B112: 1 | C112: 3.333333333 | D112: 2.333333333 | E112: 200 | F112: 0 | G112: 1 | H112: 3 | I112: 8 | J112: 0 | K112: 1
A113: 2.333333333 | B113: 1.452966315 | C113: 5.666666667 | D113: 2.185812841 | E113: 250 | F113: 2 | G113: 4 | H113: 5 | I113: 10 | J113: 0 | K113: 3
A114: 4 | B114: 1.732050808 | C114: 7.666666667 | D114: 2.728450924 | E114: 300 | F114: 4 | G114: 6 | H114: 7 | I114: 13 | J114: 1 | K114: 4
A115: 5.333333333 | B115: 1.763834207 | C115: 9.666666667 | D115: 2.728450924 | E115: 350 | F115: 6 | G115: 8 | H115: 8 | I115: 15 | J115: 2 | K115: 6
A116: 7.666666667 | B116: 2.333333333 | C116: 11.33333333 | D116: 2.40370085 | E116: 400 | F116: 7 | G116: 10 | H116: 12 | I116: 16 | J116: 4 | K116: 8
A117: 9 | B117: 2.309401077 | C117: 12.33333333 | D117: 2.40370085 | E117: 450 | F117: 9 | G117: 11 | H117: 13 | I117: 17 | J117: 5 | K117: 9
A118: 10 | B118: 2.309401077 | C118: 14.33333333 | D118: 2.962731472 | E118: 500 | F118: 10 | G118: 13 | H118: 14 | I118: 20 | J118: 6 | K118: 10
A119: 10.66666667 | B119: 2.02758751 | C119: 15.66666667 | D119: 3.179797338 | E119: 550 | F119: 11 | G119: 13 | H119: 14 | I119: 22 | J119: 7 | K119: 12
A120: 12 | B120: 2.886751346 | C120: 16.66666667 | D120: 3.179797338 | E120: 600 | F120: 12 | G120: 13 | H120: 17 | I120: 23 | J120: 7 | K120: 14
A121: 14 | B121: 2.886751346 | C121: 18 | D121: 3.511884584 | E121: 650 | F121: 14 | G121: 14 | H121: 19 | I121: 25 | J121: 9 | K121: 15
A122: 14 | B122: 2.309401077 | C122: 18 | D122: 2 | E122: 700 | F122: 14 | G122: 16 | H122: 18 | I122: 22 | J122: 10 | K122: 16
A124: Fig 5J. Action potentials elicited in response to current injections and the effects of lactate (2 mM) in cells loaded with cholera toxin
F126: Cell 1 | H126: Cell 2 | J126: Cell 3 | L126: Cell 4 | N126: Cell 5 | P126: Cell 6 | R126: Cell 7 | T126: Cell 8 | V126: Cell 9 | X126: Cell 10
A127: Spikes | C127: Spikes | F127: Spikes | H127: Spikes | J127: Spikes | L127: Spikes | N127: Spikes | P127: Spikes | R127: Spikes | T127: Spikes | V127: Spikes | X127: Spikes
A128: Mean BL | B128: SEM | C128: Mean Lactate | D128: SEM | E128: Current (pA) | F128: Baseline | G128: Lactate (2 mM) | H128: Baseline | I128: Lactate (2 mM) | J128: Baseline | K128: Lactate (2 mM) | L128: Baseline | M128: Lactate (2 mM) | N128: Baseline | O128: Lactate (2 mM) | P128: Baseline | Q128: Lactate (2 mM) | R128: Baseline | S128: Lactate (2 mM) | T128: Baseline | U128: Lactate (2 mM) | V128: Baseline | W128: Lactate (2 mM) | X128: Baseline | Y128: Lactate (2 mM)
A129: =AVERAGE(F129,H129,J129,L129,N129,P129,R129,T129,V129,X129) -> 0 | B129: =_xlfn.STDEV.S(F129,H129,J129,L129,N129,P129,R129,T129,V129,X129)/SQRT(10) -> 0 | C129: =AVERAGE(G129,I129,K129,M129,O129,Q129,S129,U129,W129,Y129) -> 0 | D129: =_xlfn.STDEV.S(G129,I129,K129,M129,O129,Q129,S129,U129,W129,Y129)/SQRT(10) -> 0 | E129: 0 | F129: 0 | G129: 0 | H129: 0 | I129: 0 | J129: 0 | K129: 0 | L129: 0 | M129: 0 | N129: 0 | O129: 0 | P129: 0 | Q129: 0 | R129: 0 | S129: 0 | T129: 0 | U129: 0 | V129: 0 | W129: 0 | X129: 0 | Y129: 0
A130: =AVERAGE(F130,H130,J130,L130,N130,P130,R130,T130,V130,X130) -> 0.1 | B130: =_xlfn.STDEV.S(F130,H130,J130,L130,N130,P130,R130,T130,V130,X130)/SQRT(10) -> 0.1 | C130: =AVERAGE(G130,I130,K130,M130,O130,Q130,S130,U130,W130,Y130) -> 0 | D130: =_xlfn.STDEV.S(G130,I130,K130,M130,O130,Q130,S130,U130,W130,Y130)/SQRT(10) -> 0 | E130: 50 | F130: 0 | G130: 0 | H130: 0 | I130: 0 | J130: 0 | K130: 0 | L130: 0 | M130: 0 | N130: 0 | O130: 0 | P130: 0 | Q130: 0 | R130: 1 | S130: 0 | T130: 0 | U130: 0 | V130: 0 | W130: 0 | X130: 0 | Y130: 0
A131: 0.2 | B131: 0.1333333333 | C131: 0.2 | D131: 0.1333333333 | E131: 100 | F131: 0 | G131: 0 | H131: 0 | I131: 0 | J131: 0 | K131: 0 | L131: 0 | M131: 0 | N131: 0 | O131: 0 | P131: 0 | Q131: 0 | R131: 1 | S131: 1 | T131: 0 | U131: 0 | V131: 1 | W131: 1 | X131: 0 | Y131: 0
A132: 0.4 | B132: 0.2211083194 | C132: 0.4 | D132: 0.2666666667 | E132: 150 | F132: 0 | G132: 0 | H132: 0 | I132: 0 | J132: 0 | K132: 0 | L132: 0 | M132: 0 | N132: 0 | O132: 0 | P132: 0 | Q132: 0 | R132: 2 | S132: 2 | T132: 0 | U132: 0 | V132: 1 | W132: 2 | X132: 1 | Y132: 0
A133: 0.9 | B133: 0.348010217 | C133: 1.1 | D133: 0.4068851872 | E133: 200 | F133: 1 | G133: 2 | H133: 0 | I133: 1 | J133: 0 | K133: 0 | L133: 1 | M133: 1 | N133: 0 | O133: 0 | P133: 0 | Q133: 0 | R133: 3 | S133: 4 | T133: 0 | U133: 0 | V133: 2 | W133: 2 | X133: 2 | Y133: 1
A134: 1.7 | B134: 0.4955356249 | C134: 1.4 | D134: 0.5416025603 | E134: 250 | F134: 2 | G134: 3 | H134: 0 | I134: 1 | J134: 0 | K134: 0 | L134: 2 | M134: 1 | N134: 1 | O134: 0 | P134: 0 | Q134: 0 | R134: 4 | S134: 5 | T134: 1 | U134: 0 | V134: 3 | W134: 3 | X134: 4 | Y134: 1
A135: 2.3 | B135: 0.5587684871 | C135: 2.2 | D135: 0.5925462945 | E135: 300 | F135: 3 | G135: 4 | H135: 1 | I135: 2 | J135: 0 | K135: 0 | L135: 3 | M135: 1 | N135: 1 | O135: 1 | P135: 1 | Q135: 1 | R135: 5 | S135: 6 | T135: 1 | U135: 1 | V135: 5 | W135: 4 | X135: 3 | Y135: 2
A136: 2.8 | B136: 0.5925462945 | C136: 2.7 | D136: 0.6674994798 | E136: 350 | F136: 4 | G136: 5 | H136: 2 | I136: 2 | J136: 0 | K136: 0 | L136: 4 | M136: 2 | N136: 1 | O136: 1 | P136: 1 | Q136: 1 | R136: 6 | S136: 7 | T136: 2 | U136: 2 | V136: 4 | W136: 4 | X136: 4 | Y136: 3
A137: 3.7 | B137: 0.6674994798 | C137: 3.5 | D137: 0.7187952884 | E137: 400 | F137: 5 | G137: 6 | H137: 2 | I137: 4 | J137: 2 | K137: 1 | L137: 5 | M137: 3 | N137: 1 | O137: 1 | P137: 2 | Q137: 2 | R137: 7 | S137: 8 | T137: 2 | U137: 2 | V137: 6 | W137: 5 | X137: 5 | Y137: 3
A138: 4.3 | B138: 0.8306623863 | C138: 3.8 | D138: 0.7118052168 | E138: 450 | F138: 6 | G138: 6 | H138: 2 | I138: 4 | J138: 1 | K138: 1 | L138: 5 | M138: 3 | N138: 2 | O138: 2 | P138: 2 | Q138: 2 | R138: 8 | S138: 8 | T138: 3 | U138: 2 | V138: 8 | W138: 6 | X138: 6 | Y138: 4
A139: 4.7 | B139: 0.8569973421 | C139: 4.5 | D139: 0.9339283817 | E139: 500 | F139: 6 | G139: 8 | H139: 3 | I139: 4 | J139: 2 | K139: 1 | L139: 6 | M139: 4 | N139: 2 | O139: 1 | P139: 2 | Q139: 3 | R139: 10 | S139: 10 | T139: 3 | U139: 3 | V139: 7 | W139: 7 | X139: 6 | Y139: 4
A140: 5.3 | B140: 0.8171767115 | C140: 5.4 | D140: 0.956846673 | E140: 550 | F140: 8 | G140: 9 | H140: 4 | I140: 5 | J140: 2 | K140: 2 | L140: 6 | M140: 5 | N140: 3 | O140: 2 | P140: 3 | Q140: 3 | R140: 9 | S140: 10 | T140: 4 | U140: 3 | V140: 9 | W140: 9 | X140: 5 | Y140: 6
A141: 5.8 | B141: 0.8793937306 | C141: 5.9 | D141: 0.9938701011 | E141: 600 | F141: 9 | G141: 10 | H141: 4 | I141: 5 | J141: 3 | K141: 3 | L141: 6 | M141: 5 | N141: 3 | O141: 3 | P141: 3 | Q141: 4 | R141: 10 | S141: 12 | T141: 4 | U141: 3 | V141: 9 | W141: 8 | X141: 7 | Y141: 6
A142: 6.2 | B142: 1.00884973 | C142: 6.4 | D142: 1.117536974 | E142: 650 | F142: 10 | G142: 11 | H142: 4 | I142: 5 | J142: 2 | K142: 2 | L142: 7 | M142: 6 | N142: 3 | O142: 3 | P142: 4 | Q142: 4 | R142: 10 | S142: 13 | T142: 5 | U142: 5 | V142: 11 | W142: 9 | X142: 6 | Y142: 6
A143: 7.1 | B143: 1.058825345 | C143: 7 | D143: 1.115546702 | E143: 700 | F143: 11 | G143: 12 | H143: 5 | I143: 6 | J143: 3 | K143: 3 | L143: 8 | M143: 6 | N143: 4 | O143: 3 | P143: 4 | Q143: 5 | R143: 12 | S143: 13 | T143: 5 | U143: 5 | V143: 11 | W143: 10 | X143: 8 | Y143: 7

Sheet Figure 6
A2: Fig 6. Intracellular signaling cascades required for synaptic potentiation
BI3: Fig 6F. Boxplots summarizing the changes in the RC EPSC amplitude in cells treated with:
A4: Fig 6A. Time-course showing the effect of lactate in the presence of gallein (10 mcM)
C6: Baseline | N6: Lactate perfusion (2 mM) | Y6: Washout | BI6: Control | BK6: Control | BL6: Gallein (10 mcM) | BM6: Wortmannin (10 mcM) | BN6: Chelerytrine (10 mcM) | BO6: U73122 (10 mcM) | BP6: KN-62 (10 mcM)
A7: CELL | B7: TIME (min) | C7: 1 | D7: 2 | E7: 3 | F7: 4 | G7: 5 | H7: 6 | I7: 7 | J7: 8 | K7: 9 | L7: 10 | N7: 11 | O7: 12 | P7: 13 | Q7: 14 | R7: 15 | S7: 16 | T7: 17 | U7: 18 | V7: 19 | W7: 20 | Y7: 21 | Z7: 22 | AA7: 23 | AB7: 24 | AC7: 25 | AD7: 26 | AE7: 27 | AF7: 28 | AG7: 29 | AH7: 30 | AI7: 31 | AJ7: 32 | AK7: 33 | AL7: 34 | AM7: 35 | AN7: 36 | AO7: 37 | AP7: 38 | AQ7: 39 | AR7: 40 | AS7: 41 | AT7: 42 | AU7: 43 | AV7: 44 | AW7: 45 | AX7: 46 | AY7: 47 | AZ7: 48 | BA7: 49 | BB7: 50 | BC7: 51 | BD7: 52 | BE7: 53 | BF7: 54 | BG7: 55 | BI7: MEAN | BJ7: =AVERAGE(BK7:BK75) -> 218.783513 | BK7: 281.7199 | BL7: 84.769 | BM7: 136.2906 | BN7: 109.3711 | BO7: 179.5915 | BP7: 133.342
A8: 1 | C8: 108.2731976 | D8: 97.42831861 | E8: 84.19662594 | F8: 101.2826254 | G8: 88.5391484 | H8: 105.900659 | I8: 99.77659408 | J8: 94.5618584 | K8: 106.4673861 | L8: 113.5735865 | N8: 69.69301153 | O8: 66.73518867 | P8: 77.28171654 | Q8: 73.43597292 | R8: 65.85726185 | S8: 83.8440299 | T8: 78.8348587 | U8: 79.547192 | V8: 82.91471281 | W8: 81.85977599 | Y8: 76.37381129 | Z8: 64.21418608 | AA8: 56.96951559 | AB8: 73.95987127 | AC8: 59.27924348 | AD8: 61.91159491 | AE8: 57.39634532 | AF8: 79.46296748 | AG8: 73.57253645 | AH8: 113.1788982 | AI8: 86.7521919 | AJ8: 94.85809722 | AK8: 89.23882265 | AL8: 55.76378452 | AM8: 84.01434399 | AN8: 83.17332218 | AO8: 77.96733709 | AP8: 99.51852392 | AQ8: 65.38801211 | AR8: 109.8383224 | AS8: 90.2327203 | AT8: 103.2656804 | AU8: 114.8340505 | AV8: 98.31171691 | AW8: 103.0539848 | AX8: 129.7751503 | AY8: 94.18149233 | AZ8: 125.9761494 | BI8: MEDIAN | BJ8: =MEDIAN(BK7:BK75) -> 228.2121 | BK8: 311.6732 | BL8: 77.5315 | BM8: 111.7321 | BN8: 94.9998 | BO8: 152.434 | BP8: 124.9974
A9: 2 | C9: 96.54440399 | D9: 96.6581355 | E9: 86.16529267 | F9: 79.85214723 | G9: 90.99611636 | H9: 106.8296848 | I9: 118.4465925 | J9: 109.0032526 | K9: 107.6586725 | L9: 107.8457019 | N9: 160.3269833 | O9: 100.7853895 | P9: 104.3515642 | Q9: 99.03136979 | R9: 84.90948795 | S9: 75.1713903 | T9: 83.76362655 | U9: 75.53154454 | V9: 99.6910241 | W9: 76.14633793 | Y9: 89.1422622 | Z9: 117.5680039 | AA9: 118.5176763 | AB9: 108.0087211 | AC9: 115.1827636 | AD9: 112.8717672 | AE9: 114.9748858 | AF9: 112.0547827 | AG9: 77.0618913 | AH9: 91.53350482 | AI9: 106.172879 | AJ9: 103.5911304 | AK9: 101.720216 | AL9: 99.52042472 | AM9: 77.17183039 | AN9: 125.8620042 | AO9: 99.71661513 | AP9: 116.4429909 | AQ9: 122.2727743 | AR9: 90.81224636 | AS9: 122.9949794 | AT9: 52.06046808 | AU9: 111.0795212 | AV9: 108.0902322 | AW9: 98.18090119 | AX9: 108.9707163 | AY9: 93.14630414 | AZ9: 119.593402 | BA9: 106.3159919 | BB9: 97.03155989 | BC9: 94.61283003 | BD9: 86.60127214 | BE9: 91.31627371 | BI9: Q3 | BJ9: =_xlfn.QUARTILE.INC(BK7:BK75, 3) -> 268.4826 | BK9: 249.7544 | BL9: 122.7258 | BM9: 81.2361 | BN9: 113.1833 | BO9: 175.286 | BP9: 102.2911
A10: 3 | C10: 111.0199488 | D10: 110.2395328 | E10: 100.3978858 | F10: 106.9652132 | G10: 98.83705382 | H10: 106.9839072 | I10: 91.69336967 | J10: 84.88303753 | K10: 108.8499589 | L10: 102.1178172 | N10: 73.54286775 | O10: 63.58906449 | P10: 60.66990413 | Q10: 50.27371269 | R10: 61.10399031 | S10: 73.42863691 | T10: 79.62730452 | U10: 84.17271922 | V10: 63.46756399 | W10: 93.59689972 | Y10: 77.79231649 | Z10: 58.94084231 | AA10: 61.20575975 | AB10: 83.4125547 | AC10: 63.96603356 | AD10: 63.88191541 | AE10: 65.7231363 | AF10: 75.78909586 | AG10: 79.54734346 | AH10: 72.75466415 | AI10: 78.78717709 | AJ10: 66.14371873 | AK10: 66.12814075 | AL10: 64.33676792 | AM10: 84.4998393 | AN10: 56.48588329 | AO10: 68.6111407 | AP10: 76.91688155 | AQ10: 75.5024741 | AR10: 70.51155293 | AS10: 61.16837647 | AT10: 75.00711957 | AU10: 58.57425949 | AV10: 66.38360654 | AW10: 59.60442821 | AX10: 83.68671352 | AY10: 77.14742053 | AZ10: 65.76363647 | BA10: 71.83249618 | BB10: 95.49731102 | BC10: 71.77641896 | BD10: 83.57455814 | BE10: 68.03790088 | BI10: Q1 | BJ10: =_xlfn.QUARTILE.INC(BK7:BK75, 1) -> 159.5173 | BK10: 270.4566 | BL10: 120.557 | BM10: 88.3097 | BN10: 99.9202 | BO10: 175.8058 | BP10: 142.7181
A11: 4 | C11: 123.994482 | D11: 114.2532098 | E11: 117.0443324 | F11: 124.1802631 | G11: 106.0028761 | H11: 100.4150425 | I11: 104.7226412 | J11: 90.97264741 | K11: 77.01269833 | L11: 79.64949898 | N11: 81.73861397 | O11: 73.34292868 | P11: 62.63791451 | Q11: 58.43739861 | R11: 64.65338339 | S11: 83.33629968 | T11: 68.68794769 | U11: 88.85849391 | V11: 70.67056289 | W11: 75.53900071 | Y11: 86.0811232 | Z11: 62.49930973 | AA11: 66.05171097 | AB11: 87.51688808 | AC11: 64.65681286 | AD11: 65.62055859 | AE11: 71.86388935 | AF11: 83.64569022 | AG11: 84.73681614 | AH11: 86.56162478 | AI11: 86.07249796 | AJ11: 75.23797402 | AK11: 71.51229145 | AL11: 74.87773312 | AM11: 93.06000821 | AN11: 59.97827237 | AO11: 73.3787784 | AP11: 78.81187405 | AQ11: 83.96595877 | AR11: 74.02568923 | AS11: 60.80343588 | AT11: 82.38283526 | AU11: 77.56412914 | AV11: 62.58389191 | AW11: 70.42665631 | AX11: 121.6340991 | AY11: 103.1768978 | AZ11: 73.58575418 | BA11: 96.38166747 | BB11: 111.0626602 | BC11: 85.09583774 | BD11: 98.90688759 | BE11: 84.36450091 | BK11: 283.7218 | BL11: 74.9345 | BM11: 75.6292 | BN11: 116.3071 | BO11: 171.8435 | BP11: 130.1322
A12: 5 | C12: 78.9655706 | D12: 95.87217528 | E12: 79.6709833 | F12: 98.52629042 | G12: 113.4841927 | H12: 87.33186787 | I12: 107.0862828 | J12: 143.8128237 | K12: 101.1328839 | L12: 73.08249999 | N12: 111.8731933 | O12: 120.9343428 | P12: 96.51878235 | Q12: 105.1666214 | R12: 86.55612974 | S12: 90.02390598 | T12: 95.74976703 | U12: 81.15141132 | V12: 84.51550178 | W12: 81.9117884 | Y12: 114.9473377 | Z12: 71.6423938 | AA12: 77.83916858 | AB12: 101.6695605 | AC12: 92.16294324 | AD12: 113.5163557 | AE12: 98.03809697 | AF12: 93.70049761 | AG12: 118.0157244 | AH12: 153.254158 | AI12: 137.9333521 | AJ12: 123.2802761 | AK12: 147.5561407 | AL12: 151.7569333 | AM12: 116.8862032 | AN12: 125.8969452 | AO12: 93.15037438 | AP12: 87.77302096 | AQ12: 73.65566105 | AR12: 103.1691944 | AS12: 109.669831 | AT12: 123.9239987 | AU12: 95.13532409 | AV12: 90.57690684 | AW12: 96.79816256 | AX12: 84.76895866 | AY12: 77.53146513 | AZ12: 122.7258321 | BA12: 120.5570324 | BB12: 74.93447455 | BC12: 108.7208005 | BD12: 86.41643857 | BE12: 73.17466525 | BI12: Gallein | BK12: 232.8597 | BL12: 108.7208 | BM12: 101.3919 | BN12: 117.2674 | BO12: 169.7626 | BP12: 126.4308
A13: 6 | C13: 102.7789963 | D13: 104.7907941 | E13: 107.79534 | F13: 111.2602407 | G13: 111.8189356 | H13: 102.0906478 | I13: 111.9366846 | J13: 109.1613791 | K13: 91.92705654 | L13: 95.4624222 | N13: 60.86505525 | O13: 109.3641371 | P13: 85.17763405 | Q13: 76.87426436 | R13: 80.7657084 | S13: 73.75510177 | T13: 78.90923848 | U13: 84.9220882 | W13: 58.3546925 | Y13: 58.27953214 | Z13: 79.73990981 | AA13: 83.21595885 | AB13: 72.60260521 | AC13: 61.98754015 | AD13: 64.12084164 | AE13: 80.63678852 | AF13: 74.16142581 | AG13: 75.94661075 | AH13: 88.82874268 | AI13: 69.40436656 | AJ13: 81.99325392 | AK13: 44.3243386 | AL13: 76.4627882 | AM13: 76.87264087 | AN13: 58.05190382 | AO13: 45.87630058 | AT13: 112.2392073 | AU13: 87.6682363 | AV13: 74.08495376 | AW13: 93.2386209 | AX13: 71.60507039 | AY13: 104.9649345 | AZ13: 114.4428116 | BA13: 107.9723753 | BB13: 120.7167594 | BC13: 122.5477102 | BE13: 129.7591433 | BF13: 128.2145958 | BG13: 86.0494942 | BI13: MEAN | BJ13: =AVERAGE(BL7:BL48) -> 91.74243333 | BK13: 144.4027 | BL13: 86.4164 | BM13: 96.9946 | BN13: 109.2377 | BO13: 161.2713 | BP13: 118.3245
BI14: MEDIAN | BJ14: =MEDIAN(BL7:BL48) -> 92.2313 | BK14: 106.4016 | BL14: 73.1747 | BM14: 105.3736 | BN14: 119.0158 | BO14: 215.0142 | BP14: 108.2889
B15: MEAN | C15: =AVERAGE(C8:C13) -> 103.5960999 | D15: =AVERAGE(D8:D13) -> 103.2070277 | E15: 95.87841001 | F15: 103.6777967 | G15: 101.6130538 | H15: 101.5919682 | I15: 105.6103608 | J15: 105.3991665 | K15: 98.8414427 | L15: 95.2885878 | N15: =AVERAGE(N8:N13) -> 93.00662086 | O15: =AVERAGE(O8:O13) -> 89.12517521 | P15: 81.10625263 | Q15: 77.2032233 | R15: 73.97432694 | S15: 79.92656076 | T15: 80.9287905 | U15: 82.3639082 | V15: 80.25187311 | W15: 77.90141587 | Y15: =AVERAGE(Y8:Y13) -> 83.76939718 | Z15: 75.76744094 | AA15: 77.29996501 | AB15: 87.86170014 | AC15: 76.20588948 | AD15: 80.32050557 | AE15: 81.43885704 | AF15: 86.46907661 | AG15: 84.81348708 | AH15: 101.0185988 | AI15: 94.18707745 | AJ15: 90.85074173 | AK15: 86.74665837 | AL15: 87.11973864 | AM15: 88.750811 | AN15: 84.90805519 | AO15: 76.45009105 | AP15: 91.89265828 | AQ15: 84.15697606 | AR15: 89.67140106 | AS15: 88.97386862 | AT15: 91.47988489 | AU15: 90.80925344 | AV15: 83.33855135 | AW15: 86.88379233 | AX15: 100.0734514 | AY15: 91.69141906 | AZ15: 103.6812643 | BA15: 100.6119127 | BB15: 99.84855301 | BC15: 96.5507195 | BD15: 88.87478911 | BE15: =AVERAGE(BE8:BE13) -> 89.33049681 | BF15: =AVERAGE(BF8:BF13) -> 128.2145958 | BG15: 86.0494942 | BI15: Q3 | BJ15: =_xlfn.QUARTILE.INC(BL7:BL48, 3) -> 102.309825 | BK15: 135.6034 | BL15: 69.7011 | BM15: 75.1102 | BN15: 110.6487 | BO15: 225.3221 | BP15: 131.6968
B16: SEM | C16: =_xlfn.STDEV.S(C8:C13)/SQRT(6) -> 6.191768228 | D16: =_xlfn.STDEV.S(D8:D13)/SQRT(6) -> 3.183625342 | E16: 6.066093084 | F16: 6.023808678 | G16: 4.303901483 | H16: 3.055354831 | I16: 3.809956633 | J16: 8.658783577 | K16: 5.051806505 | L16: 6.522735419 | N16: =_xlfn.STDEV.S(N8:N13)/SQRT(6) -> 15.24290987 | O16: =_xlfn.STDEV.S(O8:O13)/SQRT(6) -> 9.932913422 | P16: 7.229148542 | Q16: 8.85075274 | R16: 4.627507138 | S16: 2.779992991 | T16: 3.59487079 | U16: 1.898077604 | V16: 5.688674325 | W16: 4.721707369 | Y16: =_xlfn.STDEV.S(Y8:Y13)/SQRT(6) -> 7.629829919 | Z16: =_xlfn.STDEV.S(Z8:Z13)/SQRT(6) -> 8.893328984 | AA16: 9.188876036 | AB16: 5.895122493 | AC16: 9.211753953 | AD16: 10.40701989 | AE16: 8.789291893 | AF16: 5.858097358 | AG16: 6.819566004 | AH16: 11.72296923 | AI16: 10.04964278 | AJ16: =_xlfn.STDEV.S(AJ8:AJ13)/SQRT(6) -> 8.49058634 | AK16: 14.58889289 | AL16: 14.25650829 | AM16: 6.12600488 | AN16: 13.55346345 | AO16: 7.806346583 | AP16: 6.687129666 | AQ16: 9.106551193 | AR16: 7.077207396 | AS16: 11.46382394 | AT16: 10.84815452 | AU16: 8.623965936 | AV16: 7.512412596 | AW16: 7.171191 | AX16: 9.555827482 | AY16: 4.92764912 | AZ16: 10.91215029 | BA16: 7.446113418 | BB16: 7.097001421 | BC16: 8.094983266 | BD16: 2.788346931 | BE16: 9.952942232 | BI16: Q1 | BJ16: =_xlfn.QUARTILE.INC(BL7:BL48, 1) -> 77.9877 | BK16: 206.6528 | BL16: 62.3163 | BM16: 92.1251 | BN16: 117.6488 | BO16: 175.9522 | BP16: 115.0155
BK17: 228.528 | BL17: 121.6341 | BM17: 86.0112 | BN17: 125.1679 | BO17: 141.7545 | BP17: 112.1203
A18: Fig 6B. Time-course showing the effect of lactate in the presence of wortmannin (10 mcM) | BI18: Wortmannin | BK18: 258.5234 | BL18: 103.1769 | BM18: 81.8869 | BN18: 116.0128 | BO18: 137.7443 | BP18: 144.4762
BI19: MEAN | BJ19: =AVERAGE(BM7:BM76) -> 92.67473421 | BK19: 246.2085 | BL19: 73.5858 | BM19: 80.0023 | BN19: 113.1766 | BO19: 205.0868 | BP19: 113.6303
C20: Baseline | N20: Lactate perfusion (2 mM) | Y20: Washout | BI20: MEDIAN | BJ20: =MEDIAN(BM7:BM76) -> 91.17375 | BK20: 224.648 | BL20: 96.3817 | BM20: 70.543 | BN20: 113.2412 | BO20: 153.6324 | BP20: 120.8387
A21: CELL | B21: TIME (min) | C21: 1 | D21: 2 | E21: 3 | F21: 4 | G21: 5 | H21: 6 | I21: 7 | J21: 8 | K21: 9 | L21: 10 | N21: 11 | O21: 12 | P21: 13 | Q21: 14 | R21: 15 | S21: 16 | T21: 17 | U21: 18 | V21: 19 | W21: 20 | Y21: 21 | Z21: 22 | AA21: 23 | AB21: 24 | AC21: 25 | AD21: 26 | AE21: 27 | AF21: 28 | AG21: 29 | AH21: 30 | AI21: 31 | AJ21: 32 | AK21: 33 | AL21: 34 | AM21: 35 | AN21: 36 | AO21: 37 | AP21: 38 | AQ21: 39 | AR21: 40 | AS21: 41 | AT21: 42 | AU21: 43 | AV21: 44 | AW21: 45 | AX21: 46 | AY21: 47 | AZ21: 48 | BA21: 49 | BB21: 50 | BC21: 51 | BD21: 52 | BE21: 53 | BF21: 54 | BG21: 55 | BI21: Q3 | BJ21: =_xlfn.QUARTILE.INC(BM7:BM76, 3) -> 101.8077 | BK21: 179.3404 | BL21: 111.0627 | BM21: 86.975 | BN21: 113.1 | BO21: 158.4613 | BP21: 147.0778
A22: 1 | C22: 106.9193517 | D22: 107.3178742 | E22: 112.5589568 | F22: 117.9887304 | G22: 103.707106 | H22: 95.67248907 | I22: 82.50282673 | J22: 95.15254454 | K22: 94.05787506 | L22: 84.12224553 | N22: 98.18762876 | O22: 92.17224076 | P22: 64.12892921 | Q22: 61.54939457 | R22: 73.1867742 | S22: 56.08373937 | T22: 79.71954368 | U22: 75.5849852 | V22: 92.06075575 | W22: 72.33461639 | Y22: 62.40379164 | Z22: 85.33608667 | AA22: 92.42116129 | AB22: 85.74102087 | AC22: 54.82088216 | AD22: 49.98761939 | AE22: 62.6982027 | AF22: 57.08037818 | AG22: 78.90070483 | AH22: 74.65658177 | AI22: 88.09726563 | AJ22: 78.42304807 | AK22: 73.08810132 | AL22: 101.1323729 | AM22: 92.06088055 | AN22: 94.82598573 | AO22: 97.59109091 | AP22: 100.3561961 | AQ22: 105.1650617 | AR22: 136.29055 | AS22: 111.7321122 | AT22: 81.23612434 | AU22: 88.30966525 | AV22: 75.62919215 | AW22: 101.3918652 | AX22: 96.99461204 | AY22: 105.3736149 | AZ22: 75.11021237 | BA22: 92.12514698 | BB22: 79.73990981 | BC22: 83.21595885 | BD22: 72.60260521 | BE22: 61.98754015 | BF22: 64.12084164 | BG22: 80.63678852 | BI22: Q1 | BJ22: =_xlfn.QUARTILE.INC(BM7:BM76, 1) -> 80.08375 | BK22: 228.2121 | BL22: 85.0958 | BM22: 94.2906 | BN22: 115.3136 | BO22: 183.2646 | BP22: 125.7804
A23: 2 | C23: 99.77592188 | D23: 105.6550816 | E23: 94.40379522 | F23: 95.81113681 | G23: 106.1621147 | H23: 88.96993511 | I23: 103.0844858 | J23: 111.4667855 | K23: 108.9476362 | L23: 85.49902915 | N23: 112.3036465 | O23: 77.60660894 | P23: 62.78724238 | Q23: 80.52132015 | R23: 81.94809847 | S23: 75.23150986 | T23: 59.91768621 | U23: 72.20132504 | V23: 72.85812342 | W23: 47.43169095 | Y23: 69.3683547 | Z23: 78.80873496 | AA23: 89.23345185 | AB23: 72.02240666 | AC23: 104.4649595 | AD23: 105.9088828 | AE23: 89.79764513 | AF23: 79.5066887 | AG23: 72.67806163 | AH23: 98.28283893 | AI23: 88.54750329 | AJ23: 82.02583925 | AK23: 82.95358634 | AL23: 106.2467106 | AM23: 99.85366554 | AN23: 97.21962058 | AO23: 89.0979773 | AP23: 97.48542455 | AQ23: 105.6173552 | AR23: 68.51034616 | AS23: 99.13341756 | AT23: 94.41865832 | AU23: 89.24779932 | AV23: 86.01120776 | AW23: 81.88693159 | AX23: 80.00228478 | AY23: 70.54304381 | AZ23: 86.97496301 | BA23: 94.2906149 | BB23: 75.95175547 | BC23: 80.32811223 | BD23: 79.27518087 | BE23: 93.93392155 | BF23: 83.42517533 | BG23: 83.23082277 | BK23: 268.4826 | BL23: 98.9069 | BM23: 75.9518 | BN23: 116.0475 | BO23: 167.9992 | BP23: 113.304
A24: 3 | C24: 84.34562769 | D24: 113.7058871 | E24: 87.50304776 | F24: 102.3923789 | G24: 100.0738441 | H24: 107.1770004 | I24: 108.0103408 | J24: 112.8829375 | K24: 93.08706702 | L24: 90.82186866 | N24: 93.41195256 | O24: 68.1553684 | P24: 83.02946095 | Q24: 75.73373043 | R24: 79.88450844 | S24: 74.8761421 | T24: 83.64598194 | U24: 71.99996711 | V24: 82.14000941 | W24: 76.49918603 | Y24: 82.4863669 | Z24: 81.60522721 | AA24: 84.00342635 | AB24: 60.91713409 | AC24: 85.67426844 | AD24: 68.76842667 | AE24: 71.35989432 | AF24: 101.050581 | AG24: 94.57710794 | AH24: 68.69361332 | AI24: 91.99603379 | AJ24: 74.47090153 | AK24: 88.98685713 | AL24: 85.79687729 | AM24: 97.64239395 | AN24: 85.90286711 | AO24: 115.9225932 | AP24: 90.0238573 | AQ24: 83.84964304 | AR24: 70.09845006 | AS24: 83.87665757 | AT24: 101.946269 | AU24: 91.24581591 | AV24: 103.5672339 | AW24: 94.85765869 | AX24: 116.1588132 | AY24: 108.8312168 | AZ24: 93.02888138 | BA24: 84.96145925 | BB24: 102.5281534 | BC24: 134.5456881 | BD24: 119.6217174 | BE24: 99.07009263 | BF24: 103.3490294 | BG24: 135.1441986 | BI24: Chelerytrine | BK24: 243.9331 | BL24: 84.3645 | BM24: 80.3281 | BN24: 117.7332 | BO24: 135.7778 | BP24: 111.5679
A25: 4 | C25: 110.4347569 | D25: 105.7120285 | E25: 109.8300945 | F25: 109.4655112 | G25: 75.71233457 | H25: 94.78059531 | I25: 99.26471699 | J25: 101.6354678 | K25: 95.86642586 | L25: 97.29806835 | N25: 66.37704488 | O25: 61.55156448 | P25: 53.00026678 | Q25: 61.56934998 | R25: 68.88463486 | S25: 74.08556618 | T25: 38.52085753 | U25: 55.87984478 | V25: 63.72569882 | W25: 67.3477736 | Y25: 108.7437666 | Z25: 73.95909916 | AA25: 53.71460414 | AB25: 54.54058568 | AC25: 50.14390507 | AD25: 107.895553 | AE25: 77.81236982 | AF25: 77.77235436 | AG25: 93.7915915 | AH25: 84.84458987 | AI25: 82.36219553 | AJ25: 84.47080525 | AK25: 85.434415 | AL25: 86.39802474 | AM25: 74.3859231 | AO25: 72.98096045 | AP25: 85.62282052 | AQ25: 76.89526801 | AS25: 70.39194114 | AT25: 113.2438285 | AU25: 79.69306207 | AV25: 97.07739816 | AW25: 86.17794529 | AX25: 116.8827712 | AY25: 79.21881173 | AZ25: 80.50521394 | BA25: 81.92000851 | BB25: 91.10171115 | BC25: 74.16142581 | BD25: 75.94661075 | BE25: 88.82874268 | BF25: 69.40436656 | BG25: 81.99325392 | BI25: MEAN | BJ25: =AVERAGE(BN7:BN57) -> 98.67083922 | BK25: 182.5201 | BL25: 99.7086 | BM25: 79.2752 | BN25: 122.0851 | BO25: 152.0508 | BP25: 125.0664
BI26: MEDIAN | BJ26: =MEDIAN(BN7:BN57) -> 98.1593 | BK26: 241.4055 | BL26: 93.1545 | BM26: 93.9339 | BN26: 127.36 | BO26: 183.9955 | BP26: 164.7009
B27: MEAN | C27: =AVERAGE(C22:C25) -> 100.3689145 | D27: 108.0977179 | E27: 101.0739736 | F27: 106.4144393 | G27: 96.41384983 | H27: 96.65000497 | I27: 98.21559259 | J27: 105.2844338 | K27: 97.98975102 | L27: 89.43530292 | N27: =AVERAGE(N22:N25) -> 92.57006817 | O27: 74.87144565 | P27: 65.73647483 | Q27: 69.84344878 | R27: 75.97600399 | S27: 70.06923938 | T27: 65.45101734 | U27: 68.91653053 | V27: 77.69614685 | W27: 65.90331674 | Y27: =AVERAGE(Y22:Y25) -> 80.75056995 | Z27: 79.927287 | AA27: 79.84316091 | AB27: 68.30528683 | AC27: 73.7760038 | AD27: 83.14012048 | AE27: 75.41702799 | AF27: 78.85250056 | AG27: 84.98686648 | AH27: 81.61940597 | AI27: 87.75074956 | AJ27: 79.84764853 | AK27: 82.61573995 | AL27: 94.89349636 | AM27: 90.98571578 | AN27: 92.64949114 | AO27: 93.89815547 | AP27: 93.37207462 | AQ27: 92.881832 | AR27: 91.63311541 | AS27: 91.28353212 | AT27: 97.71122003 | AU27: 87.12408564 | AV27: 90.571258 | AW27: 91.0786002 | AX27: 102.5096203 | AY27: 90.9916718 | AZ27: 83.90481768 | BA27: 88.32430741 | BB27: 87.33038247 | BC27: 93.06279626 | BD27: 86.86152854 | BE27: 85.95507426 | BF27: 80.07485324 | BG27: 95.25126594 | BI27: Q3 | BJ27: =_xlfn.QUARTILE.INC(BN7:BN57, 3) -> 115.6632 | BK27: 314.1844 | BL27: 118.2884 | BM27: 101.9463 | BN27: 125.3415 | BO27: 206.1468 | BP27: 109.0903
B28: SEM | C28: =_xlfn.STDEV.S(C22:C25)/SQRT(4) -> 5.78306991 | D28: =_xlfn.STDEV.S(D22:D25)/SQRT(4) -> 1.908701655 | E28: 6.03625021 | F28: 4.759904121 | G28: 7.012896128 | H28: 3.810635728 | I28: 5.535001407 | J28: 4.202468165 | K28: 3.697743854 | L28: 2.992608599 | N28: =_xlfn.STDEV.S(N22:N25)/SQRT(4) -> 9.607958238 | O28: =_xlfn.STDEV.S(O22:O25)/SQRT(4) -> 6.641558286 | P28: 6.275219382 | Q28: 4.881635664 | R28: 3.013990137 | S28: 4.667979949 | T28: 10.37022517 | U28: 4.422677538 | V28: 6.08734885 | W28: 6.435069775 | Y28: =_xlfn.STDEV.S(Y22:Y25)/SQRT(4) -> 10.21759572 | Z28: =_xlfn.STDEV.S(Z22:Z25)/SQRT(4) -> 2.396890729 | AA28: 8.880657561 | AB28: 6.842718758 | AC28: 12.91366664 | AD28: 14.25038564 | AE28: 5.706492371 | AF28: 8.983200824 | AG28: 5.462325163 | AH28: 6.478353995 | AI28: 1.996117954 | AJ28: 2.180538689 | AK28: 3.408642216 | AL28: 5.186043525 | AM28: 5.771055605 | AN28: 2.982032604 | AO28: 8.940937629 | AP28: 3.378351406 | AQ28: 7.361057156 | AR28: 19.34131179 | AS28: 8.995765177 | AT28: 6.717311626 | AU28: 2.55154415 | AV28: 6.159576826 | AW28: 4.369858019 | AX28: 8.802856549 | AY28: 9.494894565 | AZ28: 3.889909156 | BA28: 2.920716218 | BB28: 6.001969053 | BC28: 13.95595604 | BD28: 11.00467691 | BE28: 8.258159462 | BF28: 8.762142561 | BG28: 13.30818971 | BI28: Q1 | BJ28: =_xlfn.QUARTILE.INC(BN7:BN57, 1) -> 83.548 | BK28: 258.2452 | BL28: 83.6867 | BM28: 91.2458 | BN28: 85.7045 | BO28: 129.2277 | BP28: 139.4854
BK29: 367.6035 | BL29: 77.1474 | BM29: 103.5672 | BN29: 65.9449 | BO29: 138.5866 | BP29: 126.5773
A30: Fig 6C. Time-course showing the effect of lactate in the presence of chelerythrine (10 mcM) | BI30: U73122 | BK30: 254.3672 | BL30: 65.7636 | BM30: 94.8577 | BN30: 79.3151 | BO30: 156.095 | BP30: 118.9992
BI31: MEAN | BJ31: =AVERAGE(BO7:BO53) -> 196.0437829 | BK31: 211.6102 | BL31: 71.8325 | BM31: 116.1588 | BN31: 95.4097 | BO31: 287.9165 | BP31: 150.4152
C32: Baseline | N32: Lactate perfusion (2 mM) | Y32: Washout | BI32: MEDIAN | BJ32: =MEDIAN(BO7:BO53) -> 175.9522 | BK32: 271.9223 | BL32: 95.4973 | BM32: 108.8312 | BN32: 79.9332 | BO32: 148.9146 | BP32: 179.3883
A33: CELL | B33: TIME (min) | C33: 1 | D33: 2 | E33: 3 | F33: 4 | G33: 5 | H33: 6 | I33: 7 | J33: 8 | K33: 9 | L33: 10 | N33: 11 | O33: 12 | P33: 13 | Q33: 14 | R33: 15 | S33: 16 | T33: 17 | U33: 18 | V33: 19 | W33: 20 | Y33: 21 | Z33: 22 | AA33: 23 | AB33: 24 | AC33: 25 | AD33: 26 | AE33: 27 | AF33: 28 | AG33: 29 | AH33: 30 | AI33: 31 | AJ33: 32 | AK33: 33 | AL33: 34 | AM33: 35 | AN33: 36 | AO33: 37 | AP33: 38 | AQ33: 39 | AR33: 40 | AS33: 41 | AT33: 42 | AU33: 43 | AV33: 44 | AW33: 45 | AX33: 46 | AY33: 47 | AZ33: 48 | BA33: 49 | BB33: 50 | BC33: 51 | BD33: 52 | BE33: 53 | BF33: 54 | BG33: 55 | BI33: Q3 | BJ33: =_xlfn.QUARTILE.INC(BO7:BO53, 3) -> 229.1224 | BK33: 275.2917 | BL33: 71.7764 | BM33: 93.0289 | BN33: 90.048 | BO33: 237.1699 | BP33: 185.4111
A34: 1 | C34: 104.529529 | D34: 110.4885454 | E34: 121.8956126 | F34: 129.6818885 | G34: 91.67314734 | H34: 69.72500013 | I34: 94.51738606 | J34: 82.86180224 | K34: 91.4776612 | L34: 103.1494276 | N34: 105.6229101 | O34: 60.87725364 | P34: 88.70172956 | Q34: 121.9522409 | R34: 92.30949808 | S34: 92.21242683 | T34: 96.8165118 | U34: 78.81003044 | V34: 77.93909553 | W34: 65.33887458 | Y34: 38.65811518 | Z34: 61.60033291 | AA34: 62.85550084 | AB34: 55.75186677 | AC34: 66.03049722 | AD34: 50.90376154 | AE34: 71.02960195 | AF34: 58.13951992 | AG34: 54.34435219 | AH34: 55.79096581 | AI34: 70.71277524 | AJ34: 102.6299227 | AK34: 70.36853735 | AL34: 72.3692565 | AM34: 56.41023673 | AN34: 120.7793093 | AO34: 89.66748546 | AP34: 104.3070737 | AQ34: 79.62973142 | AR34: 118.239315 | AS34: 98.15930937 | AT34: 85.71817586 | AU34: 92.14367037 | AV34: 101.8030296 | AW34: 106.1823865 | BI34: Q1 | BJ34: =_xlfn.QUARTILE.INC(BO7:BO53, 1) -> 154.8637 | BK34: 377.1076 | BL34: 83.5746 | BM34: 84.9615 | BN34: 95.3887 | BO34: 208.1424 | BP34: 130.0995
A35: 2 | C35: 113.692938 | D35: 92.41388521 | E35: 99.83384878 | F35: 78.18623578 | G35: 94.42515173 | H35: 108.5613048 | I35: 94.54572549 | J35: 103.4963691 | K35: 109.1693016 | L35: 105.6752396 | N35: 100.7590983 | O35: 90.07254235 | P35: 82.16002295 | Q35: 54.36744789 | R35: 67.67241296 | S35: 67.03705204 | T35: 48.2652411 | U35: 73.62069723 | V35: 55.2644791 | W35: 59.26306634 | Y35: 49.79506803 | Z35: 61.87719811 | AA35: 54.70351483 | AB35: 66.06134688 | AC35: 60.65778378 | AD35: 62.65536648 | AE35: 63.85169403 | AF35: 100.1536679 | AG35: 106.8253924 | AH35: 75.0709983 | AI35: 71.97799332 | AJ35: 86.9915079 | AK35: 66.40767817 | AL35: 88.89331572 | AM35: 113.2286029 | AN35: 89.54407019 | AO35: 84.28388327 | AP35: 91.48863723 | AQ35: 125.4381504 | AR35: 115.3245245 | AS35: 125.4458436 | AT35: 108.7212155 | AU35: 102.9439547 | AV35: 103.5835953 | AW35: 109.3711122 | AX35: 94.99979863 | AY35: 113.1832824 | AZ35: 99.92021714 | BA35: 116.3070709 | BB35: 117.2673826 | BC35: 109.2377124 | BD35: 119.0158378 | BE35: 110.6486777 | BF35: 117.4400431 | BG35: 118.9754411 | BK35: 384.0688 | BL35: 68.0379 | BM35: 102.5282 | BN35: 91.8185 | BO35: 260.3151 | BP35: 161.8139
A36: 3 | C36: 108.2145068 | D36: 106.8599159 | E36: 79.42921152 | F36: 83.12210382 | G36: 106.6647762 | H36: 91.41205838 | I36: 99.19479323 | J36: 102.1218433 | K36: 107.4546801 | L36: 115.5261108 | N36: 93.31864961 | O36: 110.6323273 | P36: 95.22323179 | Q36: 87.53472501 | R36: 113.8741305 | S36: 85.05676102 | T36: 101.3880782 | U36: 77.69102858 | V36: 76.91716454 | W36: 90.92555463 | Y36: 116.9896349 | Z36: 117.5449689 | AA36: 73.3205057 | AB36: 107.4326262 | AC36: 106.999959 | AD36: 70.10691476 | AE36: 66.62242808 | AF36: 69.55427908 | AG36: 66.39814308 | AH36: 107.6423098 | AI36: 76.57169766 | AJ36: 129.1917516 | AK36: 95.20485624 | AL36: 93.89881499 | AM36: 87.01266692 | AN36: 88.80577198 | AO36: 129.2784158 | AP36: 86.11330312 | AQ36: 103.7249454 | AR36: 124.7011137 | AS36: 137.3642367 | AT36: 104.3394997 | AU36: 113.744239 | AV36: 93.48352326 | AW36: 134.8344875 | AX36: 124.0783843 | AY36: 129.9517377 | AZ36: 120.3539163 | BI36: KN-62 | BK36: 355.2069 | BL36: 87.2383 | BM36: 134.5457 | BN36: 102.9152 | BO36: 232.9227 | BP36: 150.0806
A37: 4 | C37: 112.4973025 | D37: 99.62548603 | E37: 123.3900437 | F37: 127.886792 | G37: 116.5052411 | H37: 93.49910816 | I37: 88.36304369 | J37: 88.17867112 | K37: 76.04087926 | L37: 86.13622092 | N37: 63.89191458 | O37: 83.95488846 | P37: 63.85959106 | Q37: 86.61151587 | R37: 73.71867593 | S37: 74.34242972 | T37: 73.66360636 | U37: 83.54903196 | V37: 78.21901923 | W37: 60.71809211 | Y37: 92.50062733 | Z37: 66.53537252 | AA37: 72.44244129 | AB37: 82.61280647 | AC37: 77.78921904 | AD37: 77.02778687 | AE37: 94.53829236 | AF37: 81.27072626 | AG37: 83.67952991 | AH37: 89.83322837 | AI37: 77.30793594 | AJ37: 106.8432958 | AK37: 105.7350718 | AL37: 92.61197033 | AM37: 96.84772573 | AN37: 88.75812687 | AO37: 105.8280571 | AP37: 93.01423484 | AQ37: 96.13298596 | AR37: 125.606094 | AS37: 117.2950086 | AT37: 100.0514791 | AU37: 138.3732185 | AV37: 95.38951377 | AW37: 116.0127831 | AX37: 113.1765799 | AY37: 113.2412269 | AZ37: 113.0999583 | BA37: 115.3136116 | BB37: 116.0475064 | BC37: 117.7331877 | BD37: 122.0850749 | BE37: 127.3600144 | BF37: 127.936594 | BG37: 130.6023184 | BI37: MEAN | BJ37: =AVERAGE(BP7:BP48) -> 148.5932667 | BK37: 240.1023 | BL37: 79.3563 | BM37: 119.6217 | BN37: 76.8292 | BO37: 273.6704 | BP37: 135.1899
A38: 5 | C38: 86.71944874 | D38: 93.2023254 | E38: 81.22483983 | F38: 85.70065529 | G38: 111.1386642 | H38: 107.4616006 | I38: 102.8280683 | J38: 110.2686841 | K38: 110.7774471 | L38: 110.6782665 | N38: 94.48058446 | O38: 92.53266898 | P38: 118.8571927 | Q38: 130.8251438 | R38: 86.25202497 | S38: 99.13001725 | T38: 104.9343368 | U38: 106.4148271 | V38: 108.9363696 | W38: 102.0547532 | Y38: 107.9004067 | Z38: 113.8719819 | AA38: 131.2334209 | AB38: 88.33730609 | AC38: 105.6453267 | AD38: 107.4902183 | AE38: 81.15424779 | AF38: 119.0956808 | AG38: 145.7547111 | AH38: 153.1622594 | AI38: 132.3189922 | AJ38: 119.0308072 | AK38: 93.25829123 | AL38: 91.37332999 | AM38: 89.67470946 | AN38: 98.17036764 | AO38: 88.1465207 | AP38: 80.98063329 | AQ38: 85.7044723 | AR38: 65.94486218 | AS38: 79.31507888 | AT38: 95.4097079 | AU38: 79.93322501 | AV38: 90.04801382 | AW38: 95.38872142 | AX38: 91.81849872 | AY38: 102.9151931 | AZ38: 76.82915044 | BI38: MEDIAN | BJ38: =MEDIAN(BP7:BP48) -> 134.066 | BK38: 116.9554 | BL38: 99.2047 | BM38: 99.0701 | BN38: 77.4682 | BO38: 245.6747 | BP38: 128.2065
A39: 6 | C39: 94.0860062 | D39: 97.24615866 | E39: 95.45399678 | F39: 107.3689012 | G39: 112.3259999 | H39: 106.3563978 | I39: 106.2280572 | J39: 88.60619236 | K39: 89.02008607 | L39: 97.39421008 | N39: 112.0473164 | O39: 96.10439887 | P39: 74.694699 | Q39: 76.27326971 | R39: 80.56391642 | S39: 83.16507269 | T39: 80.34482548 | U39: 66.03456287 | V39: 68.77781057 | W39: 67.88677151 | Y39: 71.16354022 | Z39: 69.75685314 | AA39: 67.9032714 | AB39: 69.3278338 | AC39: 62.63541138 | AD39: 99.753813 | AE39: 101.1426259 | AF39: 107.0769287 | AG39: 82.24515779 | AH39: 119.5780702 | AI39: 102.224797 | AJ39: 79.41436777 | AK39: 115.2920048 | AL39: 90.06238318 | AM39: 108.0138058 | AN39: 93.39277959 | AO39: 61.81175081 | AP39: 97.34883164 | AQ39: 79.53078999 | AR39: 97.13294867 | AS39: 68.20120157 | AT39: 91.29856262 | AU39: 103.7593657 | AV39: 95.57774957 | AW39: 77.46819564 | AX39: 86.14483263 | AY39: 83.01244386 | AZ39: 84.08361738 | BA39: 97.37083305 | BB39: 63.67083425 | BC39: 75.24609823 | BD39: 81.35686784 | BE39: 81.56679624 | BF39: 75.64410076 | BG39: 74.24265112 | BI39: Q3 | BJ39: =_xlfn.QUARTILE.INC(BP7:BP48, 3) -> 163.97915 | BK39: 166.7604 | BL39: 108.0902 | BM39: 74.3859 | BN39: 86.1448 | BO39: 287.8877 | BP39: 184.9366
BI40: Q1 | BJ40: =_xlfn.QUARTILE.INC(BP7:BP48, 1) -> 121.878375 | BK40: 236.1922 | BL40: 98.1809 | BM40: 72.981 | BN40: 83.0124 | BO40: 270.8755 | BP40: 215.2401
B41: MEAN | C41: =AVERAGE(C34:C39) -> 103.2899552 | D41: 99.97271944 | E41: 100.2045922 | F41: 101.9910961 | G41: 105.4554967 | H41: 96.16924498 | I41: 97.61284565 | J41: 95.92226036 | K41: 97.32334255 | L41: 103.0932459 | N41: =AVERAGE(N34:N39) -> 95.02007893 | O41: 89.02901326 | P41: 87.24941117 | Q41: 92.92739052 | R41: 85.73177648 | S41: 83.49062659 | T41: 84.23543328 | U41: 81.0200297 | V41: 77.67565643 | W41: 74.36451873 | Y41: =AVERAGE(Y34:Y39) -> 79.50123207 | Z41: 81.86445125 | AA41: 77.07644249 | AB41: 78.25396437 | AC41: 79.95969952 | AD41: 77.98964349 | AE41: 79.72314835 | AF41: 89.21513377 | AG41: 89.87454774 | AH41: 100.1796387 | AI41: 88.5190319 | AJ41: 104.0169422 | AK41: 91.0444066 | AL41: 88.20151178 | AM41: 91.86462459 | AN41: 96.57507093 | AO41: 93.16935218 | AP41: 92.20878564 | AQ41: 95.02684591 | AR41: 107.8248097 | AS41: 104.2967798 | AT41: 97.58977346 | AU41: 105.1496122 | AV41: 96.64757088 | AW41: 106.5429477 | AX41: 102.0436188 | AY41: 108.4607768 | AZ41: 98.85737193 | BA41: 109.6638385 | BB41: 98.99524105 | BC41: 100.7389995 | BD41: 107.4859268 | BE41: 106.5251628 | BF41: 107.0069126 | BG41: 107.9401369 | BK41: 191.723 | BL41: 108.9707 | BM41: 79.6931 | BN41: 84.0836 | BO41: 355.9364 | BP41: 223.5522
B42: SEM | C42: =_xlfn.STDEV.S(C34:C39)/SQRT(6) -> 4.38968263 | D42: =_xlfn.STDEV.S(D34:D39)/SQRT(6) -> 2.991905673 | E42: 7.794482188 | F42: 9.406339251 | G42: 4.141992596 | H42: 6.093485773 | I42: 2.636101332 | J42: 4.418466618 | K42: 5.715601387 | L42: 4.237917018 | N42: =_xlfn.STDEV.S(N34:N39)/SQRT(6) -> 6.849408058 | O42: =_xlfn.STDEV.S(O34:O39)/SQRT(6) -> 6.704220376 | P42: 7.735953404 | Q42: 11.70737897 | R42: 6.665060997 | S42: 4.752643908 | T42: 8.759178898 | U42: 5.617153102 | V42: 7.210188796 | W42: 7.254238489 | Y42: =_xlfn.STDEV.S(Y34:Y39)/SQRT(6) -> 12.91124992 | Z42: =_xlfn.STDEV.S(Z34:Z39)/SQRT(6) -> 10.78468162 | AA42: 11.18852012 | AB42: 7.542651424 | AC42: 8.68399994 | AD42: 8.899083512 | AE42: 6.270141517 | AF42: 9.568871287 | AG42: 13.31671381 | AH42: 14.07953008 | AI42: 9.942133775 | AJ42: 7.6686621 | AK42: 7.874922741 | AL42: 3.248453896 | AM42: 8.220701023 | AN42: 5.064315338 | AO42: 9.244547786 | AP42: 3.352523036 | AQ42: 7.224572548 | AR42: 9.370053801 | AS42: 11.06697527 | AT42: 3.467922774 | AU42: 8.143492378 | AV42: 2.08949567 | AW42: 7.890871307 | AX42: 6.507731299 | AY42: 7.027882894 | AZ42: 7.554217074 | BA42: 4.350962124 | BB42: 12.49154588 | BC42: 9.178410217 | BD42: 9.259237248 | BE42: 9.460507736 | BF42: 11.29353703 | BG42: 12.14795235 | BK42: 231.1179 | BL42: 93.1463 | BM42: 79.2188 | BN42: 97.3708 | BP42: 210.1825
BK43: 301.708 | BL43: 119.5934 | BM43: 80.5052 | BN43: 63.6708 | BP43: 230.9611
A44: Fig 6D. Time-course showing the effect of lactate in the presence of U73122 (10 mcM) | BK44: 212.0308 | BL44: 106.316 | BM44: 91.1017 | BN44: 75.2461 | BP44: 249.1465
BK45: 326.3398 | BL45: 97.0316 | BN45: 81.3569 | BP45: 206.5926
C46: Baseline | N46: Lactate perfusion (2 mM) | Y46: Washout | BK46: 310.3909 | BL46: 94.6128 | BN46: 81.5668 | BP46: 134.79
A47: CELL | B47: TIME (min) | C47: 1 | D47: 2 | E47: 3 | F47: 4 | G47: 5 | H47: 6 | I47: 7 | J47: 8 | K47: 9 | L47: 10 | N47: 11 | O47: 12 | P47: 13 | Q47: 14 | R47: 15 | S47: 16 | T47: 17 | U47: 18 | V47: 19 | W47: 20 | Y47: 21 | Z47: 22 | AA47: 23 | AB47: 24 | AC47: 25 | AD47: 26 | AE47: 27 | AF47: 28 | AG47: 29 | AH47: 30 | AI47: 31 | AJ47: 32 | AK47: 33 | AL47: 34 | AM47: 35 | AN47: 36 | AO47: 37 | AP47: 38 | AQ47: 39 | AR47: 40 | AS47: 41 | AT47: 42 | AU47: 43 | AV47: 44 | AW47: 45 | AX47: 46 | AY47: 47 | AZ47: 48 | BA47: 49 | BB47: 50 | BC47: 51 | BD47: 52 | BE47: 53 | BF47: 54 | BG47: 55 | BK47: 100.5536 | BL47: 86.6013 | BN47: 79.9488 | BP47: 221.6201
A48: 1 | C48: 93.40190469 | D48: 102.6941988 | E48: 106.8214429 | F48: 88.60585567 | G48: 94.10086816 | H48: 109.3609472 | I48: 100.7019748 | J48: 99.6606305 | K48: 103.60338 | L48: 101.0487972 | N48: 102.3163321 | O48: 125.7617171 | P48: 126.4899533 | Q48: 142.6107238 | R48: 93.83476412 | S48: 79.06520065 | T48: 79.51579841 | U48: 81.70227243 | V48: 109.1179081 | W48: 95.77642432 | Y48: 101.3574738 | Z48: 95.23800834 | AA48: 90.96529297 | AB48: 132.9881666 | AC48: 169.3581442 | AD48: 128.3331528 | AE48: 104.5595757 | AF48: 107.5479018 | AG48: 154.9557989 | AH48: 102.2985905 | AI48: 114.5579217 | AJ48: 94.30132955 | AK48: 131.5929082 | AL48: 123.2275392 | AM48: 152.625633 | AN48: 120.9133331 | AO48: 187.7404895 | AP48: 156.7324717 | AQ48: 152.8367434 | AR48: 147.3470456 | AS48: 179.5915482 | AT48: 160.5306462 | AU48: 188.8734964 | AV48: 175.8058019 | AW48: 170.2132206 | AX48: 169.7626189 | AY48: 161.2712924 | AZ48: 215.0141973 | BA48: 225.3221145 | BB48: 175.9521576 | BC48: 141.7544656 | BD48: 137.7443064 | BE48: 195.0825467 | BF48: 153.6323877 | BG48: 158.4612521 | BK48: 121.8369 | BL48: 91.3163 | BN48: 56.4102 | BP48: 137.3381
A49: 2 | C49: 114.4270636 | D49: 118.7921197 | E49: 106.6070247 | F49: 118.0553274 | G49: 115.3371369 | H49: 88.36381513 | I49: 84.49283298 | J49: 73.9828041 | K49: 84.79661653 | L49: 109.5723227 | N49: 106.9244104 | O49: 130.1998026 | P49: 167.2639859 | Q49: 110.995098 | R49: 189.9499344 | S49: 201.8964577 | T49: 160.6575069 | U49: 118.722115 | V49: 182.9196058 | W49: 190.7542177 | Y49: 114.2321962 | Z49: 140.1075791 | AA49: 139.9324953 | AB49: 189.1562217 | AC49: 151.9821268 | AD49: 155.2659146 | AE49: 135.744109 | AF49: 146.7665873 | AG49: 124.2994943 | AH49: 199.5707627 | AI49: 179.7853706 | AJ49: 149.0523935 | AK49: 119.4652468 | AL49: 150.3489838 | AM49: 147.7402437 | AN49: 146.3726468 | AO49: 180.4467913 | AP49: 160.4252703 | AQ49: 161.4511555 | AR49: 162.4770406 | AS49: 163.5029258 | AT49: 164.528811 | AU49: 165.5546961 | AV49: 166.5805813 | AW49: 167.6064665 | AX49: 168.6323517 | AY49: 183.2646449 | AZ49: 167.9992458 | BA49: 135.7778067 | BB49: 152.0508497 | BC49: 183.9955476 | BD49: 170.5098538 | BE49: 171.3398717 | BF49: 172.1698897 | BG49: 172.9999077 | BK49: 131.4845 | BN49: 120.7793
A50: 3 | C50: 99.45660038 | D50: 92.11417771 | E50: 117.7608507 | F50: 81.36653631 | G50: 103.0760054 | H50: 92.8394539 | I50: 104.7459653 | J50: 109.6165364 | K50: 91.18864786 | L50: 107.2918265 | N50: 80.40618037 | O50: 98.70868535 | P50: 109.9613223 | Q50: 89.77031238 | R50: 105.9788413 | S50: 64.25076139 | T50: 71.26319573 | U50: 98.25419598 | V50: 72.97756137 | W50: 105.1264522 | Y50: 104.8574129 | Z50: 156.1707816 | AA50: 110.5046253 | AB50: 76.35840226 | AC50: 101.440874 | AD50: 110.4889555 | AE50: 112.2024456 | AF50: 118.3111194 | AG50: 91.83556052 | AH50: 134.6310961 | AI50: 179.5963499 | AJ50: 152.7725277 | AK50: 130.2829321 | AL50: 171.5547773 | AM50: 127.0248545 | AN50: 126.9499762 | AO50: 154.331908 | AP50: 177.7365897 | AQ50: 190.6400264 | AR50: 197.5323066 | AS50: 206.1467828 | AT50: 147.8932483 | AU50: 154.8447357 | AV50: 168.0685826 | AW50: 231.1230409 | AX50: 148.9145511 | AY50: 237.1698938 | AZ50: 208.1423784 | BA50: 260.3150989 | BB50: 232.9227312 | BC50: 273.6704219 | BD50: 245.6746693 | BE50: 287.8877123 | BF50: 204.859925 | BG50: 271.7209713 | BK50: 96.0315 | BN50: 89.6675
BK51: 133.5293 | BN51: 104.3071
BK52: 132.745 | BN52: 79.6297
BK53: 133.6494 | BN53: 118.2393
B54: MEAN | C54: =AVERAGE(C48:C52) -> 102.4285229 | D54: =AVERAGE(D48:D52) -> 104.5334987 | E54: 110.3964394 | F54: 96.00923979 | G54: 104.1713368 | H54: 96.85473876 | I54: 96.64692435 | J54: 94.41999033 | K54: 93.19621479 | L54: 105.9709821 | N54: =AVERAGE(N48:N52) -> 96.54897429 | O54: =AVERAGE(O48:O52) -> 118.2234017 | P54: 134.5717538 | Q54: 114.4587114 | R54: 129.9211799 | S54: 115.0708066 | T54: 103.812167 | U54: 99.5595278 | V54: 121.6716917 | W54: 130.5523648 | Y54: =AVERAGE(Y48:Y52) -> 106.8156943 | Z54: =AVERAGE(Z48:Z52) -> 130.5054564 | AA54: 113.8008045 | AB54: 132.8342635 | AC54: 140.9270484 | AD54: 131.3626743 | AE54: 117.5020434 | AF54: 124.2085362 | AG54: 123.6969512 | AH54: 145.5001498 | AI54: 157.9798807 | AJ54: =AVERAGE(AJ48:AJ52) -> 132.0420836 | AK54: 127.1136957 | AL54: 148.3771001 | AM54: 142.463577 | AN54: 131.4119854 | AO54: 174.1730629 | AP54: 164.9647772 | AQ54: 168.3093084 | AR54: 169.1187976 | AS54: 183.080419 | AT54: 157.6509018 | AU54: 169.7576427 | AV54: 170.1516553 | AW54: 189.647576 | AX54: 162.4365072 | AY54: 193.9019437 | AZ54: 197.0519405 | BA54: 207.13834 | BB54: 186.9752462 | BC54: 199.8068117 | BD54: 184.6429432 | BE54: 218.1033769 | BF54: 176.8874008 | BG54: 201.0607104 | BK54: 122.1295 | BN54: 98.1593
B55: SEM | C55: =_xlfn.STDEV.S(C48:C52)/SQRT(3) -> 6.248695047 | D55: =_xlfn.STDEV.S(D48:D52)/SQRT(3) -> 7.755974372 | E55: 3.682725849 | F55: 11.21939422 | G55: 6.15479732 | H55: 6.385185294 | I55: 6.188158515 | J55: 10.61506714 | K55: 5.521060628 | L55: 2.547619403 | N55: =_xlfn.STDEV.S(N48:N52)/SQRT(3) -> 8.180280005 | O55: =_xlfn.STDEV.S(O48:O52)/SQRT(3) -> 9.84110877 | P55: 17.02826513 | Q55: 15.35170711 | R55: 30.21841697 | S55: 43.62295715 | T55: 28.52233546 | U55: 10.70661951 | V55: 32.35228685 | W55: 30.22169796 | Y55: =_xlfn.STDEV.S(Y48:Y52)/SQRT(3) -> 3.843425951 | Z55: =_xlfn.STDEV.S(Z48:Z52)/SQRT(3) -> 18.23322321 | AA55: 14.23136589 | AB55: 32.56201664 | AC55: 20.37032131 | AD55: 13.01444732 | AE55: 9.384083737 | AF55: 11.69915904 | AG55: 18.22373375 | AH55: 28.60111372 | AI55: 21.71104809 | AJ55: =_xlfn.STDEV.S(AJ48:AJ52)/SQRT(3) -> 18.90091035 | AK55: 3.84287597 | AL55: 13.98566799 | AM55: 7.847130546 | AN55: 7.680631661 | AO55: 10.14154951 | AP55: 6.474271807 | AQ55: 11.43893566 | AR55: 14.86298319 | AS55: 12.43320554 | AT55: 5.013487886 | AU55: 10.04552483 | AV55: 2.859520208 | AW55: 20.75138094 | AX55: 6.768846514 | AY55: 22.54634869 | AZ55: 14.66117065 | BA55: 37.08266229 | BB55: 23.98747358 | BC55: 38.89280966 | BD55: 31.94812969 | BE55: 35.55895927 | BF55: 14.97504957 | BG55: 35.57853982 | BK55: 194.0556 | BN55: 85.7182
BK56: 147.672 | BN56: 92.1437
A57: Fig 6E. Time-course showing the effect of lactate in the presence of KN-62 (10 mcM) | BK57: 269.3214 | BN57: 101.803
BK58: 285.8222
C59: Baseline | N59: Lactate perfusion (2 mM) | Y59: Washout | BK59: 257.7939
A60: CELL | B60: TIME (min) | C60: 1 | D60: 2 | E60: 3 | F60: 4 | G60: 5 | H60: 6 | I60: 7 | J60: 8 | K60: 9 | L60: 10 | N60: 11 | O60: 12 | P60: 13 | Q60: 14 | R60: 15 | S60: 16 | T60: 17 | U60: 18 | V60: 19 | W60: 20 | Y60: 21 | Z60: 22 | AA60: 23 | AB60: 24 | AC60: 25 | AD60: 26 | AE60: 27 | AF60: 28 | AG60: 29 | AH60: 30 | AI60: 31 | AJ60: 32 | AK60: 33 | AL60: 34 | AM60: 35 | AN60: 36 | AO60: 37 | AP60: 38 | AQ60: 39 | AR60: 40 | AS60: 41 | AT60: 42 | AU60: 43 | AV60: 44 | AW60: 45 | AX60: 46 | AY60: 47 | AZ60: 48 | BA60: 49 | BB60: 50 | BC60: 51 | BD60: 52 | BE60: 53 | BF60: 54 | BG60: 55 | BK60: 229.6479
A61: 1 | C61: 96.41596048 | D61: 88.66683307 | E61: 95.09603265 | F61: 89.60511386 | G61: 97.75028287 | H61: 116.3518719 | I61: 102.3955847 | J61: 117.4145086 | K61: 107.0116203 | L61: 89.29219152 | N61: 97.72456829 | O61: 106.5615608 | P61: 104.9639666 | Q61: 106.0550649 | R61: 115.7910418 | S61: 111.5343376 | T61: 103.1364061 | U61: 92.7003664 | V61: 99.63411436 | W61: 105.8110382 | Y61: 126.1727451 | Z61: 127.0998656 | AA61: 130.5167732 | AB61: 124.7570836 | AC61: 137.6698119 | AD61: 130.3086444 | AE61: 140.1688181 | AF61: 123.6244201 | AG61: 126.1596445 | AH61: 148.0238629 | AI61: 130.0199815 | AJ61: 144.3833059 | AK61: 139.5148323 | AL61: 141.2555464 | AM61: 125.2834695 | AN61: 134.8050068 | AO61: 144.38913 | AP61: 112.4473931 | AQ61: 142.8623641 | AR61: 107.8932969 | AS61: 131.758268 | AT61: 119.2797497 | AU61: 113.2837886 | AV61: 113.3332707 | AW61: 127.586474 | AX61: 131.6903479 | AY61: 123.4491192 | AZ61: 101.0240706 | BA61: 140.950391 | BB61: 128.5203813 | BC61: 124.8647827 | BD61: 116.8588561 | BE61: 108.2770501 | BF61: 130.0655851 | BG61: 113.5908879 | BK61: 246.4264
A62: 2 | C62: 113.3057179 | D62: 99.84370436 | E62: 113.4719825 | F62: 98.89111669 | G62: 106.1177766 | H62: 82.83440715 | I62: 93.76435967 | J62: 101.0838282 | K62: 96.64090216 | L62: 94.04620481 | N62: 95.09330942 | O62: 96.42681123 | P62: 110.0442678 | Q62: 103.5805877 | R62: 111.4609096 | S62: 96.04874168 | T62: 103.2566077 | U62: 101.2620473 | V62: 105.4823427 | W62: 93.68236855 | Y62: 91.16795439 | Z62: 98.65482231 | AA62: 115.193805 | AB62: 103.283939 | AC62: 101.9789037 | AD62: 103.6671345 | AE62: 82.29234994 | AF62: 102.1189741 | AG62: 110.0602109 | AH62: 126.6225395 | AI62: 112.2398252 | AJ62: 85.73372797 | AK62: 124.0602959 | AL62: 90.78874322 | AM62: 85.04590486 | AN62: 108.2017329 | AO62: 89.11816199 | AP62: 109.8774379 | AQ62: 104.7307503 | AR62: 104.5895427 | AS62: 132.4473654 | AT62: 107.901101 | AU62: 96.58396358 | AV62: 127.1401123 | AW62: 103.2907725 | AX62: 112.1202553 | AY62: 144.4762319 | AZ62: 113.6302697 | BA62: 120.8387074 | BB62: 147.0777659 | BC62: 125.7804159 | BD62: 113.3040122 | BE62: 136.6699405 | BF62: 125.0664036 | BG62: 164.7008639 | BK62: 278.1997
A63: 3 | C63: 107.8935067 | D63: 99.85992839 | E63: 93.82278047 | F63: 93.78330801 | G63: 101.0178338 | H63: 103.5423813 | I63: 94.5608247 | J63: 90.57992345 | K63: 105.6165673 | L63: 109.3229459 | N63: 108.8776659 | O63: 106.0552672 | P63: 89.98900772 | Q63: 116.9330754 | R63: 107.1817749 | S63: 156.8055179 | T63: 157.4362072 | U63: 165.0968793 | V63: 132.9643541 | W63: 172.3861237 | Y63: 134.585177 | Z63: 106.6327257 | AA63: 120.4687028 | AB63: 116.9857094 | AC63: 107.3794456 | AD63: 71.68378544 | AE63: 117.8822518 | AF63: 110.4180577 | AG63: 80.63035393 | AH63: 81.46738425 | AI63: 114.0308312 | AJ63: 86.75691514 | AK63: 120.2381358 | AL63: 100.3778755 | AM63: 127.5396516 | AN63: 115.4671538 | AO63: 70.39938216 | AP63: 93.01176802 | AQ63: 137.9709865 | AR63: 133.006216 | AS63: 96.82101949 | AT63: 110.6549028 | AU63: 108.8791617 | AV63: 127.8279338 | AW63: 93.80842646 | AX63: 109.0902905 | AY63: 139.4853523 | AZ63: 126.5773204 | BA63: 118.9991894 | BB63: 150.4151993 | BC63: 179.388296 | BD63: 185.4110899 | BE63: 156.0626825 | BF63: 161.8139423 | BG63: 150.0805627 | BK63: 209.4022
A64: 4 | C64: 117.3492746 | D64: 115.6301612 | E64: 115.5290157 | F64: 95.70787968 | G64: 97.43935473 | H64: 89.18654907 | I64: 83.83096618 | J64: 98.99254187 | K64: 94.25069266 | L64: 109.4328389 | N64: 106.8152941 | O64: 122.1992607 | P64: 128.6681598 | Q64: 115.6869965 | R64: 117.234777 | S64: 103.5930306 | T64: 147.1113237 | U64: 124.9909258 | V64: 121.7428542 | W64: 122.8669377 | Y64: 135.9253326 | Z64: 156.0160951 | AA64: 134.4109634 | AB64: 168.4527722 | AC64: 141.2135202 | AD64: 177.4204389 | AE64: 184.3125033 | AF64: 203.1574256 | AG64: 170.6227196 | AH64: 177.3551269 | AI64: 141.4143081 | AJ64: 190.2248255 | AK64: 146.9613436 | AL64: 193.214856 | AM64: 169.6526564 | AN64: 161.930834 | AO64: 206.8804462 | AP64: 186.327625 | AQ64: 163.8419356 | AR64: 176.2520024 | AS64: 202.7413351 | AT64: 179.0775342 | AU64: 209.8970788 | AV64: 184.936642 | AW64: 215.2400979 | AX64: 223.5521878 | AY64: 210.1825431 | AZ64: 230.961135 | BA64: 249.1464525 | BB64: 206.5925714 | BC64: 134.7899569 | BD64: 221.6201258 | BE64: 137.3380952 | BF64: 172.4002937 | BG64: 165.0774176 | BK64: 191.0802
BK65: 149.593
B66: MEAN | C66: =AVERAGE(C61:C64) -> 108.7411149 | D66: =AVERAGE(D61:D64) -> 101.0001568 | E66: 104.4799528 | F66: 94.49685456 | G66: 100.581312 | H66: 97.97880236 | I66: 93.6379338 | J66: 102.0177005 | K66: 100.8799456 | L66: 100.5235453 | N66: =AVERAGE(N61:N64) -> 102.1277094 | O66: =AVERAGE(O61:O64) -> 107.810725 | P66: 108.4163505 | Q66: 110.5639311 | R66: 112.9171258 | S66: 116.9954069 | T66: 127.7351362 | U66: 121.0125547 | V66: 114.9559164 | W66: 123.686617 | Y66: =AVERAGE(Y61:Y64) -> 121.9628023 | Z66: =AVERAGE(Z61:Z64) -> 122.1008772 | AA66: 125.1475611 | AB66: 128.369876 | AC66: 122.0604203 | AD66: 120.7700008 | AE66: 131.1639808 | AF66: 134.8297194 | AG66: 121.8682322 | AH66: 133.3672284 | AI66: 124.4262365 | AJ66: =AVERAGE(AJ61:AJ64) -> 126.7746936 | AK66: 132.6936519 | AL66: 131.4092553 | AM66: 126.8804206 | AN66: 130.1011819 | AO66: 127.6967801 | AP66: 125.416056 | AQ66: 137.3515091 | AR66: 130.4352645 | AS66: 140.941997 | AT66: 129.2283219 | AU66: 132.1609982 | AV66: 138.3094897 | AW66: 134.9814427 | AX66: 144.1132704 | AY66: 154.3983116 | AZ66: 143.0481989 | BA66: 157.4836851 | BB66: 158.1514795 | BC66: 141.2058629 | BD66: 159.298521 | BE66: 134.5869421 | BF66: 147.3365561 | BG66: 148.362433 | BK66: 115.8592
B67: SEM | C67: =_xlfn.STDEV.S(C61:C64)/SQRT(4) -> 4.542061618 | D67: =_xlfn.STDEV.S(D61:D64)/SQRT(4) -> 5.543655579 | E67: 5.806402137 | F67: 1.941099287 | G67: 2.015142946 | H67: 7.500997266 | I67: 3.805048988 | J67: 5.611804131 | K67: 3.187861143 | L67: 5.203398007 | N67: =_xlfn.STDEV.S(N61:N64)/SQRT(4) -> 3.371520398 | O67: =_xlfn.STDEV.S(O61:O64)/SQRT(4) -> 5.332803328 | P67: 7.980558729 | Q67: 3.365372149 | R67: 2.271495843 | S67: 13.64140356 | T67: 14.32330893 | U67: 16.20421154 | V67: 7.609602315 | W67: 17.30150539 | Y67: =_xlfn.STDEV.S(Y61:Y64)/SQRT(4) -> 10.4893711 | Z67: =_xlfn.STDEV.S(Z61:Z64)/SQRT(4) -> 12.79392139 | AA67: 4.43102731 | AB67: 14.07892728 | AC67: 10.12131689 | AD67: 22.36482066 | AE67: 21.35160644 | AF67: 23.202292 | AG67: 18.78698183 | AH67: 20.18422816 | AI67: 6.930954912 | AJ67: =_xlfn.STDEV.S(AJ61:AJ64)/SQRT(4) -> 25.20212609 | AK67: 6.323041496 | AL67: 23.32711988 | AM67: 17.27854088 | AN67: 12.00344869 | AO67: 30.71371723 | AP67: 20.75630826 | AQ67: 12.23590985 | AR67: 16.53764619 | AS67: 22.21545726 | AT67: 16.79221124 | AU67: 26.15182686 | AV67: 15.89685728 | AW67: 27.68220418 | AX67: 26.94907657 | AY67: 19.12802702 | AZ67: 29.76493475 | BA67: 30.95604888 | BB67: 16.84987273 | BC67: 12.92296844 | BD67: 26.58707185 | BE67: 9.854464159 | BF67: 11.66201735 | BG67: 12.10491414 | BK67: 190.262
BK68: 214.0423
BK69: 189.4662
BK70: 232.2669
BK71: 165.9997
BK72: 196.7905
BK73: 159.5173
BK74: 151.8538
BK75: 121.054
BK76: 128.423
BK77: 196.9584
BK78: 205.4684
BK79: 195.1938
BK80: 236.1355
BK81: 203.6132
BK82: 204.6427
BK83: 175.6742
BK84: 180.6715
BK85: 195.5809
BK86: 191.1025

Sheet Figure 7
A2: Fig 7. Lactate triggers synapse-specific increase in spike probability on CA3 PC
A4: Fig 7C. Raster plot constructed from the cell depicted in panel A1
A6: Stimulation at 20 Hz
A7: Event start time of each spike (ms) after lactate treatment
A8: Trial 1 | B8: Trial 2 | C8: Trial 3 | D8: Trial 4 | E8: Trial 5 | F8: Trial 6 | G8: Trial 7 | H8: Trial 8 | I8: Trial 9 | J8: Trial 10 | K8: Trial 11 | L8: Trial 12 | M8: Trial 13 | N8: Trial 14 | O8: Trial 15 | P8: Trial 16 | Q8: Trial 17 | R8: Trial 18 | S8: Trial 19 | T8: Trial 20
A9: 13.7 | B9: 13.5 | C9: 13.4005 | D9: 13.6992 | E9: 14.6015 | F9: 13.5 | G9: 13.6992 | H9: 13.7031 | I9: 13.6015 | J9: 14.7031 | K9: 13.797 | L9: 14.797 | M9: 13.7031 | N9: 14.7031 | O9: 13.594 | P9: 14.7031 | Q9: 13.4062 | R9: 13.5 | S9: 13.594 | T9: 13.797
A10: 63.8 | B10: 64.5 | C10: 63.6992 | D10: 63.5995 | E10: 64.801 | F10: 63.8985 | G10: 64 | H10: 64 | I10: 63.7031 | J10: 164.7031 | K10: 113.797 | L10: 64.8985 | M10: 63.797 | N10: 114.8985 | O10: 63.9062 | P10: 63.797 | Q10: 63.9062 | R10: 113.7031 | S10: 64.094 | T10: 115.094
A11: 164.5 | B11: 114.5995 | C11: 113.5995 | D11: 113.801 | E11: 214.801 | F11: 163.6992 | G11: 114 | H11: 113.797 | I11: 113.8985 | J11: 365.3985 | K11: 465.1015 | L11: 215.297 | M11: 315.297 | N11: 215.1015 | O11: 113.797 | P11: 364.9062 | Q11: 114.297 | R11: 213.797 | S11: 114.5 | T11: 364
A12: 264.5 | B12: 165.0995 | C12: 163.5995 | D12: 214 | E12: 265 | F12: 214.1992 | G12: 465.1015 | H12: 164.297 | I12: 164.1015 | M12: 415.2031 | N12: 364.297 | O12: 214.297 | P12: 463.9062 | Q12: 214.297 | R12: 363.797 | S12: 214.2031
A13: 365 | B13: 214 | C13: 213.5995 | D13: 314.801 | E13: 315.6992 | F13: 263.801 | H13: 264.8985 | I13: 214.1015 | N13: 464 | Q13: 465.094 | S13: 263.9062
A14: 414.8 | B14: 314.7002 | C14: 264.1992 | F14: 313.8985 | H14: 414.1015 | I14: 315.2031 | S14: 314.2031
A15: 465.1 | B15: 464 | C15: 363.801 | F15: 415.1015 | S15: 465.4062
C16: 414
C17: 464.1992
A19: Stimulation at 40 Hz
A20: Event start time of each spike (ms) after lactate treatment
A21: Trial 1 | B21: Trial 2 | C21: Trial 3 | D21: Trial 4 | E21: Trial 5 | F21: Trial 6 | G21: Trial 7 | H21: Trial 8 | I21: Trial 9 | J21: Trial 10 | K21: Trial 11 | L21: Trial 12 | M21: Trial 13 | N21: Trial 14 | O21: Trial 15 | P21: Trial 16 | Q21: Trial 17 | R21: Trial 18 | S21: Trial 19 | T21: Trial 20
A22: 13.7 | B22: 13.5 | C22: 13.5 | D22: 13.5995 | E22: 13.6015 | F22: 13.6015 | G22: 13.5 | H22: 13.6015 | I22: 13.3985 | J22: 13.5 | K22: 13.6015 | L22: 13.3985 | M22: 13.6015 | N22: 13.3985 | O22: 13.594 | P22: 13.5 | Q22: 13.4062 | R22: 14.9062 | S22: 13.594 | T22: 13.4062
A23: 39.6 | B23: 38.9005 | C23: 38.6992 | D23: 39.0995 | E23: 39.1015 | F23: 63.8985 | G23: 40.301 | H23: 39.1015 | I23: 63.8985 | J23: 63.8985 | K23: 38.7031 | L23: 38.797 | M23: 38.797 | N23: 89.297 | O23: 63.9062 | P23: 39 | Q23: 38.594 | R23: 64 | S23: 38.7031 | T23: 38.5
A24: 114.7 | B24: 88.9005 | C24: 89.0995 | D24: 89.301 | E24: 64.1992 | F24: 89.6015 | G24: 114.1992 | H24: 64.2031 | I24: 89.1015 | J24: 164.3985 | K24: 63.797 | L24: 88.8985 | M24: 114.2031 | N24: 139.6015 | O24: 89.094 | P24: 114 | Q24: 63.594 | R24: 114.094 | S24: 63.7031 | T24: 63.797
B25: 189 | C25: 138.9005 | D25: 138.9005 | F25: 164.1015 | G25: 239.6015 | H25: 164.3985 | I25: 139.1015 | K25: 114.6015 | L25: 239 | O25: 139.4062 | P25: 238.797 | Q25: 89.094 | R25: 214.297 | S25: 138.797 | T25: 89.094
H26: 214.797 | I26: 214 | K26: 164.797 | O26: 239 | S26: 164.094 | T26: 139
T27: 164.7031
T28: 239
A29: Fig 7D. Spike probability for RC synapse
B31: Spike probability 20 Hz | E31: Spike probability 40 Hz
B32: Baseline | C32: After Lactate (2 mM) | E32: Baseline | F32: After Lactate (2 mM)
B33: 0.045 | C33: 0.14 | E33: 0.01 | F33: 0.315
B34: 0 | C34: 0 | E34: 0 | F34: 0.075
B35: 0 | C35: 0.69 | E35: 0 | F35: 1
B36: 0.005 | C36: 0.645 | E36: 0 | F36: 0.415
B37: 0 | C37: 0.26 | E37: 0.02 | F37: 0.965
E38: 0 | F38: 0.315
A40: Mean | B40: =AVERAGE(B33:B38) -> 0.01 | C40: =AVERAGE(C33:C38) -> 0.347 | E40: =AVERAGE(E33:E38) -> 0.005 | F40: =AVERAGE(F33:F38) -> 0.5141666667
A41: SEM | B41: =_xlfn.STDEV.S(B33:B39)/SQRT(5) -> 0.008803408431 | C41: =_xlfn.STDEV.S(C33:C39)/SQRT(5) -> 0.1373462777 | E41: =_xlfn.STDEV.S(E33:E38)/SQRT(6) -> 0.003415650255 | F41: =_xlfn.STDEV.S(F33:F38)/SQRT(6) -> 0.1550613678
A43: Fig 7E. Spike probability for MF synapse
B45: Spike probability 20 Hz | E45: Spike probability 40 Hz
B46: Baseline | C46: After Lactate (2 mM) | E46: Baseline | F46: After Lactate (2 mM)
B47: 0 | C47: 0 | E47: 0 | F47: 0
B48: 0.045 | C48: 0.045 | E48: 0.125 | F48: 0.02
B49: 0 | C49: 0 | E49: 0 | F49: 0
B50: 0 | C50: 0 | E50: 0 | F50: 0.05
B51: 0.02 | C51: 0.005 | E51: 0.035 | F51: 0.015
A53: Mean | B53: =AVERAGE(B47:B51) -> 0.013 | C53: =AVERAGE(C47:C51) -> 0.01 | E53: =AVERAGE(E47:E51) -> 0.032 | F53: =AVERAGE(F47:F51) -> 0.017
A54: SEM | B54: =_xlfn.STDEV.S(B47:B51)/SQRT(5) -> 0.008888194417 | C54: =_xlfn.STDEV.S(C47:C51)/SQRT(5) -> 0.008803408431 | E54: =_xlfn.STDEV.S(E47:E51)/SQRT(5) -> 0.02421776208 | F54: =_xlfn.STDEV.S(F47:F51)/SQRT(5) -> 0.00916515139
